Publisher Label,Publisher URI,"Directorate code","Directorate","Service code","Service","Revenue or capital code","Revenue capital","Cost centre","Cost centre description","Bvsub Category","Bvsub description","Bvsum code","Bvsum description","Account code","Account description","Transaction No","Period","Transaction Date","Amount","Classification code","Classification description","Supplier ID","Supplier description","Company registration number","Company registration number Uri","VAT registration number"
"London Borough of Redbridge","http://opendatacommunities.org/doc/london-borough-council/redbridge","3BINDSCHFUND","Individual School Funds","3CDELSECOND","Delegated Individual Secondary School Budgets","REV","Revenue","S2200","TRINITY: CAPITAL: Devolved Formula Capital","99-NONBV","Capital, Balance Sheet and Control","99B","Accounting & Control","7409","Schools Capital New Construction, Conversion and Renovation","60418644","202009",11/11/2019 00:00:00,6358.8,"11040","Builders","REDACTED DATA","M & G CONSTRUCTION LTD.","1918880","http://opencorporates.com/companies/gb/1918880","406392853"
"London Borough of Redbridge","http://opendatacommunities.org/doc/london-borough-council/redbridge","1BOTHEROPI&E","Other Operating Income & Expenditure","1CTRADSURDEF","Trading Account Surpluses & Deficits","REV","Revenue","R9462","HR Employee Experience","04-SUPPLIES","Supplies And Services","04H","Grants and subscriptions","5954","Professional Fees","60419212","202008",29/08/2019 00:00:00,5280,"31230","Employment and Recruitment Agencies","REDACTED DATA","LAW MORGAN LTD","7182544","http://opencorporates.com/companies/gb/7182544","974879541"
"London Borough of Redbridge","http://opendatacommunities.org/doc/london-borough-council/redbridge","6BADULTSOCIA","Adult Social Care","6COTHADSERV","Other Adult Services","REV","Revenue","R4447","Older People - Wanstead & Woodford","05-THIRD","Third Party Payments","05H","Private contractors","6909","Nursing Homes","91105284","202009",04/12/2019 00:00:00,6326.16,"53350","Nursing Homes","REDACTED DATA","QUEENS COURT NURSING HOME","",,""
"London Borough of Redbridge","http://opendatacommunities.org/doc/london-borough-council/redbridge","6BADULTSOCIA","Adult Social Care","6COTHADSERV","Other Adult Services","REV","Revenue","R4447","Older People - Wanstead & Woodford","05-THIRD","Third Party Payments","05H","Private contractors","6909","Nursing Homes","91105284","202009",04/12/2019 00:00:00,2858.88,"53350","Nursing Homes","REDACTED DATA","QUEENS COURT NURSING HOME","",,""
"London Borough of Redbridge","http://opendatacommunities.org/doc/london-borough-council/redbridge","6BADULTSOCIA","Adult Social Care","6COTHADSERV","Other Adult Services","REV","Revenue","R4447","Older People - Wanstead & Woodford","09-INCOME","Income","09C","Customer and Client Receipts","8557","Nursing Home Charges","91105284","202009",04/12/2019 00:00:00,-2858.88,"53350","Nursing Homes","REDACTED DATA","QUEENS COURT NURSING HOME","",,""
"London Borough of Redbridge","http://opendatacommunities.org/doc/london-borough-council/redbridge","4BMANGT&SUPP","Management & Support Services","2CSERVMGTSUP","Service Management & Support Services","REV","Revenue","R9155","Corporate Director of Resources","04-SUPPLIES","Supplies And Services","04H","Grants and subscriptions","5954","Professional Fees","60419739","202009",14/11/2019 00:00:00,5250,"35210","Finance Brokers","REDACTED DATA","LONDON STOCK EXCHANGE","2075721","http://opencorporates.com/companies/gb/2075721","524922449"
"London Borough of Redbridge","http://opendatacommunities.org/doc/london-borough-council/redbridge","6BADULTSOCIA","Adult Social Care","6CLONGT65","Long-Term Support 65+ Years","REV","Revenue","R4440","Learning Disabilities - Seven Kings","05-THIRD","Third Party Payments","05F","Voluntary associations","6802","Residential Homes","91105358","202009",26/11/2019 00:00:00,6286.8,"64710","Residential Care Homes","REDACTED DATA","ALPAM HOMES","",,""
"London Borough of Redbridge","http://opendatacommunities.org/doc/london-borough-council/redbridge","6BADULTSOCIA","Adult Social Care","6CLONGT65","Long-Term Support 65+ Years","REV","Revenue","R4446","Learning Disabilities - Wanstead and Woodford","06-TRANSFER","Transfer Payments","06B","Social Services Clients","7053","Direct Payments","3572608","202009",09/12/2019 00:00:00,6379.6,"90005","Home Care Services DP","REDACTED DATA","REDACTED DATA","",,""
"London Borough of Redbridge","http://opendatacommunities.org/doc/london-borough-council/redbridge","6BADULTSOCIA","Adult Social Care","6CLONGT65","Long-Term Support 65+ Years","REV","Revenue","R4446","Learning Disabilities - Wanstead and Woodford","09-INCOME","Income","09C","Customer and Client Receipts","8545","Direct Payments Income","3572608","202009",09/12/2019 00:00:00,-109.96,"90005","Home Care Services DP","REDACTED DATA","REDACTED DATA","",,""
"London Borough of Redbridge","http://opendatacommunities.org/doc/london-borough-council/redbridge","6BADULTSOCIA","Adult Social Care","6CLONGT65","Long-Term Support 65+ Years","REV","Revenue","R4440","Learning Disabilities - Seven Kings","06-TRANSFER","Transfer Payments","06B","Social Services Clients","7053","Direct Payments","3572651","202009",09/12/2019 00:00:00,6298.2,"90005","Home Care Services DP","REDACTED DATA","REDACTED DATA","",,""
"London Borough of Redbridge","http://opendatacommunities.org/doc/london-borough-council/redbridge","6BADULTSOCIA","Adult Social Care","6CLONGT65","Long-Term Support 65+ Years","REV","Revenue","R4440","Learning Disabilities - Seven Kings","09-INCOME","Income","09C","Customer and Client Receipts","8545","Direct Payments Income","3572651","202009",09/12/2019 00:00:00,-32.12,"90005","Home Care Services DP","REDACTED DATA","REDACTED DATA","",,""
"London Borough of Redbridge","http://opendatacommunities.org/doc/london-borough-council/redbridge","1BOTHEROPI&E","Other Operating Income & Expenditure","1CTRADSURDEF","Trading Account Surpluses & Deficits","REV","Revenue","R9802","Administrative Service","04-SUPPLIES","Supplies And Services","04A","Equipment, furniture and materials","5502","Equipment Purchase","60418099","202008",15/11/2019 00:00:00,5200,"20703","Computer Systems and Software","REDACTED DATA","DELTASCHEME LTD","2013681","http://opencorporates.com/companies/gb/2013681","448506337"
"London Borough of Redbridge","http://opendatacommunities.org/doc/london-borough-council/redbridge","3BNONSCHFUND","Non-School Funding","3CNONSCH","Non Schools","REV","Revenue","R3962","Early Years - 3 and 4 Year Olds","05-THIRD","Third Party Payments","05A","Independent units within the council","6517","Non-Maintained Schools","3574093","202009",16/12/2019 00:00:00,5101.38,"17580","Childcare Services","REDACTED DATA","MUNCHKINZ LTD T/A MUNCHKINZ PRE SCHOOL NURSERY","11544527","http://opencorporates.com/companies/gb/11544527",""
"London Borough of Redbridge","http://opendatacommunities.org/doc/london-borough-council/redbridge","3BNONSCHFUND","Non-School Funding","3CNONSCH","Non Schools","REV","Revenue","R3962","Early Years - 3 and 4 Year Olds","05-THIRD","Third Party Payments","05A","Independent units within the council","6517","Non-Maintained Schools","3573965","202009",16/12/2019 00:00:00,6235.02,"59760","Playgroups, Nurseries and Creches","REDACTED DATA","MILLGROVE PRE-SCHOOL","",,""
"London Borough of Redbridge","http://opendatacommunities.org/doc/london-borough-council/redbridge","3BNONSCHFUND","Non-School Funding","3CNONSCH","Non Schools","REV","Revenue","R3962","Early Years - 3 and 4 Year Olds","05-THIRD","Third Party Payments","05A","Independent units within the council","6517","Non-Maintained Schools","3574093","202009",16/12/2019 00:00:00,6235.02,"17580","Childcare Services","REDACTED DATA","READ ACADEMY EDUCATION","",,""
"London Borough of Redbridge","http://opendatacommunities.org/doc/london-borough-council/redbridge","3BNONSCHFUND","Non-School Funding","3CNONSCH","Non Schools","REV","Revenue","R3962","Early Years - 3 and 4 Year Olds","05-THIRD","Third Party Payments","05A","Independent units within the council","6517","Non-Maintained Schools","3573986","202009",16/12/2019 00:00:00,6229.35,"59760","Playgroups, Nurseries and Creches","REDACTED DATA","LITTLE BEARS NURSERY SCHOOL LTD","5208881","http://opencorporates.com/companies/gb/5208881",""
"London Borough of Redbridge","http://opendatacommunities.org/doc/london-borough-council/redbridge","6BADULTSOCIA","Adult Social Care","6CLONGT65","Long-Term Support 65+ Years","REV","Revenue","R4440","Learning Disabilities - Seven Kings","05-THIRD","Third Party Payments","05F","Voluntary associations","6802","Residential Homes","91105627","202009",26/11/2019 00:00:00,6638.32,"64710","Residential Care Homes","REDACTED DATA","ALPAM HOMES","",,""
"London Borough of Redbridge","http://opendatacommunities.org/doc/london-borough-council/redbridge","6BADULTSOCIA","Adult Social Care","6CLONGT65","Long-Term Support 65+ Years","REV","Revenue","R4440","Learning Disabilities - Seven Kings","09-INCOME","Income","09C","Customer and Client Receipts","8555","Accommodation Charges","91105627","202009",26/11/2019 00:00:00,-414.2,"64710","Residential Care Homes","REDACTED DATA","ALPAM HOMES","",,""
"London Borough of Redbridge","http://opendatacommunities.org/doc/london-borough-council/redbridge","6BSOCIALSERV","Social Services","6CCHILLOOKED","Children Looked After","REV","Revenue","R2117","SEN and CD Care and Support Packages Social Care","06-TRANSFER","Transfer Payments","06B","Social Services Clients","7053","Direct Payments","3571839","202009",04/12/2019 00:00:00,6212.6,"71855","Social Services","REDACTED DATA","LINDSAY SCHOFIELD","",,""
"London Borough of Redbridge","http://opendatacommunities.org/doc/london-borough-council/redbridge","3BNONSCHFUND","Non-School Funding","6CCHILLOOKED","Children Looked After","REV","Revenue","R2238","Looked After Children Placements LA","05-THIRD","Third Party Payments","05A","Independent units within the council","6513","Agency & Contracted Services","60420318","202009",21/08/2019 00:00:00,6200,"64710","Residential Care Homes","REDACTED DATA","CORA FOUNDATION","SC029984","http://opencorporates.com/companies/gb/SC029984",""
"London Borough of Redbridge","http://opendatacommunities.org/doc/london-borough-council/redbridge","9BNONBVO","Outside the BVACOP Objective Structure","9CNONBVO","Outside the BVACOP Objective Structure","BAL","Balance Sheet","B0059","DUMMY VAT ACCOUNT","99-NONBV","Capital, Balance Sheet and Control","50L","Debtors","9359","VAT only invoices","3573782","202009",01/12/2019 00:00:00,0,"47846","Letting Agents","REDACTED DATA","THEORI HOUSING MANAGEMENT SERVICES LIMITED","4048450","http://opencorporates.com/companies/gb/4048450","773898950"
"London Borough of Redbridge","http://opendatacommunities.org/doc/london-borough-council/redbridge","9BNONBVO","Outside the BVACOP Objective Structure","9CNONBVO","Outside the BVACOP Objective Structure","BAL","Balance Sheet","B0059","DUMMY VAT ACCOUNT","99-NONBV","Capital, Balance Sheet and Control","50L","Debtors","9359","VAT only invoices","3573782","202009",01/12/2019 00:00:00,0,"47846","Letting Agents","REDACTED DATA","THEORI HOUSING MANAGEMENT SERVICES LIMITED","4048450","http://opencorporates.com/companies/gb/4048450","773898950"
"London Borough of Redbridge","http://opendatacommunities.org/doc/london-borough-council/redbridge","9BNONBVO","Outside the BVACOP Objective Structure","9CNONBVO","Outside the BVACOP Objective Structure","BAL","Balance Sheet","B0059","DUMMY VAT ACCOUNT","99-NONBV","Capital, Balance Sheet and Control","50L","Debtors","9359","VAT only invoices","3573764","202009",01/12/2019 00:00:00,0,"44100","Hotels","REDACTED DATA","OSIQ KTD T/A SILVER BIRCH HOTEL","12151097","http://opencorporates.com/companies/gb/12151097","331296808"
"London Borough of Redbridge","http://opendatacommunities.org/doc/london-borough-council/redbridge","9BNONBVO","Outside the BVACOP Objective Structure","9CNONBVO","Outside the BVACOP Objective Structure","BAL","Balance Sheet","B0059","DUMMY VAT ACCOUNT","99-NONBV","Capital, Balance Sheet and Control","50L","Debtors","9359","VAT only invoices","3573764","202009",01/12/2019 00:00:00,0,"44100","Hotels","REDACTED DATA","OSIQ KTD T/A SILVER BIRCH HOTEL","12151097","http://opencorporates.com/companies/gb/12151097","331296808"
"London Borough of Redbridge","http://opendatacommunities.org/doc/london-borough-council/redbridge","6BADULTSOCIA","Adult Social Care","6CLONGT1864","Long-Term Support 18 - 64 Years","REV","Revenue","R4445","Physical Disabilities - Fairlop","06-TRANSFER","Transfer Payments","06B","Social Services Clients","7053","Direct Payments","3572759","202009",09/12/2019 00:00:00,4804.88,"90005","Home Care Services DP","REDACTED DATA","REDACTED DATA","",,""
"London Borough of Redbridge","http://opendatacommunities.org/doc/london-borough-council/redbridge","6BADULTSOCIA","Adult Social Care","6CLONGT1864","Long-Term Support 18 - 64 Years","REV","Revenue","R4445","Physical Disabilities - Fairlop","09-INCOME","Income","09C","Customer and Client Receipts","8545","Direct Payments Income","3572759","202009",09/12/2019 00:00:00,1615.68,"90005","Home Care Services DP","REDACTED DATA","REDACTED DATA","",,""
"London Borough of Redbridge","http://opendatacommunities.org/doc/london-borough-council/redbridge","6BADULTSOCIA","Adult Social Care","6CLONGT1864","Long-Term Support 18 - 64 Years","REV","Revenue","R4445","Physical Disabilities - Fairlop","09-INCOME","Income","09C","Customer and Client Receipts","8545","Direct Payments Income","3572759","202009",09/12/2019 00:00:00,-245.92,"90005","Home Care Services DP","REDACTED DATA","REDACTED DATA","",,""
"London Borough of Redbridge","http://opendatacommunities.org/doc/london-borough-council/redbridge","6BADULTSOCIA","Adult Social Care","6COTHADSERV","Other Adult Services","REV","Revenue","R4447","Older People - Wanstead & Woodford","06-TRANSFER","Transfer Payments","06B","Social Services Clients","7053","Direct Payments","3572990","202009",09/12/2019 00:00:00,8970.39,"90005","Home Care Services DP","REDACTED DATA","REDACTED DATA","",,""
"London Borough of Redbridge","http://opendatacommunities.org/doc/london-borough-council/redbridge","6BADULTSOCIA","Adult Social Care","6COTHADSERV","Other Adult Services","REV","Revenue","R4447","Older People - Wanstead & Woodford","09-INCOME","Income","09C","Customer and Client Receipts","8545","Direct Payments Income","3572990","202009",09/12/2019 00:00:00,-2815.88,"90005","Home Care Services DP","REDACTED DATA","REDACTED DATA","",,""
"London Borough of Redbridge","http://opendatacommunities.org/doc/london-borough-council/redbridge","6BADULTSOCIA","Adult Social Care","6CLONGT1864","Long-Term Support 18 - 64 Years","REV","Revenue","R4437","Learning Disabilities - Cranbrook & Loxford","05-THIRD","Third Party Payments","05F","Voluntary associations","6802","Residential Homes","91105351","202009",26/11/2019 00:00:00,6400,"64710","Residential Care Homes","REDACTED DATA","CARE ONE LTD ( ABBEY CARE HOME)","4270516","http://opencorporates.com/companies/gb/4270516",""
"London Borough of Redbridge","http://opendatacommunities.org/doc/london-borough-council/redbridge","6BADULTSOCIA","Adult Social Care","6CLONGT1864","Long-Term Support 18 - 64 Years","REV","Revenue","R4437","Learning Disabilities - Cranbrook & Loxford","09-INCOME","Income","09C","Customer and Client Receipts","8555","Accommodation Charges","91105351","202009",26/11/2019 00:00:00,-247.2,"64710","Residential Care Homes","REDACTED DATA","CARE ONE LTD ( ABBEY CARE HOME)","4270516","http://opencorporates.com/companies/gb/4270516",""
"London Borough of Redbridge","http://opendatacommunities.org/doc/london-borough-council/redbridge","6BSOCIALSERV","Social Services","6CFAMSUPPSER","Family Support Services","REV","Revenue","R2161","Albert Road Building","02-PREMISES","Premises","02H","Cleaning and domestic supplies","4621","Cleaning DSO Recharge","60421115","202009",30/09/2019 00:00:00,5125,"69240","Security Services","REDACTED DATA","IGUARD SECURITY SERVICES LTD","11246154","http://opencorporates.com/companies/gb/11246154","292084395"
"London Borough of Redbridge","http://opendatacommunities.org/doc/london-borough-council/redbridge","9BNONBVO","Outside the BVACOP Objective Structure","9CNONBVO","Outside the BVACOP Objective Structure","CAP","Capital","C4344","School Conditioning","99-NONBV","Capital, Balance Sheet and Control","50E","Capital - Contract Payments","9150","Main Contract","3571887","202009",19/11/2019 00:00:00,5122,"47960","Lifts - Servicing and Repairs","REDACTED DATA","GRIFFIN ELEVATORS LTD","3719819","http://opencorporates.com/companies/gb/3719819","731279340"
"London Borough of Redbridge","http://opendatacommunities.org/doc/london-borough-council/redbridge","3BNONSCHFUND","Non-School Funding","3CNONSCH","Non Schools","REV","Revenue","R3963","Early Years - 2 Year Olds - Statutory Place Funding","05-THIRD","Third Party Payments","05A","Independent units within the council","6517","Non-Maintained Schools","3574170","202009",16/12/2019 00:00:00,6143.37,"17580","Childcare Services","REDACTED DATA","KIDS IN CHARGE LTD T/A RIGHTSTART DAYCARE","6095988","http://opencorporates.com/companies/gb/6095988",""
"London Borough of Redbridge","http://opendatacommunities.org/doc/london-borough-council/redbridge","9BNONBVO","Outside the BVACOP Objective Structure","9CNONBVO","Outside the BVACOP Objective Structure","BAL","Balance Sheet","B0059","DUMMY VAT ACCOUNT","99-NONBV","Capital, Balance Sheet and Control","50L","Debtors","9359","VAT only invoices","3573780","202009",01/10/2019 00:00:00,0,"47846","Letting Agents","REDACTED DATA","THEORI HOUSING MANAGEMENT SERVICES LIMITED","4048450","http://opencorporates.com/companies/gb/4048450","773898950"
"London Borough of Redbridge","http://opendatacommunities.org/doc/london-borough-council/redbridge","9BNONBVO","Outside the BVACOP Objective Structure","9CNONBVO","Outside the BVACOP Objective Structure","BAL","Balance Sheet","B0059","DUMMY VAT ACCOUNT","99-NONBV","Capital, Balance Sheet and Control","50L","Debtors","9359","VAT only invoices","3573780","202009",01/10/2019 00:00:00,0,"47846","Letting Agents","REDACTED DATA","THEORI HOUSING MANAGEMENT SERVICES LIMITED","4048450","http://opencorporates.com/companies/gb/4048450","773898950"
"London Borough of Redbridge","http://opendatacommunities.org/doc/london-borough-council/redbridge","9BNONBVO","Outside the BVACOP Objective Structure","9CNONBVO","Outside the BVACOP Objective Structure","BAL","Balance Sheet","B0059","DUMMY VAT ACCOUNT","99-NONBV","Capital, Balance Sheet and Control","50L","Debtors","9359","VAT only invoices","3573762","202009",01/10/2019 00:00:00,0,"44100","Hotels","REDACTED DATA","OSIQ KTD T/A SILVER BIRCH HOTEL","12151097","http://opencorporates.com/companies/gb/12151097","331296808"
"London Borough of Redbridge","http://opendatacommunities.org/doc/london-borough-council/redbridge","9BNONBVO","Outside the BVACOP Objective Structure","9CNONBVO","Outside the BVACOP Objective Structure","BAL","Balance Sheet","B0059","DUMMY VAT ACCOUNT","99-NONBV","Capital, Balance Sheet and Control","50L","Debtors","9359","VAT only invoices","3573762","202009",01/10/2019 00:00:00,0,"44100","Hotels","REDACTED DATA","OSIQ KTD T/A SILVER BIRCH HOTEL","12151097","http://opencorporates.com/companies/gb/12151097","331296808"
"London Borough of Redbridge","http://opendatacommunities.org/doc/london-borough-council/redbridge","9BNONBVO","Outside the BVACOP Objective Structure","9CNONBVO","Outside the BVACOP Objective Structure","BAL","Balance Sheet","B0059","DUMMY VAT ACCOUNT","99-NONBV","Capital, Balance Sheet and Control","50L","Debtors","9359","VAT only invoices","3573781","202009",01/11/2019 00:00:00,0,"47846","Letting Agents","REDACTED DATA","THEORI HOUSING MANAGEMENT SERVICES LIMITED","4048450","http://opencorporates.com/companies/gb/4048450","773898950"
"London Borough of Redbridge","http://opendatacommunities.org/doc/london-borough-council/redbridge","9BNONBVO","Outside the BVACOP Objective Structure","9CNONBVO","Outside the BVACOP Objective Structure","BAL","Balance Sheet","B0059","DUMMY VAT ACCOUNT","99-NONBV","Capital, Balance Sheet and Control","50L","Debtors","9359","VAT only invoices","3573781","202009",01/11/2019 00:00:00,0,"47846","Letting Agents","REDACTED DATA","THEORI HOUSING MANAGEMENT SERVICES LIMITED","4048450","http://opencorporates.com/companies/gb/4048450","773898950"
"London Borough of Redbridge","http://opendatacommunities.org/doc/london-borough-council/redbridge","9BNONBVO","Outside the BVACOP Objective Structure","9CNONBVO","Outside the BVACOP Objective Structure","BAL","Balance Sheet","B0059","DUMMY VAT ACCOUNT","99-NONBV","Capital, Balance Sheet and Control","50L","Debtors","9359","VAT only invoices","3573763","202009",01/11/2019 00:00:00,0,"44100","Hotels","REDACTED DATA","OSIQ KTD T/A SILVER BIRCH HOTEL","12151097","http://opencorporates.com/companies/gb/12151097","331296808"
"London Borough of Redbridge","http://opendatacommunities.org/doc/london-borough-council/redbridge","9BNONBVO","Outside the BVACOP Objective Structure","9CNONBVO","Outside the BVACOP Objective Structure","BAL","Balance Sheet","B0059","DUMMY VAT ACCOUNT","99-NONBV","Capital, Balance Sheet and Control","50L","Debtors","9359","VAT only invoices","3573763","202009",01/11/2019 00:00:00,0,"44100","Hotels","REDACTED DATA","OSIQ KTD T/A SILVER BIRCH HOTEL","12151097","http://opencorporates.com/companies/gb/12151097","331296808"
"London Borough of Redbridge","http://opendatacommunities.org/doc/london-borough-council/redbridge","3BNONSCHFUND","Non-School Funding","6CCHILLOOKED","Children Looked After","REV","Revenue","R2238","Looked After Children Placements LA","05-THIRD","Third Party Payments","05H","Private contractors","6917","Fostering Costs - Agency","60419325","202008",01/12/2019 00:00:00,6125.29,"1880","Adoption and Fostering","REDACTED DATA","FOSTER CARE ASSOCIATES  LIMITED","4322806","http://opencorporates.com/companies/gb/4322806","945693968"
"London Borough of Redbridge","http://opendatacommunities.org/doc/london-borough-council/redbridge","9BNONBVO","Outside the BVACOP Objective Structure","9CNONBVO","Outside the BVACOP Objective Structure","BAL","Balance Sheet","B0059","DUMMY VAT ACCOUNT","99-NONBV","Capital, Balance Sheet and Control","50L","Debtors","9359","VAT only invoices","3573778","202009",01/08/2019 00:00:00,0,"47846","Letting Agents","REDACTED DATA","THEORI HOUSING MANAGEMENT SERVICES LIMITED","4048450","http://opencorporates.com/companies/gb/4048450","773898950"
"London Borough of Redbridge","http://opendatacommunities.org/doc/london-borough-council/redbridge","5BGFHOUSING","General Fund Housing","5CHOMELESS","Homelessness","REV","Revenue","R5630","HAC Temporary Accomodation","05-THIRD","Third Party Payments","05H","Private contractors","6900","Nightly Let Plus Charges","3572460","202009",01/12/2019 00:00:00,1710,"31230","Employment and Recruitment Agencies","REDACTED DATA","ADAM HTT LIMITED T/A ADAM","7718565","http://opencorporates.com/companies/gb/7718565","198573349"
"London Borough of Redbridge","http://opendatacommunities.org/doc/london-borough-council/redbridge","5BGFHOUSING","General Fund Housing","5CHOMELESS","Homelessness","REV","Revenue","R5630","HAC Temporary Accomodation","05-THIRD","Third Party Payments","05H","Private contractors","6900","Nightly Let Plus Charges","3572460","202009",01/12/2019 00:00:00,1050,"31230","Employment and Recruitment Agencies","REDACTED DATA","ADAM HTT LIMITED T/A ADAM","7718565","http://opencorporates.com/companies/gb/7718565","198573349"
"London Borough of Redbridge","http://opendatacommunities.org/doc/london-borough-council/redbridge","5BGFHOUSING","General Fund Housing","5CHOMELESS","Homelessness","REV","Revenue","R5630","HAC Temporary Accomodation","05-THIRD","Third Party Payments","05H","Private contractors","6900","Nightly Let Plus Charges","3572460","202009",01/12/2019 00:00:00,1500,"31230","Employment and Recruitment Agencies","REDACTED DATA","ADAM HTT LIMITED T/A ADAM","7718565","http://opencorporates.com/companies/gb/7718565","198573349"
"London Borough of Redbridge","http://opendatacommunities.org/doc/london-borough-council/redbridge","5BGFHOUSING","General Fund Housing","5CHOMELESS","Homelessness","REV","Revenue","R5630","HAC Temporary Accomodation","05-THIRD","Third Party Payments","05H","Private contractors","6900","Nightly Let Plus Charges","3572460","202009",01/12/2019 00:00:00,1650,"31230","Employment and Recruitment Agencies","REDACTED DATA","ADAM HTT LIMITED T/A ADAM","7718565","http://opencorporates.com/companies/gb/7718565","198573349"
"London Borough of Redbridge","http://opendatacommunities.org/doc/london-borough-council/redbridge","5BGFHOUSING","General Fund Housing","5CHOMELESS","Homelessness","REV","Revenue","R5630","HAC Temporary Accomodation","05-THIRD","Third Party Payments","05H","Private contractors","6900","Nightly Let Plus Charges","3572460","202009",01/12/2019 00:00:00,1500,"31230","Employment and Recruitment Agencies","REDACTED DATA","ADAM HTT LIMITED T/A ADAM","7718565","http://opencorporates.com/companies/gb/7718565","198573349"
"London Borough of Redbridge","http://opendatacommunities.org/doc/london-borough-council/redbridge","5BGFHOUSING","General Fund Housing","5CHOMELESS","Homelessness","REV","Revenue","R5630","HAC Temporary Accomodation","05-THIRD","Third Party Payments","05H","Private contractors","6900","Nightly Let Plus Charges","3572460","202009",01/12/2019 00:00:00,855,"31230","Employment and Recruitment Agencies","REDACTED DATA","ADAM HTT LIMITED T/A ADAM","7718565","http://opencorporates.com/companies/gb/7718565","198573349"
"London Borough of Redbridge","http://opendatacommunities.org/doc/london-borough-council/redbridge","5BGFHOUSING","General Fund Housing","5CHOMELESS","Homelessness","REV","Revenue","R5630","HAC Temporary Accomodation","05-THIRD","Third Party Payments","05H","Private contractors","6900","Nightly Let Plus Charges","3572460","202009",01/12/2019 00:00:00,900,"31230","Employment and Recruitment Agencies","REDACTED DATA","ADAM HTT LIMITED T/A ADAM","7718565","http://opencorporates.com/companies/gb/7718565","198573349"
"London Borough of Redbridge","http://opendatacommunities.org/doc/london-borough-council/redbridge","5BGFHOUSING","General Fund Housing","5CHOMELESS","Homelessness","REV","Revenue","R5630","HAC Temporary Accomodation","05-THIRD","Third Party Payments","05H","Private contractors","6900","Nightly Let Plus Charges","3572460","202009",01/12/2019 00:00:00,900,"31230","Employment and Recruitment Agencies","REDACTED DATA","ADAM HTT LIMITED T/A ADAM","7718565","http://opencorporates.com/companies/gb/7718565","198573349"
"London Borough of Redbridge","http://opendatacommunities.org/doc/london-borough-council/redbridge","5BGFHOUSING","General Fund Housing","5CHOMELESS","Homelessness","REV","Revenue","R5630","HAC Temporary Accomodation","05-THIRD","Third Party Payments","05H","Private contractors","6900","Nightly Let Plus Charges","3572460","202009",01/12/2019 00:00:00,900,"31230","Employment and Recruitment Agencies","REDACTED DATA","ADAM HTT LIMITED T/A ADAM","7718565","http://opencorporates.com/companies/gb/7718565","198573349"
"London Borough of Redbridge","http://opendatacommunities.org/doc/london-borough-council/redbridge","5BGFHOUSING","General Fund Housing","5CHOMELESS","Homelessness","REV","Revenue","R5630","HAC Temporary Accomodation","05-THIRD","Third Party Payments","05H","Private contractors","6900","Nightly Let Plus Charges","3572460","202009",01/12/2019 00:00:00,900,"31230","Employment and Recruitment Agencies","REDACTED DATA","ADAM HTT LIMITED T/A ADAM","7718565","http://opencorporates.com/companies/gb/7718565","198573349"
"London Borough of Redbridge","http://opendatacommunities.org/doc/london-borough-council/redbridge","5BGFHOUSING","General Fund Housing","5CHOMELESS","Homelessness","REV","Revenue","R5630","HAC Temporary Accomodation","05-THIRD","Third Party Payments","05H","Private contractors","6900","Nightly Let Plus Charges","3572460","202009",01/12/2019 00:00:00,900,"31230","Employment and Recruitment Agencies","REDACTED DATA","ADAM HTT LIMITED T/A ADAM","7718565","http://opencorporates.com/companies/gb/7718565","198573349"
"London Borough of Redbridge","http://opendatacommunities.org/doc/london-borough-council/redbridge","9BNONBVO","Outside the BVACOP Objective Structure","9CNONBVO","Outside the BVACOP Objective Structure","BAL","Balance Sheet","B0059","DUMMY VAT ACCOUNT","99-NONBV","Capital, Balance Sheet and Control","50L","Debtors","9359","VAT only invoices","3573778","202009",01/08/2019 00:00:00,0,"47846","Letting Agents","REDACTED DATA","THEORI HOUSING MANAGEMENT SERVICES LIMITED","4048450","http://opencorporates.com/companies/gb/4048450","773898950"
"London Borough of Redbridge","http://opendatacommunities.org/doc/london-borough-council/redbridge","9BNONBVO","Outside the BVACOP Objective Structure","9CNONBVO","Outside the BVACOP Objective Structure","BAL","Balance Sheet","B0059","DUMMY VAT ACCOUNT","99-NONBV","Capital, Balance Sheet and Control","50L","Debtors","9359","VAT only invoices","3573775","202009",01/05/2019 00:00:00,0,"47846","Letting Agents","REDACTED DATA","THEORI HOUSING MANAGEMENT SERVICES LIMITED","4048450","http://opencorporates.com/companies/gb/4048450","773898950"
"London Borough of Redbridge","http://opendatacommunities.org/doc/london-borough-council/redbridge","9BNONBVO","Outside the BVACOP Objective Structure","9CNONBVO","Outside the BVACOP Objective Structure","BAL","Balance Sheet","B0059","DUMMY VAT ACCOUNT","99-NONBV","Capital, Balance Sheet and Control","50L","Debtors","9359","VAT only invoices","3573775","202009",01/05/2019 00:00:00,0,"47846","Letting Agents","REDACTED DATA","THEORI HOUSING MANAGEMENT SERVICES LIMITED","4048450","http://opencorporates.com/companies/gb/4048450","773898950"
"London Borough of Redbridge","http://opendatacommunities.org/doc/london-borough-council/redbridge","9BNONBVO","Outside the BVACOP Objective Structure","9CNONBVO","Outside the BVACOP Objective Structure","BAL","Balance Sheet","B0059","DUMMY VAT ACCOUNT","99-NONBV","Capital, Balance Sheet and Control","50L","Debtors","9359","VAT only invoices","3573779","202009",01/09/2019 00:00:00,0,"47846","Letting Agents","REDACTED DATA","THEORI HOUSING MANAGEMENT SERVICES LIMITED","4048450","http://opencorporates.com/companies/gb/4048450","773898950"
"London Borough of Redbridge","http://opendatacommunities.org/doc/london-borough-council/redbridge","9BNONBVO","Outside the BVACOP Objective Structure","9CNONBVO","Outside the BVACOP Objective Structure","BAL","Balance Sheet","B0059","DUMMY VAT ACCOUNT","99-NONBV","Capital, Balance Sheet and Control","50L","Debtors","9359","VAT only invoices","3573779","202009",01/09/2019 00:00:00,0,"47846","Letting Agents","REDACTED DATA","THEORI HOUSING MANAGEMENT SERVICES LIMITED","4048450","http://opencorporates.com/companies/gb/4048450","773898950"
"London Borough of Redbridge","http://opendatacommunities.org/doc/london-borough-council/redbridge","9BNONBVO","Outside the BVACOP Objective Structure","9CNONBVO","Outside the BVACOP Objective Structure","BAL","Balance Sheet","B0059","DUMMY VAT ACCOUNT","99-NONBV","Capital, Balance Sheet and Control","50L","Debtors","9359","VAT only invoices","3573776","202009",01/06/2019 00:00:00,0,"47846","Letting Agents","REDACTED DATA","THEORI HOUSING MANAGEMENT SERVICES LIMITED","4048450","http://opencorporates.com/companies/gb/4048450","773898950"
"London Borough of Redbridge","http://opendatacommunities.org/doc/london-borough-council/redbridge","9BNONBVO","Outside the BVACOP Objective Structure","9CNONBVO","Outside the BVACOP Objective Structure","BAL","Balance Sheet","B0059","DUMMY VAT ACCOUNT","99-NONBV","Capital, Balance Sheet and Control","50L","Debtors","9359","VAT only invoices","3573776","202009",01/06/2019 00:00:00,0,"47846","Letting Agents","REDACTED DATA","THEORI HOUSING MANAGEMENT SERVICES LIMITED","4048450","http://opencorporates.com/companies/gb/4048450","773898950"
"London Borough of Redbridge","http://opendatacommunities.org/doc/london-borough-council/redbridge","9BNONBVO","Outside the BVACOP Objective Structure","9CNONBVO","Outside the BVACOP Objective Structure","BAL","Balance Sheet","B0059","DUMMY VAT ACCOUNT","99-NONBV","Capital, Balance Sheet and Control","50L","Debtors","9359","VAT only invoices","3573777","202009",01/07/2019 00:00:00,0,"47846","Letting Agents","REDACTED DATA","THEORI HOUSING MANAGEMENT SERVICES LIMITED","4048450","http://opencorporates.com/companies/gb/4048450","773898950"
"London Borough of Redbridge","http://opendatacommunities.org/doc/london-borough-council/redbridge","9BNONBVO","Outside the BVACOP Objective Structure","9CNONBVO","Outside the BVACOP Objective Structure","BAL","Balance Sheet","B0059","DUMMY VAT ACCOUNT","99-NONBV","Capital, Balance Sheet and Control","50L","Debtors","9359","VAT only invoices","3573777","202009",01/07/2019 00:00:00,0,"47846","Letting Agents","REDACTED DATA","THEORI HOUSING MANAGEMENT SERVICES LIMITED","4048450","http://opencorporates.com/companies/gb/4048450","773898950"
"London Borough of Redbridge","http://opendatacommunities.org/doc/london-borough-council/redbridge","6BADULTSOCIA","Adult Social Care","6COTHADSERV","Other Adult Services","REV","Revenue","R4447","Older People - Wanstead & Woodford","05-THIRD","Third Party Payments","05H","Private contractors","6902","Respite Care","91105382","202009",26/11/2019 00:00:00,616,"64710","Residential Care Homes","REDACTED DATA","ACER HEALTHCARE OPERATIONS (CHESTNUT COURT CARE HOME)","10248411","http://opencorporates.com/companies/gb/10248411",""
"London Borough of Redbridge","http://opendatacommunities.org/doc/london-borough-council/redbridge","6BADULTSOCIA","Adult Social Care","6COTHADSERV","Other Adult Services","REV","Revenue","R4447","Older People - Wanstead & Woodford","05-THIRD","Third Party Payments","05H","Private contractors","6909","Nursing Homes","91105382","202009",26/11/2019 00:00:00,5456,"64710","Residential Care Homes","REDACTED DATA","ACER HEALTHCARE OPERATIONS (CHESTNUT COURT CARE HOME)","10248411","http://opencorporates.com/companies/gb/10248411",""
"London Borough of Redbridge","http://opendatacommunities.org/doc/london-borough-council/redbridge","9BNONBVO","Outside the BVACOP Objective Structure","9CNONBVO","Outside the BVACOP Objective Structure","BAL","Balance Sheet","B0059","DUMMY VAT ACCOUNT","99-NONBV","Capital, Balance Sheet and Control","50L","Debtors","9359","VAT only invoices","3573774","202009",01/04/2019 00:00:00,0,"47846","Letting Agents","REDACTED DATA","THEORI HOUSING MANAGEMENT SERVICES LIMITED","4048450","http://opencorporates.com/companies/gb/4048450","773898950"
"London Borough of Redbridge","http://opendatacommunities.org/doc/london-borough-council/redbridge","9BNONBVO","Outside the BVACOP Objective Structure","9CNONBVO","Outside the BVACOP Objective Structure","BAL","Balance Sheet","B0059","DUMMY VAT ACCOUNT","99-NONBV","Capital, Balance Sheet and Control","50L","Debtors","9359","VAT only invoices","3573774","202009",01/04/2019 00:00:00,0,"47846","Letting Agents","REDACTED DATA","THEORI HOUSING MANAGEMENT SERVICES LIMITED","4048450","http://opencorporates.com/companies/gb/4048450","773898950"
"London Borough of Redbridge","http://opendatacommunities.org/doc/london-borough-council/redbridge","3BNONSCHFUND","Non-School Funding","3CNONSCH","Non Schools","REV","Revenue","R3962","Early Years - 3 and 4 Year Olds","05-THIRD","Third Party Payments","05A","Independent units within the council","6517","Non-Maintained Schools","3574025","202009",16/12/2019 00:00:00,6027.19,"59760","Playgroups, Nurseries and Creches","REDACTED DATA","LITTLE KIDSOWN LTD","8805936","http://opencorporates.com/companies/gb/8805936",""
"London Borough of Redbridge","http://opendatacommunities.org/doc/london-borough-council/redbridge","6BADULTSOCIA","Adult Social Care","6CLONGT65","Long-Term Support 65+ Years","REV","Revenue","R4440","Learning Disabilities - Seven Kings","06-TRANSFER","Transfer Payments","06B","Social Services Clients","7066","Supported Living","91105610","202009",26/11/2019 00:00:00,6026,"64710","Residential Care Homes","REDACTED DATA","UK CARE SERVICES (SUPPORTED LIVING) LTD","10645547","http://opencorporates.com/companies/gb/10645547",""
"London Borough of Redbridge","http://opendatacommunities.org/doc/london-borough-council/redbridge","6BADULTSOCIA","Adult Social Care","6CADMENHLTH","Adults Under 65 with Mental Health Needs","REV","Revenue","R4190","MH - Residential Care","05-THIRD","Third Party Payments","05F","Voluntary associations","6802","Residential Homes","91105565","202009",26/11/2019 00:00:00,6000,"64710","Residential Care Homes","REDACTED DATA","TEALK SERVICES LTD (THE BEECHES- ILFORD)","4203171","http://opencorporates.com/companies/gb/4203171",""
"London Borough of Redbridge","http://opendatacommunities.org/doc/london-borough-council/redbridge","5BGFHOUSING","General Fund Housing","5CHOUSBENADM","Housing Benefits Administration","REV","Revenue","R5771","Benefits Administration","04-SUPPLIES","Supplies And Services","04H","Grants and subscriptions","5954","Professional Fees","60418045","202008",11/11/2019 00:00:00,5000,"12100","Business and Management Consultants","REDACTED DATA","POLICY IN PRACTICE LTD","7042993","http://opencorporates.com/companies/gb/7042993","983828759"
"London Borough of Redbridge","http://opendatacommunities.org/doc/london-borough-council/redbridge","3BLEACENTFND","LEA Centrally Held School Funds","3CSCHSTRATMG","Schools Strategic Management","REV","Revenue","R3040","Outdoor Education Advisor","01-EMPLOYEES","Employees","01B","Indirect employee expenses","2403","External Training","60420973","202009",14/11/2019 00:00:00,4999,"45587","Internet Services","REDACTED DATA","EDUFOCUS LTD","5987706","http://opencorporates.com/companies/gb/5987706","894053602"
"London Borough of Redbridge","http://opendatacommunities.org/doc/london-borough-council/redbridge","6BSOCIALSERV","Social Services","6CCHILLOOKED","Children Looked After","REV","Revenue","R2127","Fostering and Adoption","04-SUPPLIES","Supplies And Services","04H","Grants and subscriptions","5955","Fees","60419348","202008",07/12/2018 00:00:00,4995.54,"1880","Adoption and Fostering","REDACTED DATA","PAC-UK LIMITED","264713","http://opencorporates.com/companies/gb/264713","221410331"
"London Borough of Redbridge","http://opendatacommunities.org/doc/london-borough-council/redbridge","3BNONSCHFUND","Non-School Funding","6CCHILLOOKED","Children Looked After","REV","Revenue","R2238","Looked After Children Placements LA","05-THIRD","Third Party Payments","05H","Private contractors","6917","Fostering Costs - Agency","60419854","202009",01/12/2019 00:00:00,5978.57,"1880","Adoption and Fostering","REDACTED DATA","BRIGHTER FUTURES FOSTER CARE LTD","8013526237","http://opencorporates.com/companies/gb/8013526237","6846257"
"London Borough of Redbridge","http://opendatacommunities.org/doc/london-borough-council/redbridge","3BNONSCHFUND","Non-School Funding","3CNONSCH","Non Schools","REV","Revenue","R3962","Early Years - 3 and 4 Year Olds","05-THIRD","Third Party Payments","05A","Independent units within the council","6517","Non-Maintained Schools","3573959","202009",16/12/2019 00:00:00,5975.23,"59760","Playgroups, Nurseries and Creches","REDACTED DATA","OAKFIELD PRE-SCH PLAYGROUP","",,""
"London Borough of Redbridge","http://opendatacommunities.org/doc/london-borough-council/redbridge","6BADULTSOCIA","Adult Social Care","6CLONGT1864","Long-Term Support 18 - 64 Years","REV","Revenue","R4443","Learning Disabilities - Fairlop","06-TRANSFER","Transfer Payments","06B","Social Services Clients","7066","Supported Living","91105546","202009",26/11/2019 00:00:00,5974.64,"1266","Accommodation Agencies - Residential","REDACTED DATA","SPENCER & ARLINGTON LTD","4377774","http://opencorporates.com/companies/gb/4377774",""
"London Borough of Redbridge","http://opendatacommunities.org/doc/london-borough-council/redbridge","4BPUBLICTRAN","Public Transport","4CPARKING","Parking Services","REV","Revenue","R7038","Parking Permits","04-SUPPLIES","Supplies And Services","04D","Printing, stationery and general office expenses","5710","Stationery","60420769","202009",16/12/2019 00:00:00,4978.68,"61820","Printers' Services and Supplies","REDACTED DATA","TABBERS LIMITED","",,"573360734"
"London Borough of Redbridge","http://opendatacommunities.org/doc/london-borough-council/redbridge","6BSOCIALSERV","Social Services","6CCHILLOOKED","Children Looked After","REV","Revenue","R2117","SEN and CD Care and Support Packages Social Care","06-TRANSFER","Transfer Payments","06B","Social Services Clients","7053","Direct Payments","3574913","202009",20/12/2019 00:00:00,5960.5,"56800","Payroll Services","REDACTED DATA","DAVID HOWARD FUNDING ACCOUNT","3345093","http://opencorporates.com/companies/gb/3345093","788554956"
"London Borough of Redbridge","http://opendatacommunities.org/doc/london-borough-council/redbridge","1BCENTRALPUB","Central Services to the Public","1CTRADSURDEF","Trading Account Surpluses & Deficits","REV","Revenue","R5770","Income Assessment","04-SUPPLIES","Supplies And Services","04F","Communications and computing","5858","Phones","3572018","202009",03/12/2019 00:00:00,12.5,"51500","Mobile Phones - Personal Numbers","REDACTED DATA","EE LTD (AIRTIME PAYMENTS)","2382161","http://opencorporates.com/companies/gb/2382161","771592016"
"London Borough of Redbridge","http://opendatacommunities.org/doc/london-borough-council/redbridge","1BCENTRALPUB","Central Services to the Public","1CTRADSURDEF","Trading Account Surpluses & Deficits","REV","Revenue","R5770","Income Assessment","04-SUPPLIES","Supplies And Services","04F","Communications and computing","5858","Phones","3572018","202009",03/12/2019 00:00:00,12.5,"51500","Mobile Phones - Personal Numbers","REDACTED DATA","EE LTD (AIRTIME PAYMENTS)","2382161","http://opencorporates.com/companies/gb/2382161","771592016"
"London Borough of Redbridge","http://opendatacommunities.org/doc/london-borough-council/redbridge","1BCENTRALPUB","Central Services to the Public","1CTRADSURDEF","Trading Account Surpluses & Deficits","REV","Revenue","R6755","Emergency Plan Stratgy","04-SUPPLIES","Supplies And Services","04F","Communications and computing","5858","Phones","3572018","202009",03/12/2019 00:00:00,12.5,"51500","Mobile Phones - Personal Numbers","REDACTED DATA","EE LTD (AIRTIME PAYMENTS)","2382161","http://opencorporates.com/companies/gb/2382161","771592016"
"London Borough of Redbridge","http://opendatacommunities.org/doc/london-borough-council/redbridge","1BCORPDEM","Corporate & Democratic Core","1CCORPMGT","Corporate Management","REV","Revenue","R0029","Chief Executive","04-SUPPLIES","Supplies And Services","04F","Communications and computing","5858","Phones","3572018","202009",03/12/2019 00:00:00,20,"51500","Mobile Phones - Personal Numbers","REDACTED DATA","EE LTD (AIRTIME PAYMENTS)","2382161","http://opencorporates.com/companies/gb/2382161","771592016"
"London Borough of Redbridge","http://opendatacommunities.org/doc/london-borough-council/redbridge","1BOTHEROPI&E","Other Operating Income & Expenditure","1CTRADSURDEF","Trading Account Surpluses & Deficits","REV","Revenue","R7207","Capital Team Staffing","04-SUPPLIES","Supplies And Services","04F","Communications and computing","5858","Phones","3572018","202009",03/12/2019 00:00:00,12.5,"51500","Mobile Phones - Personal Numbers","REDACTED DATA","EE LTD (AIRTIME PAYMENTS)","2382161","http://opencorporates.com/companies/gb/2382161","771592016"
"London Borough of Redbridge","http://opendatacommunities.org/doc/london-borough-council/redbridge","1BOTHEROPI&E","Other Operating Income & Expenditure","1CTRADSURDEF","Trading Account Surpluses & Deficits","REV","Revenue","R7207","Capital Team Staffing","04-SUPPLIES","Supplies And Services","04F","Communications and computing","5858","Phones","3572018","202009",03/12/2019 00:00:00,12.5,"51500","Mobile Phones - Personal Numbers","REDACTED DATA","EE LTD (AIRTIME PAYMENTS)","2382161","http://opencorporates.com/companies/gb/2382161","771592016"
"London Borough of Redbridge","http://opendatacommunities.org/doc/london-borough-council/redbridge","1BOTHEROPI&E","Other Operating Income & Expenditure","1CTRADSURDEF","Trading Account Surpluses & Deficits","REV","Revenue","R7207","Capital Team Staffing","04-SUPPLIES","Supplies And Services","04F","Communications and computing","5858","Phones","3572018","202009",03/12/2019 00:00:00,12.5,"51500","Mobile Phones - Personal Numbers","REDACTED DATA","EE LTD (AIRTIME PAYMENTS)","2382161","http://opencorporates.com/companies/gb/2382161","771592016"
"London Borough of Redbridge","http://opendatacommunities.org/doc/london-borough-council/redbridge","1BOTHEROPI&E","Other Operating Income & Expenditure","1CTRADSURDEF","Trading Account Surpluses & Deficits","REV","Revenue","R9252","IT Applications","04-SUPPLIES","Supplies And Services","04F","Communications and computing","5858","Phones","3572018","202009",03/12/2019 00:00:00,15.5,"51500","Mobile Phones - Personal Numbers","REDACTED DATA","EE LTD (AIRTIME PAYMENTS)","2382161","http://opencorporates.com/companies/gb/2382161","771592016"
"London Borough of Redbridge","http://opendatacommunities.org/doc/london-borough-council/redbridge","1BOTHEROPI&E","Other Operating Income & Expenditure","1CTRADSURDEF","Trading Account Surpluses & Deficits","REV","Revenue","R9252","IT Applications","04-SUPPLIES","Supplies And Services","04F","Communications and computing","5858","Phones","3572018","202009",03/12/2019 00:00:00,20,"51500","Mobile Phones - Personal Numbers","REDACTED DATA","EE LTD (AIRTIME PAYMENTS)","2382161","http://opencorporates.com/companies/gb/2382161","771592016"
"London Borough of Redbridge","http://opendatacommunities.org/doc/london-borough-council/redbridge","1BOTHEROPI&E","Other Operating Income & Expenditure","1CTRADSURDEF","Trading Account Surpluses & Deficits","REV","Revenue","R9252","IT Applications","04-SUPPLIES","Supplies And Services","04F","Communications and computing","5858","Phones","3572018","202009",03/12/2019 00:00:00,12.5,"51500","Mobile Phones - Personal Numbers","REDACTED DATA","EE LTD (AIRTIME PAYMENTS)","2382161","http://opencorporates.com/companies/gb/2382161","771592016"
"London Borough of Redbridge","http://opendatacommunities.org/doc/london-borough-council/redbridge","1BOTHEROPI&E","Other Operating Income & Expenditure","1CTRADSURDEF","Trading Account Surpluses & Deficits","REV","Revenue","R9252","IT Applications","04-SUPPLIES","Supplies And Services","04F","Communications and computing","5858","Phones","3572018","202009",03/12/2019 00:00:00,15.5,"51500","Mobile Phones - Personal Numbers","REDACTED DATA","EE LTD (AIRTIME PAYMENTS)","2382161","http://opencorporates.com/companies/gb/2382161","771592016"
"London Borough of Redbridge","http://opendatacommunities.org/doc/london-borough-council/redbridge","1BOTHEROPI&E","Other Operating Income & Expenditure","1CTRADSURDEF","Trading Account Surpluses & Deficits","REV","Revenue","R9252","IT Applications","04-SUPPLIES","Supplies And Services","04F","Communications and computing","5858","Phones","3572018","202009",03/12/2019 00:00:00,30,"51500","Mobile Phones - Personal Numbers","REDACTED DATA","EE LTD (AIRTIME PAYMENTS)","2382161","http://opencorporates.com/companies/gb/2382161","771592016"
"London Borough of Redbridge","http://opendatacommunities.org/doc/london-borough-council/redbridge","1BOTHEROPI&E","Other Operating Income & Expenditure","1CTRADSURDEF","Trading Account Surpluses & Deficits","REV","Revenue","R9252","IT Applications","04-SUPPLIES","Supplies And Services","04F","Communications and computing","5858","Phones","3572018","202009",03/12/2019 00:00:00,30,"51500","Mobile Phones - Personal Numbers","REDACTED DATA","EE LTD (AIRTIME PAYMENTS)","2382161","http://opencorporates.com/companies/gb/2382161","771592016"
"London Borough of Redbridge","http://opendatacommunities.org/doc/london-borough-council/redbridge","1BOTHEROPI&E","Other Operating Income & Expenditure","1CTRADSURDEF","Trading Account Surpluses & Deficits","REV","Revenue","R9252","IT Applications","04-SUPPLIES","Supplies And Services","04F","Communications and computing","5858","Phones","3572018","202009",03/12/2019 00:00:00,12.5,"51500","Mobile Phones - Personal Numbers","REDACTED DATA","EE LTD (AIRTIME PAYMENTS)","2382161","http://opencorporates.com/companies/gb/2382161","771592016"
"London Borough of Redbridge","http://opendatacommunities.org/doc/london-borough-council/redbridge","1BOTHEROPI&E","Other Operating Income & Expenditure","1CTRADSURDEF","Trading Account Surpluses & Deficits","REV","Revenue","R9352","Legal Supplies & Services","04-SUPPLIES","Supplies And Services","04F","Communications and computing","5858","Phones","3572018","202009",03/12/2019 00:00:00,12.5,"51500","Mobile Phones - Personal Numbers","REDACTED DATA","EE LTD (AIRTIME PAYMENTS)","2382161","http://opencorporates.com/companies/gb/2382161","771592016"
"London Borough of Redbridge","http://opendatacommunities.org/doc/london-borough-council/redbridge","1BOTHEROPI&E","Other Operating Income & Expenditure","1CTRADSURDEF","Trading Account Surpluses & Deficits","REV","Revenue","R9460","Pay and Contracts","04-SUPPLIES","Supplies And Services","04F","Communications and computing","5858","Phones","3572018","202009",03/12/2019 00:00:00,12.5,"51500","Mobile Phones - Personal Numbers","REDACTED DATA","EE LTD (AIRTIME PAYMENTS)","2382161","http://opencorporates.com/companies/gb/2382161","771592016"
"London Borough of Redbridge","http://opendatacommunities.org/doc/london-borough-council/redbridge","2BBUILDCONT","Building Control","","","REV","Revenue","R6502","Enforcement and Appeals","04-SUPPLIES","Supplies And Services","04F","Communications and computing","5858","Phones","3572018","202009",03/12/2019 00:00:00,12,"51500","Mobile Phones - Personal Numbers","REDACTED DATA","EE LTD (AIRTIME PAYMENTS)","2382161","http://opencorporates.com/companies/gb/2382161","771592016"
"London Borough of Redbridge","http://opendatacommunities.org/doc/london-borough-council/redbridge","2BBUILDCONT","Building Control","","","REV","Revenue","R6503","Building Control Chargeable Trading Account","04-SUPPLIES","Supplies And Services","04F","Communications and computing","5858","Phones","3572018","202009",03/12/2019 00:00:00,12,"51500","Mobile Phones - Personal Numbers","REDACTED DATA","EE LTD (AIRTIME PAYMENTS)","2382161","http://opencorporates.com/companies/gb/2382161","771592016"
"London Borough of Redbridge","http://opendatacommunities.org/doc/london-borough-council/redbridge","2BBUILDCONT","Building Control","","","REV","Revenue","R6503","Building Control Chargeable Trading Account","04-SUPPLIES","Supplies And Services","04F","Communications and computing","5858","Phones","3572018","202009",03/12/2019 00:00:00,12,"51500","Mobile Phones - Personal Numbers","REDACTED DATA","EE LTD (AIRTIME PAYMENTS)","2382161","http://opencorporates.com/companies/gb/2382161","771592016"
"London Borough of Redbridge","http://opendatacommunities.org/doc/london-borough-council/redbridge","2BBUILDCONT","Building Control","","","REV","Revenue","R6503","Building Control Chargeable Trading Account","04-SUPPLIES","Supplies And Services","04F","Communications and computing","5858","Phones","3572018","202009",03/12/2019 00:00:00,12,"51500","Mobile Phones - Personal Numbers","REDACTED DATA","EE LTD (AIRTIME PAYMENTS)","2382161","http://opencorporates.com/companies/gb/2382161","771592016"
"London Borough of Redbridge","http://opendatacommunities.org/doc/london-borough-council/redbridge","2BBUILDCONT","Building Control","","","REV","Revenue","R6503","Building Control Chargeable Trading Account","04-SUPPLIES","Supplies And Services","04F","Communications and computing","5858","Phones","3572018","202009",03/12/2019 00:00:00,12,"51500","Mobile Phones - Personal Numbers","REDACTED DATA","EE LTD (AIRTIME PAYMENTS)","2382161","http://opencorporates.com/companies/gb/2382161","771592016"
"London Borough of Redbridge","http://opendatacommunities.org/doc/london-borough-council/redbridge","2BBUILDCONT","Building Control","","","REV","Revenue","R6503","Building Control Chargeable Trading Account","04-SUPPLIES","Supplies And Services","04F","Communications and computing","5858","Phones","3572018","202009",03/12/2019 00:00:00,12,"51500","Mobile Phones - Personal Numbers","REDACTED DATA","EE LTD (AIRTIME PAYMENTS)","2382161","http://opencorporates.com/companies/gb/2382161","771592016"
"London Borough of Redbridge","http://opendatacommunities.org/doc/london-borough-council/redbridge","2BBUILDCONT","Building Control","","","REV","Revenue","R6503","Building Control Chargeable Trading Account","04-SUPPLIES","Supplies And Services","04F","Communications and computing","5858","Phones","3572018","202009",03/12/2019 00:00:00,12,"51500","Mobile Phones - Personal Numbers","REDACTED DATA","EE LTD (AIRTIME PAYMENTS)","2382161","http://opencorporates.com/companies/gb/2382161","771592016"
"London Borough of Redbridge","http://opendatacommunities.org/doc/london-borough-council/redbridge","2BBUSISUP","Business Support","","","REV","Revenue","R6534","P & BC General Services","04-SUPPLIES","Supplies And Services","04F","Communications and computing","5858","Phones","3572018","202009",03/12/2019 00:00:00,12,"51500","Mobile Phones - Personal Numbers","REDACTED DATA","EE LTD (AIRTIME PAYMENTS)","2382161","http://opencorporates.com/companies/gb/2382161","771592016"
"London Borough of Redbridge","http://opendatacommunities.org/doc/london-borough-council/redbridge","2BBUSISUP","Business Support","","","REV","Revenue","R6534","P & BC General Services","04-SUPPLIES","Supplies And Services","04F","Communications and computing","5858","Phones","3572018","202009",03/12/2019 00:00:00,12,"51500","Mobile Phones - Personal Numbers","REDACTED DATA","EE LTD (AIRTIME PAYMENTS)","2382161","http://opencorporates.com/companies/gb/2382161","771592016"
"London Borough of Redbridge","http://opendatacommunities.org/doc/london-borough-council/redbridge","2BBUSISUP","Business Support","","","REV","Revenue","R6534","P & BC General Services","04-SUPPLIES","Supplies And Services","04F","Communications and computing","5858","Phones","3572018","202009",03/12/2019 00:00:00,12,"51500","Mobile Phones - Personal Numbers","REDACTED DATA","EE LTD (AIRTIME PAYMENTS)","2382161","http://opencorporates.com/companies/gb/2382161","771592016"
"London Borough of Redbridge","http://opendatacommunities.org/doc/london-borough-council/redbridge","2BBUSISUP","Business Support","","","REV","Revenue","R6534","P & BC General Services","04-SUPPLIES","Supplies And Services","04F","Communications and computing","5858","Phones","3572018","202009",03/12/2019 00:00:00,15.5,"51500","Mobile Phones - Personal Numbers","REDACTED DATA","EE LTD (AIRTIME PAYMENTS)","2382161","http://opencorporates.com/companies/gb/2382161","771592016"
"London Borough of Redbridge","http://opendatacommunities.org/doc/london-borough-council/redbridge","2BBUSISUP","Business Support","","","REV","Revenue","R6534","P & BC General Services","04-SUPPLIES","Supplies And Services","04F","Communications and computing","5858","Phones","3572018","202009",03/12/2019 00:00:00,12,"51500","Mobile Phones - Personal Numbers","REDACTED DATA","EE LTD (AIRTIME PAYMENTS)","2382161","http://opencorporates.com/companies/gb/2382161","771592016"
"London Borough of Redbridge","http://opendatacommunities.org/doc/london-borough-council/redbridge","2BBUSISUP","Business Support","","","REV","Revenue","R6534","P & BC General Services","04-SUPPLIES","Supplies And Services","04F","Communications and computing","5858","Phones","3572018","202009",03/12/2019 00:00:00,12,"51500","Mobile Phones - Personal Numbers","REDACTED DATA","EE LTD (AIRTIME PAYMENTS)","2382161","http://opencorporates.com/companies/gb/2382161","771592016"
"London Borough of Redbridge","http://opendatacommunities.org/doc/london-borough-council/redbridge","2BBUSISUP","Business Support","","","REV","Revenue","R6534","P & BC General Services","04-SUPPLIES","Supplies And Services","04F","Communications and computing","5858","Phones","3572018","202009",03/12/2019 00:00:00,15.5,"51500","Mobile Phones - Personal Numbers","REDACTED DATA","EE LTD (AIRTIME PAYMENTS)","2382161","http://opencorporates.com/companies/gb/2382161","771592016"
"London Borough of Redbridge","http://opendatacommunities.org/doc/london-borough-council/redbridge","2BBUSISUP","Business Support","","","REV","Revenue","R6534","P & BC General Services","04-SUPPLIES","Supplies And Services","04F","Communications and computing","5858","Phones","3572018","202009",03/12/2019 00:00:00,12,"51500","Mobile Phones - Personal Numbers","REDACTED DATA","EE LTD (AIRTIME PAYMENTS)","2382161","http://opencorporates.com/companies/gb/2382161","771592016"
"London Borough of Redbridge","http://opendatacommunities.org/doc/london-borough-council/redbridge","2BBUSISUP","Business Support","","","REV","Revenue","R6534","P & BC General Services","04-SUPPLIES","Supplies And Services","04F","Communications and computing","5858","Phones","3572018","202009",03/12/2019 00:00:00,12,"51500","Mobile Phones - Personal Numbers","REDACTED DATA","EE LTD (AIRTIME PAYMENTS)","2382161","http://opencorporates.com/companies/gb/2382161","771592016"
"London Borough of Redbridge","http://opendatacommunities.org/doc/london-borough-council/redbridge","2BBUSISUP","Business Support","","","REV","Revenue","R6534","P & BC General Services","04-SUPPLIES","Supplies And Services","04F","Communications and computing","5858","Phones","3572018","202009",03/12/2019 00:00:00,15.5,"51500","Mobile Phones - Personal Numbers","REDACTED DATA","EE LTD (AIRTIME PAYMENTS)","2382161","http://opencorporates.com/companies/gb/2382161","771592016"
"London Borough of Redbridge","http://opendatacommunities.org/doc/london-borough-council/redbridge","2BDEVCON","Development Control","","","REV","Revenue","R6510","Development Management","04-SUPPLIES","Supplies And Services","04F","Communications and computing","5858","Phones","3572018","202009",03/12/2019 00:00:00,12,"51500","Mobile Phones - Personal Numbers","REDACTED DATA","EE LTD (AIRTIME PAYMENTS)","2382161","http://opencorporates.com/companies/gb/2382161","771592016"
"London Borough of Redbridge","http://opendatacommunities.org/doc/london-borough-council/redbridge","2BDEVCON","Development Control","","","REV","Revenue","R6510","Development Management","04-SUPPLIES","Supplies And Services","04F","Communications and computing","5858","Phones","3572018","202009",03/12/2019 00:00:00,12,"51500","Mobile Phones - Personal Numbers","REDACTED DATA","EE LTD (AIRTIME PAYMENTS)","2382161","http://opencorporates.com/companies/gb/2382161","771592016"
"London Borough of Redbridge","http://opendatacommunities.org/doc/london-borough-council/redbridge","2BDEVCON","Development Control","","","REV","Revenue","R6510","Development Management","04-SUPPLIES","Supplies And Services","04F","Communications and computing","5858","Phones","3572018","202009",03/12/2019 00:00:00,12,"51500","Mobile Phones - Personal Numbers","REDACTED DATA","EE LTD (AIRTIME PAYMENTS)","2382161","http://opencorporates.com/companies/gb/2382161","771592016"
"London Borough of Redbridge","http://opendatacommunities.org/doc/london-borough-council/redbridge","2BECODEV","Economic Development","","","REV","Revenue","R9866","Employment and Skills Regen","04-SUPPLIES","Supplies And Services","04F","Communications and computing","5858","Phones","3572018","202009",03/12/2019 00:00:00,12.5,"51500","Mobile Phones - Personal Numbers","REDACTED DATA","EE LTD (AIRTIME PAYMENTS)","2382161","http://opencorporates.com/companies/gb/2382161","771592016"
"London Borough of Redbridge","http://opendatacommunities.org/doc/london-borough-council/redbridge","2BECODEV","Economic Development","","","REV","Revenue","R9866","Employment and Skills Regen","04-SUPPLIES","Supplies And Services","04F","Communications and computing","5858","Phones","3572018","202009",03/12/2019 00:00:00,12.5,"51500","Mobile Phones - Personal Numbers","REDACTED DATA","EE LTD (AIRTIME PAYMENTS)","2382161","http://opencorporates.com/companies/gb/2382161","771592016"
"London Borough of Redbridge","http://opendatacommunities.org/doc/london-borough-council/redbridge","2BECODEV","Economic Development","","","REV","Revenue","R9866","Employment and Skills Regen","04-SUPPLIES","Supplies And Services","04F","Communications and computing","5858","Phones","3572018","202009",03/12/2019 00:00:00,12.5,"51500","Mobile Phones - Personal Numbers","REDACTED DATA","EE LTD (AIRTIME PAYMENTS)","2382161","http://opencorporates.com/companies/gb/2382161","771592016"
"London Borough of Redbridge","http://opendatacommunities.org/doc/london-borough-council/redbridge","2BECODEV","Economic Development","","","REV","Revenue","R9866","Employment and Skills Regen","04-SUPPLIES","Supplies And Services","04F","Communications and computing","5858","Phones","3572018","202009",03/12/2019 00:00:00,12.5,"51500","Mobile Phones - Personal Numbers","REDACTED DATA","EE LTD (AIRTIME PAYMENTS)","2382161","http://opencorporates.com/companies/gb/2382161","771592016"
"London Borough of Redbridge","http://opendatacommunities.org/doc/london-borough-council/redbridge","2BENVIRONMEN","Environmental Services","2CCOMSAFCRIM","Community Safety (Crime Reduction)","REV","Revenue","R6753","CCTV","04-SUPPLIES","Supplies And Services","04F","Communications and computing","5858","Phones","3572018","202009",03/12/2019 00:00:00,24.5,"51500","Mobile Phones - Personal Numbers","REDACTED DATA","EE LTD (AIRTIME PAYMENTS)","2382161","http://opencorporates.com/companies/gb/2382161","771592016"
"London Borough of Redbridge","http://opendatacommunities.org/doc/london-borough-council/redbridge","2BENVIRONMEN","Environmental Services","2CCOMSAFCRIM","Community Safety (Crime Reduction)","REV","Revenue","R6753","CCTV","04-SUPPLIES","Supplies And Services","04F","Communications and computing","5858","Phones","3572018","202009",03/12/2019 00:00:00,24.5,"51500","Mobile Phones - Personal Numbers","REDACTED DATA","EE LTD (AIRTIME PAYMENTS)","2382161","http://opencorporates.com/companies/gb/2382161","771592016"
"London Borough of Redbridge","http://opendatacommunities.org/doc/london-borough-council/redbridge","2BENVIRONMEN","Environmental Services","2CCOMSAFCRIM","Community Safety (Crime Reduction)","REV","Revenue","R6753","CCTV","04-SUPPLIES","Supplies And Services","04F","Communications and computing","5858","Phones","3572018","202009",03/12/2019 00:00:00,69,"51500","Mobile Phones - Personal Numbers","REDACTED DATA","EE LTD (AIRTIME PAYMENTS)","2382161","http://opencorporates.com/companies/gb/2382161","771592016"
"London Borough of Redbridge","http://opendatacommunities.org/doc/london-borough-council/redbridge","2BENVIRONMEN","Environmental Services","2CCOMSAFCRIM","Community Safety (Crime Reduction)","REV","Revenue","R6753","CCTV","04-SUPPLIES","Supplies And Services","04F","Communications and computing","5858","Phones","3572018","202009",03/12/2019 00:00:00,69,"51500","Mobile Phones - Personal Numbers","REDACTED DATA","EE LTD (AIRTIME PAYMENTS)","2382161","http://opencorporates.com/companies/gb/2382161","771592016"
"London Borough of Redbridge","http://opendatacommunities.org/doc/london-borough-council/redbridge","2BENVIRONMEN","Environmental Services","2CCOMSAFCRIM","Community Safety (Crime Reduction)","REV","Revenue","R6753","CCTV","04-SUPPLIES","Supplies And Services","04F","Communications and computing","5858","Phones","3572018","202009",03/12/2019 00:00:00,69,"51500","Mobile Phones - Personal Numbers","REDACTED DATA","EE LTD (AIRTIME PAYMENTS)","2382161","http://opencorporates.com/companies/gb/2382161","771592016"
"London Borough of Redbridge","http://opendatacommunities.org/doc/london-borough-council/redbridge","2BENVIRONMEN","Environmental Services","2CCOMSAFCRIM","Community Safety (Crime Reduction)","REV","Revenue","R6753","CCTV","04-SUPPLIES","Supplies And Services","04F","Communications and computing","5858","Phones","3572018","202009",03/12/2019 00:00:00,69,"51500","Mobile Phones - Personal Numbers","REDACTED DATA","EE LTD (AIRTIME PAYMENTS)","2382161","http://opencorporates.com/companies/gb/2382161","771592016"
"London Borough of Redbridge","http://opendatacommunities.org/doc/london-borough-council/redbridge","2BENVIRONMEN","Environmental Services","2CCOMSAFCRIM","Community Safety (Crime Reduction)","REV","Revenue","R6753","CCTV","04-SUPPLIES","Supplies And Services","04F","Communications and computing","5858","Phones","3572018","202009",03/12/2019 00:00:00,24.5,"51500","Mobile Phones - Personal Numbers","REDACTED DATA","EE LTD (AIRTIME PAYMENTS)","2382161","http://opencorporates.com/companies/gb/2382161","771592016"
"London Borough of Redbridge","http://opendatacommunities.org/doc/london-borough-council/redbridge","2BENVIRONMEN","Environmental Services","2CCOMSAFCRIM","Community Safety (Crime Reduction)","REV","Revenue","R6753","CCTV","04-SUPPLIES","Supplies And Services","04F","Communications and computing","5858","Phones","3572018","202009",03/12/2019 00:00:00,24.5,"51500","Mobile Phones - Personal Numbers","REDACTED DATA","EE LTD (AIRTIME PAYMENTS)","2382161","http://opencorporates.com/companies/gb/2382161","771592016"
"London Borough of Redbridge","http://opendatacommunities.org/doc/london-borough-council/redbridge","2BENVIRONMEN","Environmental Services","2CCOMSAFCRIM","Community Safety (Crime Reduction)","REV","Revenue","R6753","CCTV","04-SUPPLIES","Supplies And Services","04F","Communications and computing","5858","Phones","3572018","202009",03/12/2019 00:00:00,69,"51500","Mobile Phones - Personal Numbers","REDACTED DATA","EE LTD (AIRTIME PAYMENTS)","2382161","http://opencorporates.com/companies/gb/2382161","771592016"
"London Borough of Redbridge","http://opendatacommunities.org/doc/london-borough-council/redbridge","2BENVIRONMEN","Environmental Services","2CCOMSAFCRIM","Community Safety (Crime Reduction)","REV","Revenue","R6753","CCTV","04-SUPPLIES","Supplies And Services","04F","Communications and computing","5858","Phones","3572018","202009",03/12/2019 00:00:00,24.5,"51500","Mobile Phones - Personal Numbers","REDACTED DATA","EE LTD (AIRTIME PAYMENTS)","2382161","http://opencorporates.com/companies/gb/2382161","771592016"
"London Borough of Redbridge","http://opendatacommunities.org/doc/london-borough-council/redbridge","2BENVIRONMEN","Environmental Services","2CCOMSAFCRIM","Community Safety (Crime Reduction)","REV","Revenue","R6753","CCTV","04-SUPPLIES","Supplies And Services","04F","Communications and computing","5858","Phones","3572018","202009",03/12/2019 00:00:00,24.5,"51500","Mobile Phones - Personal Numbers","REDACTED DATA","EE LTD (AIRTIME PAYMENTS)","2382161","http://opencorporates.com/companies/gb/2382161","771592016"
"London Borough of Redbridge","http://opendatacommunities.org/doc/london-borough-council/redbridge","2BENVIRONMEN","Environmental Services","2CCOMSAFCRIM","Community Safety (Crime Reduction)","REV","Revenue","R6753","CCTV","04-SUPPLIES","Supplies And Services","04F","Communications and computing","5858","Phones","3572018","202009",03/12/2019 00:00:00,31.98,"51500","Mobile Phones - Personal Numbers","REDACTED DATA","EE LTD (AIRTIME PAYMENTS)","2382161","http://opencorporates.com/companies/gb/2382161","771592016"
"London Borough of Redbridge","http://opendatacommunities.org/doc/london-borough-council/redbridge","2BENVIRONMEN","Environmental Services","2CCOMSAFCRIM","Community Safety (Crime Reduction)","REV","Revenue","R6753","CCTV","04-SUPPLIES","Supplies And Services","04F","Communications and computing","5858","Phones","3572018","202009",03/12/2019 00:00:00,69,"51500","Mobile Phones - Personal Numbers","REDACTED DATA","EE LTD (AIRTIME PAYMENTS)","2382161","http://opencorporates.com/companies/gb/2382161","771592016"
"London Borough of Redbridge","http://opendatacommunities.org/doc/london-borough-council/redbridge","2BENVIRONMEN","Environmental Services","2CCOMSAFCRIM","Community Safety (Crime Reduction)","REV","Revenue","R6753","CCTV","04-SUPPLIES","Supplies And Services","04F","Communications and computing","5858","Phones","3572018","202009",03/12/2019 00:00:00,24.5,"51500","Mobile Phones - Personal Numbers","REDACTED DATA","EE LTD (AIRTIME PAYMENTS)","2382161","http://opencorporates.com/companies/gb/2382161","771592016"
"London Borough of Redbridge","http://opendatacommunities.org/doc/london-borough-council/redbridge","2BENVIRONMEN","Environmental Services","2CCOMSAFCRIM","Community Safety (Crime Reduction)","REV","Revenue","R6753","CCTV","04-SUPPLIES","Supplies And Services","04F","Communications and computing","5858","Phones","3572018","202009",03/12/2019 00:00:00,69,"51500","Mobile Phones - Personal Numbers","REDACTED DATA","EE LTD (AIRTIME PAYMENTS)","2382161","http://opencorporates.com/companies/gb/2382161","771592016"
"London Borough of Redbridge","http://opendatacommunities.org/doc/london-borough-council/redbridge","2BENVIRONMEN","Environmental Services","2CCOMSAFCRIM","Community Safety (Crime Reduction)","REV","Revenue","R6753","CCTV","04-SUPPLIES","Supplies And Services","04F","Communications and computing","5858","Phones","3572018","202009",03/12/2019 00:00:00,24.5,"51500","Mobile Phones - Personal Numbers","REDACTED DATA","EE LTD (AIRTIME PAYMENTS)","2382161","http://opencorporates.com/companies/gb/2382161","771592016"
"London Borough of Redbridge","http://opendatacommunities.org/doc/london-borough-council/redbridge","2BENVIRONMEN","Environmental Services","2CCOMSAFCRIM","Community Safety (Crime Reduction)","REV","Revenue","R6753","CCTV","04-SUPPLIES","Supplies And Services","04F","Communications and computing","5858","Phones","3572018","202009",03/12/2019 00:00:00,69,"51500","Mobile Phones - Personal Numbers","REDACTED DATA","EE LTD (AIRTIME PAYMENTS)","2382161","http://opencorporates.com/companies/gb/2382161","771592016"
"London Borough of Redbridge","http://opendatacommunities.org/doc/london-borough-council/redbridge","2BENVIRONMEN","Environmental Services","2CCOMSAFCRIM","Community Safety (Crime Reduction)","REV","Revenue","R6753","CCTV","04-SUPPLIES","Supplies And Services","04F","Communications and computing","5858","Phones","3572018","202009",03/12/2019 00:00:00,24.5,"51500","Mobile Phones - Personal Numbers","REDACTED DATA","EE LTD (AIRTIME PAYMENTS)","2382161","http://opencorporates.com/companies/gb/2382161","771592016"
"London Borough of Redbridge","http://opendatacommunities.org/doc/london-borough-council/redbridge","2BENVIRONMEN","Environmental Services","2CCOMSAFCRIM","Community Safety (Crime Reduction)","REV","Revenue","R6753","CCTV","04-SUPPLIES","Supplies And Services","04F","Communications and computing","5858","Phones","3572018","202009",03/12/2019 00:00:00,24.5,"51500","Mobile Phones - Personal Numbers","REDACTED DATA","EE LTD (AIRTIME PAYMENTS)","2382161","http://opencorporates.com/companies/gb/2382161","771592016"
"London Borough of Redbridge","http://opendatacommunities.org/doc/london-borough-council/redbridge","2BENVIRONMEN","Environmental Services","2CCOMSAFCRIM","Community Safety (Crime Reduction)","REV","Revenue","R6753","CCTV","04-SUPPLIES","Supplies And Services","04F","Communications and computing","5858","Phones","3572018","202009",03/12/2019 00:00:00,69,"51500","Mobile Phones - Personal Numbers","REDACTED DATA","EE LTD (AIRTIME PAYMENTS)","2382161","http://opencorporates.com/companies/gb/2382161","771592016"
"London Borough of Redbridge","http://opendatacommunities.org/doc/london-borough-council/redbridge","2BENVIRONMEN","Environmental Services","2CCOMSAFCRIM","Community Safety (Crime Reduction)","REV","Revenue","R6753","CCTV","04-SUPPLIES","Supplies And Services","04F","Communications and computing","5858","Phones","3572018","202009",03/12/2019 00:00:00,69,"51500","Mobile Phones - Personal Numbers","REDACTED DATA","EE LTD (AIRTIME PAYMENTS)","2382161","http://opencorporates.com/companies/gb/2382161","771592016"
"London Borough of Redbridge","http://opendatacommunities.org/doc/london-borough-council/redbridge","2BENVIRONMEN","Environmental Services","2CCOMSAFCRIM","Community Safety (Crime Reduction)","REV","Revenue","R6753","CCTV","04-SUPPLIES","Supplies And Services","04F","Communications and computing","5858","Phones","3572018","202009",03/12/2019 00:00:00,69,"51500","Mobile Phones - Personal Numbers","REDACTED DATA","EE LTD (AIRTIME PAYMENTS)","2382161","http://opencorporates.com/companies/gb/2382161","771592016"
"London Borough of Redbridge","http://opendatacommunities.org/doc/london-borough-council/redbridge","2BENVIRONMEN","Environmental Services","2CCOMSAFCRIM","Community Safety (Crime Reduction)","REV","Revenue","R6753","CCTV","04-SUPPLIES","Supplies And Services","04F","Communications and computing","5858","Phones","3572018","202009",03/12/2019 00:00:00,24.5,"51500","Mobile Phones - Personal Numbers","REDACTED DATA","EE LTD (AIRTIME PAYMENTS)","2382161","http://opencorporates.com/companies/gb/2382161","771592016"
"London Borough of Redbridge","http://opendatacommunities.org/doc/london-borough-council/redbridge","2BENVIRONMEN","Environmental Services","2CCOMSAFCRIM","Community Safety (Crime Reduction)","REV","Revenue","R6753","CCTV","04-SUPPLIES","Supplies And Services","04F","Communications and computing","5858","Phones","3572018","202009",03/12/2019 00:00:00,69,"51500","Mobile Phones - Personal Numbers","REDACTED DATA","EE LTD (AIRTIME PAYMENTS)","2382161","http://opencorporates.com/companies/gb/2382161","771592016"
"London Borough of Redbridge","http://opendatacommunities.org/doc/london-borough-council/redbridge","2BENVIRONMEN","Environmental Services","2CCOMSAFCRIM","Community Safety (Crime Reduction)","REV","Revenue","R6753","CCTV","04-SUPPLIES","Supplies And Services","04F","Communications and computing","5858","Phones","3572018","202009",03/12/2019 00:00:00,24.5,"51500","Mobile Phones - Personal Numbers","REDACTED DATA","EE LTD (AIRTIME PAYMENTS)","2382161","http://opencorporates.com/companies/gb/2382161","771592016"
"London Borough of Redbridge","http://opendatacommunities.org/doc/london-borough-council/redbridge","2BENVIRONMEN","Environmental Services","2CCOMSAFCRIM","Community Safety (Crime Reduction)","REV","Revenue","R6753","CCTV","04-SUPPLIES","Supplies And Services","04F","Communications and computing","5858","Phones","3572018","202009",03/12/2019 00:00:00,69,"51500","Mobile Phones - Personal Numbers","REDACTED DATA","EE LTD (AIRTIME PAYMENTS)","2382161","http://opencorporates.com/companies/gb/2382161","771592016"
"London Borough of Redbridge","http://opendatacommunities.org/doc/london-borough-council/redbridge","2BENVIRONMEN","Environmental Services","2CCOMSAFCRIM","Community Safety (Crime Reduction)","REV","Revenue","R6753","CCTV","04-SUPPLIES","Supplies And Services","04F","Communications and computing","5858","Phones","3572018","202009",03/12/2019 00:00:00,24.5,"51500","Mobile Phones - Personal Numbers","REDACTED DATA","EE LTD (AIRTIME PAYMENTS)","2382161","http://opencorporates.com/companies/gb/2382161","771592016"
"London Borough of Redbridge","http://opendatacommunities.org/doc/london-borough-council/redbridge","2BENVIRONMEN","Environmental Services","2CCOMSAFCRIM","Community Safety (Crime Reduction)","REV","Revenue","R6753","CCTV","04-SUPPLIES","Supplies And Services","04F","Communications and computing","5858","Phones","3572018","202009",03/12/2019 00:00:00,69,"51500","Mobile Phones - Personal Numbers","REDACTED DATA","EE LTD (AIRTIME PAYMENTS)","2382161","http://opencorporates.com/companies/gb/2382161","771592016"
"London Borough of Redbridge","http://opendatacommunities.org/doc/london-borough-council/redbridge","2BENVIRONMEN","Environmental Services","2CCONSPROT","Consumer Protection","REV","Revenue","R6752","Food Safety","04-SUPPLIES","Supplies And Services","04F","Communications and computing","5858","Phones","3572018","202009",03/12/2019 00:00:00,12.5,"51500","Mobile Phones - Personal Numbers","REDACTED DATA","EE LTD (AIRTIME PAYMENTS)","2382161","http://opencorporates.com/companies/gb/2382161","771592016"
"London Borough of Redbridge","http://opendatacommunities.org/doc/london-borough-council/redbridge","2BENVIRONMEN","Environmental Services","2CCONSPROT","Consumer Protection","REV","Revenue","R6772","Licensing Authority","04-SUPPLIES","Supplies And Services","04F","Communications and computing","5858","Phones","3572018","202009",03/12/2019 00:00:00,12.5,"51500","Mobile Phones - Personal Numbers","REDACTED DATA","EE LTD (AIRTIME PAYMENTS)","2382161","http://opencorporates.com/companies/gb/2382161","771592016"
"London Borough of Redbridge","http://opendatacommunities.org/doc/london-borough-council/redbridge","2BENVIRONMEN","Environmental Services","2CENVTLHEALT","Environmental Health","REV","Revenue","R6759","Redbridge Enforcement Officers","04-SUPPLIES","Supplies And Services","04F","Communications and computing","5858","Phones","3572018","202009",03/12/2019 00:00:00,12,"51500","Mobile Phones - Personal Numbers","REDACTED DATA","EE LTD (AIRTIME PAYMENTS)","2382161","http://opencorporates.com/companies/gb/2382161","771592016"
"London Borough of Redbridge","http://opendatacommunities.org/doc/london-borough-council/redbridge","2BENVIRONMEN","Environmental Services","2CENVTLHEALT","Environmental Health","REV","Revenue","R6759","Redbridge Enforcement Officers","04-SUPPLIES","Supplies And Services","04F","Communications and computing","5858","Phones","3572018","202009",03/12/2019 00:00:00,15.5,"51500","Mobile Phones - Personal Numbers","REDACTED DATA","EE LTD (AIRTIME PAYMENTS)","2382161","http://opencorporates.com/companies/gb/2382161","771592016"
"London Borough of Redbridge","http://opendatacommunities.org/doc/london-borough-council/redbridge","2BENVIRONMEN","Environmental Services","2CENVTLHEALT","Environmental Health","REV","Revenue","R6759","Redbridge Enforcement Officers","04-SUPPLIES","Supplies And Services","04F","Communications and computing","5858","Phones","3572018","202009",03/12/2019 00:00:00,12,"51500","Mobile Phones - Personal Numbers","REDACTED DATA","EE LTD (AIRTIME PAYMENTS)","2382161","http://opencorporates.com/companies/gb/2382161","771592016"
"London Borough of Redbridge","http://opendatacommunities.org/doc/london-borough-council/redbridge","2BENVIRONMEN","Environmental Services","2CENVTLHEALT","Environmental Health","REV","Revenue","R6759","Redbridge Enforcement Officers","04-SUPPLIES","Supplies And Services","04F","Communications and computing","5858","Phones","3572018","202009",03/12/2019 00:00:00,12,"51500","Mobile Phones - Personal Numbers","REDACTED DATA","EE LTD (AIRTIME PAYMENTS)","2382161","http://opencorporates.com/companies/gb/2382161","771592016"
"London Borough of Redbridge","http://opendatacommunities.org/doc/london-borough-council/redbridge","2BENVIRONMEN","Environmental Services","2CENVTLHEALT","Environmental Health","REV","Revenue","R6759","Redbridge Enforcement Officers","04-SUPPLIES","Supplies And Services","04F","Communications and computing","5858","Phones","3572018","202009",03/12/2019 00:00:00,62,"51500","Mobile Phones - Personal Numbers","REDACTED DATA","EE LTD (AIRTIME PAYMENTS)","2382161","http://opencorporates.com/companies/gb/2382161","771592016"
"London Borough of Redbridge","http://opendatacommunities.org/doc/london-borough-council/redbridge","2BENVIRONMEN","Environmental Services","2CENVTLHEALT","Environmental Health","REV","Revenue","R6759","Redbridge Enforcement Officers","04-SUPPLIES","Supplies And Services","04F","Communications and computing","5858","Phones","3572018","202009",03/12/2019 00:00:00,12.5,"51500","Mobile Phones - Personal Numbers","REDACTED DATA","EE LTD (AIRTIME PAYMENTS)","2382161","http://opencorporates.com/companies/gb/2382161","771592016"
"London Borough of Redbridge","http://opendatacommunities.org/doc/london-borough-council/redbridge","2BENVIRONMEN","Environmental Services","2CENVTLHEALT","Environmental Health","REV","Revenue","R6759","Redbridge Enforcement Officers","04-SUPPLIES","Supplies And Services","04F","Communications and computing","5858","Phones","3572018","202009",03/12/2019 00:00:00,12.5,"51500","Mobile Phones - Personal Numbers","REDACTED DATA","EE LTD (AIRTIME PAYMENTS)","2382161","http://opencorporates.com/companies/gb/2382161","771592016"
"London Borough of Redbridge","http://opendatacommunities.org/doc/london-borough-council/redbridge","2BENVIRONMEN","Environmental Services","2CENVTLHEALT","Environmental Health","REV","Revenue","R6777","Community Protection","04-SUPPLIES","Supplies And Services","04F","Communications and computing","5858","Phones","3572018","202009",03/12/2019 00:00:00,20,"51500","Mobile Phones - Personal Numbers","REDACTED DATA","EE LTD (AIRTIME PAYMENTS)","2382161","http://opencorporates.com/companies/gb/2382161","771592016"
"London Borough of Redbridge","http://opendatacommunities.org/doc/london-borough-council/redbridge","2BENVIRONMEN","Environmental Services","2CENVTLHEALT","Environmental Health","REV","Revenue","R6813","Head of Community Safety and Protection","04-SUPPLIES","Supplies And Services","04F","Communications and computing","5858","Phones","3572018","202009",03/12/2019 00:00:00,12.5,"51500","Mobile Phones - Personal Numbers","REDACTED DATA","EE LTD (AIRTIME PAYMENTS)","2382161","http://opencorporates.com/companies/gb/2382161","771592016"
"London Borough of Redbridge","http://opendatacommunities.org/doc/london-borough-council/redbridge","2BENVIRONMEN","Environmental Services","2CSERVMGTSUP","Service Management & Support Services","REV","Revenue","R6001","Head of Waste, Recycling and Fleet","04-SUPPLIES","Supplies And Services","04F","Communications and computing","5858","Phones","3572018","202009",03/12/2019 00:00:00,12.5,"51500","Mobile Phones - Personal Numbers","REDACTED DATA","EE LTD (AIRTIME PAYMENTS)","2382161","http://opencorporates.com/companies/gb/2382161","771592016"
"London Borough of Redbridge","http://opendatacommunities.org/doc/london-borough-council/redbridge","2BENVIRONMEN","Environmental Services","2CSERVMGTSUP","Service Management & Support Services","REV","Revenue","R6758","Chief CS Officer","04-SUPPLIES","Supplies And Services","04F","Communications and computing","5858","Phones","3572018","202009",03/12/2019 00:00:00,12.5,"51500","Mobile Phones - Personal Numbers","REDACTED DATA","EE LTD (AIRTIME PAYMENTS)","2382161","http://opencorporates.com/companies/gb/2382161","771592016"
"London Borough of Redbridge","http://opendatacommunities.org/doc/london-borough-council/redbridge","2BENVIRONMEN","Environmental Services","2CSERVMGTSUP","Service Management & Support Services","REV","Revenue","R6758","Chief CS Officer","04-SUPPLIES","Supplies And Services","04F","Communications and computing","5858","Phones","3572018","202009",03/12/2019 00:00:00,12.5,"51500","Mobile Phones - Personal Numbers","REDACTED DATA","EE LTD (AIRTIME PAYMENTS)","2382161","http://opencorporates.com/companies/gb/2382161","771592016"
"London Borough of Redbridge","http://opendatacommunities.org/doc/london-borough-council/redbridge","2BENVIRONMEN","Environmental Services","2CSTCLEANS","Street Cleansing (not chargeable to Highways)","REV","Revenue","R6060","Street Scene Enforcement","04-SUPPLIES","Supplies And Services","04F","Communications and computing","5858","Phones","3572018","202009",03/12/2019 00:00:00,15.5,"51500","Mobile Phones - Personal Numbers","REDACTED DATA","EE LTD (AIRTIME PAYMENTS)","2382161","http://opencorporates.com/companies/gb/2382161","771592016"
"London Borough of Redbridge","http://opendatacommunities.org/doc/london-borough-council/redbridge","2BENVIRONMEN","Environmental Services","2CSTCLEANS","Street Cleansing (not chargeable to Highways)","REV","Revenue","R6060","Street Scene Enforcement","04-SUPPLIES","Supplies And Services","04F","Communications and computing","5858","Phones","3572018","202009",03/12/2019 00:00:00,15.5,"51500","Mobile Phones - Personal Numbers","REDACTED DATA","EE LTD (AIRTIME PAYMENTS)","2382161","http://opencorporates.com/companies/gb/2382161","771592016"
"London Borough of Redbridge","http://opendatacommunities.org/doc/london-borough-council/redbridge","2BENVIRONMEN","Environmental Services","2CSTCLEANS","Street Cleansing (not chargeable to Highways)","REV","Revenue","R6060","Street Scene Enforcement","04-SUPPLIES","Supplies And Services","04F","Communications and computing","5858","Phones","3572018","202009",03/12/2019 00:00:00,15.5,"51500","Mobile Phones - Personal Numbers","REDACTED DATA","EE LTD (AIRTIME PAYMENTS)","2382161","http://opencorporates.com/companies/gb/2382161","771592016"
"London Borough of Redbridge","http://opendatacommunities.org/doc/london-borough-council/redbridge","2BENVIRONMEN","Environmental Services","2CSTCLEANS","Street Cleansing (not chargeable to Highways)","REV","Revenue","R6060","Street Scene Enforcement","04-SUPPLIES","Supplies And Services","04F","Communications and computing","5858","Phones","3572018","202009",03/12/2019 00:00:00,15.5,"51500","Mobile Phones - Personal Numbers","REDACTED DATA","EE LTD (AIRTIME PAYMENTS)","2382161","http://opencorporates.com/companies/gb/2382161","771592016"
"London Borough of Redbridge","http://opendatacommunities.org/doc/london-borough-council/redbridge","2BENVIRONMEN","Environmental Services","2CSTCLEANS","Street Cleansing (not chargeable to Highways)","REV","Revenue","R6060","Street Scene Enforcement","04-SUPPLIES","Supplies And Services","04F","Communications and computing","5858","Phones","3572018","202009",03/12/2019 00:00:00,15.5,"51500","Mobile Phones - Personal Numbers","REDACTED DATA","EE LTD (AIRTIME PAYMENTS)","2382161","http://opencorporates.com/companies/gb/2382161","771592016"
"London Borough of Redbridge","http://opendatacommunities.org/doc/london-borough-council/redbridge","2BENVIRONMEN","Environmental Services","2CSTCLEANS","Street Cleansing (not chargeable to Highways)","REV","Revenue","R6060","Street Scene Enforcement","04-SUPPLIES","Supplies And Services","04F","Communications and computing","5858","Phones","3572018","202009",03/12/2019 00:00:00,15.5,"51500","Mobile Phones - Personal Numbers","REDACTED DATA","EE LTD (AIRTIME PAYMENTS)","2382161","http://opencorporates.com/companies/gb/2382161","771592016"
"London Borough of Redbridge","http://opendatacommunities.org/doc/london-borough-council/redbridge","2BENVIRONMEN","Environmental Services","2CSTCLEANS","Street Cleansing (not chargeable to Highways)","REV","Revenue","R6060","Street Scene Enforcement","04-SUPPLIES","Supplies And Services","04F","Communications and computing","5858","Phones","3572018","202009",03/12/2019 00:00:00,15.5,"51500","Mobile Phones - Personal Numbers","REDACTED DATA","EE LTD (AIRTIME PAYMENTS)","2382161","http://opencorporates.com/companies/gb/2382161","771592016"
"London Borough of Redbridge","http://opendatacommunities.org/doc/london-borough-council/redbridge","2BENVIRONMEN","Environmental Services","2CSTCLEANS","Street Cleansing (not chargeable to Highways)","REV","Revenue","R6060","Street Scene Enforcement","04-SUPPLIES","Supplies And Services","04F","Communications and computing","5858","Phones","3572018","202009",03/12/2019 00:00:00,15.5,"51500","Mobile Phones - Personal Numbers","REDACTED DATA","EE LTD (AIRTIME PAYMENTS)","2382161","http://opencorporates.com/companies/gb/2382161","771592016"
"London Borough of Redbridge","http://opendatacommunities.org/doc/london-borough-council/redbridge","2BENVIRONMEN","Environmental Services","2CSTCLEANS","Street Cleansing (not chargeable to Highways)","REV","Revenue","R6060","Street Scene Enforcement","04-SUPPLIES","Supplies And Services","04F","Communications and computing","5858","Phones","3572018","202009",03/12/2019 00:00:00,15.5,"51500","Mobile Phones - Personal Numbers","REDACTED DATA","EE LTD (AIRTIME PAYMENTS)","2382161","http://opencorporates.com/companies/gb/2382161","771592016"
"London Borough of Redbridge","http://opendatacommunities.org/doc/london-borough-council/redbridge","2BENVIRONMEN","Environmental Services","2CSTCLEANS","Street Cleansing (not chargeable to Highways)","REV","Revenue","R6060","Street Scene Enforcement","04-SUPPLIES","Supplies And Services","04F","Communications and computing","5858","Phones","3572018","202009",03/12/2019 00:00:00,15.5,"51500","Mobile Phones - Personal Numbers","REDACTED DATA","EE LTD (AIRTIME PAYMENTS)","2382161","http://opencorporates.com/companies/gb/2382161","771592016"
"London Borough of Redbridge","http://opendatacommunities.org/doc/london-borough-council/redbridge","2BPLANPOL","Planning Policy","","","REV","Revenue","R6509","Head of Delivery","04-SUPPLIES","Supplies And Services","04F","Communications and computing","5858","Phones","3572018","202009",03/12/2019 00:00:00,12.5,"51500","Mobile Phones - Personal Numbers","REDACTED DATA","EE LTD (AIRTIME PAYMENTS)","2382161","http://opencorporates.com/companies/gb/2382161","771592016"
"London Borough of Redbridge","http://opendatacommunities.org/doc/london-borough-council/redbridge","3BINDSCHFUND","Individual School Funds","3CFACILIMPRO","Facilitating School Improvement","REV","Revenue","R3378","Virtual School","04-SUPPLIES","Supplies And Services","04F","Communications and computing","5858","Phones","3572018","202009",03/12/2019 00:00:00,12.5,"51500","Mobile Phones - Personal Numbers","REDACTED DATA","EE LTD (AIRTIME PAYMENTS)","2382161","http://opencorporates.com/companies/gb/2382161","771592016"
"London Borough of Redbridge","http://opendatacommunities.org/doc/london-borough-council/redbridge","3BLEACENTFND","LEA Centrally Held School Funds","3CNONSCH","Non Schools","REV","Revenue","R2002","Management LEA","04-SUPPLIES","Supplies And Services","04F","Communications and computing","5858","Phones","3572018","202009",03/12/2019 00:00:00,12.5,"51500","Mobile Phones - Personal Numbers","REDACTED DATA","EE LTD (AIRTIME PAYMENTS)","2382161","http://opencorporates.com/companies/gb/2382161","771592016"
"London Borough of Redbridge","http://opendatacommunities.org/doc/london-borough-council/redbridge","3BLEACENTFND","LEA Centrally Held School Funds","3CNONSCH","Non Schools","REV","Revenue","R2230","Local Offer","04-SUPPLIES","Supplies And Services","04F","Communications and computing","5858","Phones","3572018","202009",03/12/2019 00:00:00,12.5,"51500","Mobile Phones - Personal Numbers","REDACTED DATA","EE LTD (AIRTIME PAYMENTS)","2382161","http://opencorporates.com/companies/gb/2382161","771592016"
"London Borough of Redbridge","http://opendatacommunities.org/doc/london-borough-council/redbridge","3BLEACENTFND","LEA Centrally Held School Funds","3CNONSCH","Non Schools","REV","Revenue","R2230","Local Offer","04-SUPPLIES","Supplies And Services","04F","Communications and computing","5858","Phones","3572018","202009",03/12/2019 00:00:00,12.5,"51500","Mobile Phones - Personal Numbers","REDACTED DATA","EE LTD (AIRTIME PAYMENTS)","2382161","http://opencorporates.com/companies/gb/2382161","771592016"
"London Borough of Redbridge","http://opendatacommunities.org/doc/london-borough-council/redbridge","3BNONSCHFUND","Non-School Funding","3CNONSCH","Non Schools","REV","Revenue","R2054","Education Psychology Team","04-SUPPLIES","Supplies And Services","04F","Communications and computing","5858","Phones","3572018","202009",03/12/2019 00:00:00,12.5,"51500","Mobile Phones - Personal Numbers","REDACTED DATA","EE LTD (AIRTIME PAYMENTS)","2382161","http://opencorporates.com/companies/gb/2382161","771592016"
"London Borough of Redbridge","http://opendatacommunities.org/doc/london-borough-council/redbridge","3BNONSCHFUND","Non-School Funding","3CNONSCH","Non Schools","REV","Revenue","R2054","Education Psychology Team","04-SUPPLIES","Supplies And Services","04F","Communications and computing","5858","Phones","3572018","202009",03/12/2019 00:00:00,12.5,"51500","Mobile Phones - Personal Numbers","REDACTED DATA","EE LTD (AIRTIME PAYMENTS)","2382161","http://opencorporates.com/companies/gb/2382161","771592016"
"London Borough of Redbridge","http://opendatacommunities.org/doc/london-borough-council/redbridge","3BNONSCHFUND","Non-School Funding","3CNONSCH","Non Schools","REV","Revenue","R2054","Education Psychology Team","04-SUPPLIES","Supplies And Services","04F","Communications and computing","5858","Phones","3572018","202009",03/12/2019 00:00:00,12.5,"51500","Mobile Phones - Personal Numbers","REDACTED DATA","EE LTD (AIRTIME PAYMENTS)","2382161","http://opencorporates.com/companies/gb/2382161","771592016"
"London Borough of Redbridge","http://opendatacommunities.org/doc/london-borough-council/redbridge","3BNONSCHFUND","Non-School Funding","3CNONSCH","Non Schools","REV","Revenue","R2054","Education Psychology Team","04-SUPPLIES","Supplies And Services","04F","Communications and computing","5858","Phones","3572018","202009",03/12/2019 00:00:00,12.5,"51500","Mobile Phones - Personal Numbers","REDACTED DATA","EE LTD (AIRTIME PAYMENTS)","2382161","http://opencorporates.com/companies/gb/2382161","771592016"
"London Borough of Redbridge","http://opendatacommunities.org/doc/london-borough-council/redbridge","3BNONSCHFUND","Non-School Funding","3CNONSCH","Non Schools","REV","Revenue","R2054","Education Psychology Team","04-SUPPLIES","Supplies And Services","04F","Communications and computing","5858","Phones","3572018","202009",03/12/2019 00:00:00,12.5,"51500","Mobile Phones - Personal Numbers","REDACTED DATA","EE LTD (AIRTIME PAYMENTS)","2382161","http://opencorporates.com/companies/gb/2382161","771592016"
"London Borough of Redbridge","http://opendatacommunities.org/doc/london-borough-council/redbridge","3BNONSCHFUND","Non-School Funding","3CNONSCH","Non Schools","REV","Revenue","R2054","Education Psychology Team","04-SUPPLIES","Supplies And Services","04F","Communications and computing","5858","Phones","3572018","202009",03/12/2019 00:00:00,12.5,"51500","Mobile Phones - Personal Numbers","REDACTED DATA","EE LTD (AIRTIME PAYMENTS)","2382161","http://opencorporates.com/companies/gb/2382161","771592016"
"London Borough of Redbridge","http://opendatacommunities.org/doc/london-borough-council/redbridge","3BNONSCHFUND","Non-School Funding","3CNONSCH","Non Schools","REV","Revenue","R2054","Education Psychology Team","04-SUPPLIES","Supplies And Services","04F","Communications and computing","5858","Phones","3572018","202009",03/12/2019 00:00:00,12.5,"51500","Mobile Phones - Personal Numbers","REDACTED DATA","EE LTD (AIRTIME PAYMENTS)","2382161","http://opencorporates.com/companies/gb/2382161","771592016"
"London Borough of Redbridge","http://opendatacommunities.org/doc/london-borough-council/redbridge","3BNONSCHFUND","Non-School Funding","3CNONSCH","Non Schools","REV","Revenue","R2054","Education Psychology Team","04-SUPPLIES","Supplies And Services","04F","Communications and computing","5858","Phones","3572018","202009",03/12/2019 00:00:00,12.5,"51500","Mobile Phones - Personal Numbers","REDACTED DATA","EE LTD (AIRTIME PAYMENTS)","2382161","http://opencorporates.com/companies/gb/2382161","771592016"
"London Borough of Redbridge","http://opendatacommunities.org/doc/london-borough-council/redbridge","3BNONSCHFUND","Non-School Funding","3CNONSCH","Non Schools","REV","Revenue","R2054","Education Psychology Team","04-SUPPLIES","Supplies And Services","04F","Communications and computing","5858","Phones","3572018","202009",03/12/2019 00:00:00,12.5,"51500","Mobile Phones - Personal Numbers","REDACTED DATA","EE LTD (AIRTIME PAYMENTS)","2382161","http://opencorporates.com/companies/gb/2382161","771592016"
"London Borough of Redbridge","http://opendatacommunities.org/doc/london-borough-council/redbridge","3BNONSCHFUND","Non-School Funding","3CNONSCH","Non Schools","REV","Revenue","R2054","Education Psychology Team","04-SUPPLIES","Supplies And Services","04F","Communications and computing","5858","Phones","3572018","202009",03/12/2019 00:00:00,12.5,"51500","Mobile Phones - Personal Numbers","REDACTED DATA","EE LTD (AIRTIME PAYMENTS)","2382161","http://opencorporates.com/companies/gb/2382161","771592016"
"London Borough of Redbridge","http://opendatacommunities.org/doc/london-borough-council/redbridge","3BOPTIONHLDG","Optional Holding Accounts","3CYOUTH","Youth Service","REV","Revenue","R3371","LBR Costs","04-SUPPLIES","Supplies And Services","04F","Communications and computing","5858","Phones","3572018","202009",03/12/2019 00:00:00,12.5,"51500","Mobile Phones - Personal Numbers","REDACTED DATA","EE LTD (AIRTIME PAYMENTS)","2382161","http://opencorporates.com/companies/gb/2382161","771592016"
"London Borough of Redbridge","http://opendatacommunities.org/doc/london-borough-council/redbridge","4BMANGT&SUPP","Management & Support Services","4CHIGHRDROUT","Highways/Roads (Routine)","REV","Revenue","R7079","Highways and Transportation Management","04-SUPPLIES","Supplies And Services","04F","Communications and computing","5858","Phones","3572018","202009",03/12/2019 00:00:00,12.5,"51500","Mobile Phones - Personal Numbers","REDACTED DATA","EE LTD (AIRTIME PAYMENTS)","2382161","http://opencorporates.com/companies/gb/2382161","771592016"
"London Borough of Redbridge","http://opendatacommunities.org/doc/london-borough-council/redbridge","4BMANGT&SUPP","Management & Support Services","4CHIGHRDROUT","Highways/Roads (Routine)","REV","Revenue","R7079","Highways and Transportation Management","04-SUPPLIES","Supplies And Services","04F","Communications and computing","5858","Phones","3572018","202009",03/12/2019 00:00:00,12.5,"51500","Mobile Phones - Personal Numbers","REDACTED DATA","EE LTD (AIRTIME PAYMENTS)","2382161","http://opencorporates.com/companies/gb/2382161","771592016"
"London Borough of Redbridge","http://opendatacommunities.org/doc/london-borough-council/redbridge","4BMANGT&SUPP","Management & Support Services","4CHIGHRDROUT","Highways/Roads (Routine)","REV","Revenue","R7079","Highways and Transportation Management","04-SUPPLIES","Supplies And Services","04F","Communications and computing","5858","Phones","3572018","202009",03/12/2019 00:00:00,12.5,"51500","Mobile Phones - Personal Numbers","REDACTED DATA","EE LTD (AIRTIME PAYMENTS)","2382161","http://opencorporates.com/companies/gb/2382161","771592016"
"London Borough of Redbridge","http://opendatacommunities.org/doc/london-borough-council/redbridge","4BMANGT&SUPP","Management & Support Services","4CHIGHRDROUT","Highways/Roads (Routine)","REV","Revenue","R7079","Highways and Transportation Management","04-SUPPLIES","Supplies And Services","04F","Communications and computing","5858","Phones","3572018","202009",03/12/2019 00:00:00,12.5,"51500","Mobile Phones - Personal Numbers","REDACTED DATA","EE LTD (AIRTIME PAYMENTS)","2382161","http://opencorporates.com/companies/gb/2382161","771592016"
"London Borough of Redbridge","http://opendatacommunities.org/doc/london-borough-council/redbridge","4BMANGT&SUPP","Management & Support Services","4CHIGHRDROUT","Highways/Roads (Routine)","REV","Revenue","R7079","Highways and Transportation Management","04-SUPPLIES","Supplies And Services","04F","Communications and computing","5858","Phones","3572018","202009",03/12/2019 00:00:00,12.5,"51500","Mobile Phones - Personal Numbers","REDACTED DATA","EE LTD (AIRTIME PAYMENTS)","2382161","http://opencorporates.com/companies/gb/2382161","771592016"
"London Borough of Redbridge","http://opendatacommunities.org/doc/london-borough-council/redbridge","4BMANGT&SUPP","Management & Support Services","4CHIGHRDROUT","Highways/Roads (Routine)","REV","Revenue","R7079","Highways and Transportation Management","04-SUPPLIES","Supplies And Services","04F","Communications and computing","5858","Phones","3572018","202009",03/12/2019 00:00:00,12.5,"51500","Mobile Phones - Personal Numbers","REDACTED DATA","EE LTD (AIRTIME PAYMENTS)","2382161","http://opencorporates.com/companies/gb/2382161","771592016"
"London Borough of Redbridge","http://opendatacommunities.org/doc/london-borough-council/redbridge","4BMANGT&SUPP","Management & Support Services","4CHIGHRDROUT","Highways/Roads (Routine)","REV","Revenue","R7079","Highways and Transportation Management","04-SUPPLIES","Supplies And Services","04F","Communications and computing","5858","Phones","3572018","202009",03/12/2019 00:00:00,12.5,"51500","Mobile Phones - Personal Numbers","REDACTED DATA","EE LTD (AIRTIME PAYMENTS)","2382161","http://opencorporates.com/companies/gb/2382161","771592016"
"London Borough of Redbridge","http://opendatacommunities.org/doc/london-borough-council/redbridge","4BMANGT&SUPP","Management & Support Services","4CHIGHRDROUT","Highways/Roads (Routine)","REV","Revenue","R7079","Highways and Transportation Management","04-SUPPLIES","Supplies And Services","04F","Communications and computing","5858","Phones","3572018","202009",03/12/2019 00:00:00,12.5,"51500","Mobile Phones - Personal Numbers","REDACTED DATA","EE LTD (AIRTIME PAYMENTS)","2382161","http://opencorporates.com/companies/gb/2382161","771592016"
"London Borough of Redbridge","http://opendatacommunities.org/doc/london-borough-council/redbridge","4BMANGT&SUPP","Management & Support Services","4CHIGHRDROUT","Highways/Roads (Routine)","REV","Revenue","R7079","Highways and Transportation Management","04-SUPPLIES","Supplies And Services","04F","Communications and computing","5858","Phones","3572018","202009",03/12/2019 00:00:00,12.5,"51500","Mobile Phones - Personal Numbers","REDACTED DATA","EE LTD (AIRTIME PAYMENTS)","2382161","http://opencorporates.com/companies/gb/2382161","771592016"
"London Borough of Redbridge","http://opendatacommunities.org/doc/london-borough-council/redbridge","4BMANGT&SUPP","Management & Support Services","4CHIGHRDROUT","Highways/Roads (Routine)","REV","Revenue","R7079","Highways and Transportation Management","04-SUPPLIES","Supplies And Services","04F","Communications and computing","5858","Phones","3572018","202009",03/12/2019 00:00:00,12.5,"51500","Mobile Phones - Personal Numbers","REDACTED DATA","EE LTD (AIRTIME PAYMENTS)","2382161","http://opencorporates.com/companies/gb/2382161","771592016"
"London Borough of Redbridge","http://opendatacommunities.org/doc/london-borough-council/redbridge","4BMANGT&SUPP","Management & Support Services","4CHIGHRDROUT","Highways/Roads (Routine)","REV","Revenue","R7079","Highways and Transportation Management","04-SUPPLIES","Supplies And Services","04F","Communications and computing","5858","Phones","3572018","202009",03/12/2019 00:00:00,12.5,"51500","Mobile Phones - Personal Numbers","REDACTED DATA","EE LTD (AIRTIME PAYMENTS)","2382161","http://opencorporates.com/companies/gb/2382161","771592016"
"London Borough of Redbridge","http://opendatacommunities.org/doc/london-borough-council/redbridge","4BMANGT&SUPP","Management & Support Services","4CHIGHRDROUT","Highways/Roads (Routine)","REV","Revenue","R7079","Highways and Transportation Management","04-SUPPLIES","Supplies And Services","04F","Communications and computing","5858","Phones","3572018","202009",03/12/2019 00:00:00,12.5,"51500","Mobile Phones - Personal Numbers","REDACTED DATA","EE LTD (AIRTIME PAYMENTS)","2382161","http://opencorporates.com/companies/gb/2382161","771592016"
"London Borough of Redbridge","http://opendatacommunities.org/doc/london-borough-council/redbridge","4BMANGT&SUPP","Management & Support Services","4CHIGHRDROUT","Highways/Roads (Routine)","REV","Revenue","R7079","Highways and Transportation Management","04-SUPPLIES","Supplies And Services","04F","Communications and computing","5858","Phones","3572018","202009",03/12/2019 00:00:00,12.5,"51500","Mobile Phones - Personal Numbers","REDACTED DATA","EE LTD (AIRTIME PAYMENTS)","2382161","http://opencorporates.com/companies/gb/2382161","771592016"
"London Borough of Redbridge","http://opendatacommunities.org/doc/london-borough-council/redbridge","4BMANGT&SUPP","Management & Support Services","4CHIGHRDROUT","Highways/Roads (Routine)","REV","Revenue","R7079","Highways and Transportation Management","04-SUPPLIES","Supplies And Services","04F","Communications and computing","5858","Phones","3572018","202009",03/12/2019 00:00:00,12.5,"51500","Mobile Phones - Personal Numbers","REDACTED DATA","EE LTD (AIRTIME PAYMENTS)","2382161","http://opencorporates.com/companies/gb/2382161","771592016"
"London Borough of Redbridge","http://opendatacommunities.org/doc/london-borough-council/redbridge","4BMANGT&SUPP","Management & Support Services","4CHIGHRDROUT","Highways/Roads (Routine)","REV","Revenue","R7079","Highways and Transportation Management","04-SUPPLIES","Supplies And Services","04F","Communications and computing","5858","Phones","3572018","202009",03/12/2019 00:00:00,12.5,"51500","Mobile Phones - Personal Numbers","REDACTED DATA","EE LTD (AIRTIME PAYMENTS)","2382161","http://opencorporates.com/companies/gb/2382161","771592016"
"London Borough of Redbridge","http://opendatacommunities.org/doc/london-borough-council/redbridge","4BMANGT&SUPP","Management & Support Services","4CHIGHRDROUT","Highways/Roads (Routine)","REV","Revenue","R7079","Highways and Transportation Management","04-SUPPLIES","Supplies And Services","04F","Communications and computing","5858","Phones","3572018","202009",03/12/2019 00:00:00,12.5,"51500","Mobile Phones - Personal Numbers","REDACTED DATA","EE LTD (AIRTIME PAYMENTS)","2382161","http://opencorporates.com/companies/gb/2382161","771592016"
"London Borough of Redbridge","http://opendatacommunities.org/doc/london-borough-council/redbridge","4BMANGT&SUPP","Management & Support Services","4CHIGHRDROUT","Highways/Roads (Routine)","REV","Revenue","R7079","Highways and Transportation Management","04-SUPPLIES","Supplies And Services","04F","Communications and computing","5858","Phones","3572018","202009",03/12/2019 00:00:00,12.5,"51500","Mobile Phones - Personal Numbers","REDACTED DATA","EE LTD (AIRTIME PAYMENTS)","2382161","http://opencorporates.com/companies/gb/2382161","771592016"
"London Borough of Redbridge","http://opendatacommunities.org/doc/london-borough-council/redbridge","4BMANGT&SUPP","Management & Support Services","4CHIGHRDROUT","Highways/Roads (Routine)","REV","Revenue","R7079","Highways and Transportation Management","04-SUPPLIES","Supplies And Services","04F","Communications and computing","5858","Phones","3572018","202009",03/12/2019 00:00:00,12.5,"51500","Mobile Phones - Personal Numbers","REDACTED DATA","EE LTD (AIRTIME PAYMENTS)","2382161","http://opencorporates.com/companies/gb/2382161","771592016"
"London Borough of Redbridge","http://opendatacommunities.org/doc/london-borough-council/redbridge","4BMANGT&SUPP","Management & Support Services","4CHIGHRDROUT","Highways/Roads (Routine)","REV","Revenue","R7079","Highways and Transportation Management","04-SUPPLIES","Supplies And Services","04F","Communications and computing","5858","Phones","3572018","202009",03/12/2019 00:00:00,12.5,"51500","Mobile Phones - Personal Numbers","REDACTED DATA","EE LTD (AIRTIME PAYMENTS)","2382161","http://opencorporates.com/companies/gb/2382161","771592016"
"London Borough of Redbridge","http://opendatacommunities.org/doc/london-borough-council/redbridge","4BMANGT&SUPP","Management & Support Services","4CHIGHRDROUT","Highways/Roads (Routine)","REV","Revenue","R7079","Highways and Transportation Management","04-SUPPLIES","Supplies And Services","04F","Communications and computing","5858","Phones","3572018","202009",03/12/2019 00:00:00,12.5,"51500","Mobile Phones - Personal Numbers","REDACTED DATA","EE LTD (AIRTIME PAYMENTS)","2382161","http://opencorporates.com/companies/gb/2382161","771592016"
"London Borough of Redbridge","http://opendatacommunities.org/doc/london-borough-council/redbridge","4BMANGT&SUPP","Management & Support Services","4CHIGHRDROUT","Highways/Roads (Routine)","REV","Revenue","R7079","Highways and Transportation Management","04-SUPPLIES","Supplies And Services","04F","Communications and computing","5858","Phones","3572018","202009",03/12/2019 00:00:00,12.5,"51500","Mobile Phones - Personal Numbers","REDACTED DATA","EE LTD (AIRTIME PAYMENTS)","2382161","http://opencorporates.com/companies/gb/2382161","771592016"
"London Borough of Redbridge","http://opendatacommunities.org/doc/london-borough-council/redbridge","4BMANGT&SUPP","Management & Support Services","4CHIGHRDROUT","Highways/Roads (Routine)","REV","Revenue","R7079","Highways and Transportation Management","04-SUPPLIES","Supplies And Services","04F","Communications and computing","5858","Phones","3572018","202009",03/12/2019 00:00:00,12.5,"51500","Mobile Phones - Personal Numbers","REDACTED DATA","EE LTD (AIRTIME PAYMENTS)","2382161","http://opencorporates.com/companies/gb/2382161","771592016"
"London Borough of Redbridge","http://opendatacommunities.org/doc/london-borough-council/redbridge","4BMANGT&SUPP","Management & Support Services","4CHIGHRDROUT","Highways/Roads (Routine)","REV","Revenue","R7079","Highways and Transportation Management","04-SUPPLIES","Supplies And Services","04F","Communications and computing","5858","Phones","3572018","202009",03/12/2019 00:00:00,12.5,"51500","Mobile Phones - Personal Numbers","REDACTED DATA","EE LTD (AIRTIME PAYMENTS)","2382161","http://opencorporates.com/companies/gb/2382161","771592016"
"London Borough of Redbridge","http://opendatacommunities.org/doc/london-borough-council/redbridge","4BMANGT&SUPP","Management & Support Services","4CHIGHRDROUT","Highways/Roads (Routine)","REV","Revenue","R7079","Highways and Transportation Management","04-SUPPLIES","Supplies And Services","04F","Communications and computing","5858","Phones","3572018","202009",03/12/2019 00:00:00,12.5,"51500","Mobile Phones - Personal Numbers","REDACTED DATA","EE LTD (AIRTIME PAYMENTS)","2382161","http://opencorporates.com/companies/gb/2382161","771592016"
"London Borough of Redbridge","http://opendatacommunities.org/doc/london-borough-council/redbridge","4BMANGT&SUPP","Management & Support Services","4CHIGHRDROUT","Highways/Roads (Routine)","REV","Revenue","R7079","Highways and Transportation Management","04-SUPPLIES","Supplies And Services","04F","Communications and computing","5858","Phones","3572018","202009",03/12/2019 00:00:00,12.5,"51500","Mobile Phones - Personal Numbers","REDACTED DATA","EE LTD (AIRTIME PAYMENTS)","2382161","http://opencorporates.com/companies/gb/2382161","771592016"
"London Borough of Redbridge","http://opendatacommunities.org/doc/london-borough-council/redbridge","4BPUBLICTRAN","Public Transport","4CPARKING","Parking Services","REV","Revenue","R7037","Attendants Parking Enforcement","04-SUPPLIES","Supplies And Services","04F","Communications and computing","5858","Phones","3572018","202009",03/12/2019 00:00:00,12.5,"51500","Mobile Phones - Personal Numbers","REDACTED DATA","EE LTD (AIRTIME PAYMENTS)","2382161","http://opencorporates.com/companies/gb/2382161","771592016"
"London Borough of Redbridge","http://opendatacommunities.org/doc/london-borough-council/redbridge","4BTRANSPORT","Transport Planning, Policy & Strategy","4CMANGT&SUPP","Management & Support Services","REV","Revenue","R7000","Business Support Civic Pride","04-SUPPLIES","Supplies And Services","04F","Communications and computing","5858","Phones","3572018","202009",03/12/2019 00:00:00,12.5,"51500","Mobile Phones - Personal Numbers","REDACTED DATA","EE LTD (AIRTIME PAYMENTS)","2382161","http://opencorporates.com/companies/gb/2382161","771592016"
"London Borough of Redbridge","http://opendatacommunities.org/doc/london-borough-council/redbridge","4BTRANSPORT","Transport Planning, Policy & Strategy","4CMANGT&SUPP","Management & Support Services","REV","Revenue","R7000","Business Support Civic Pride","04-SUPPLIES","Supplies And Services","04F","Communications and computing","5858","Phones","3572018","202009",03/12/2019 00:00:00,12.5,"51500","Mobile Phones - Personal Numbers","REDACTED DATA","EE LTD (AIRTIME PAYMENTS)","2382161","http://opencorporates.com/companies/gb/2382161","771592016"
"London Borough of Redbridge","http://opendatacommunities.org/doc/london-borough-council/redbridge","4BTRANSPORT","Transport Planning, Policy & Strategy","4CMANGT&SUPP","Management & Support Services","REV","Revenue","R7000","Business Support Civic Pride","04-SUPPLIES","Supplies And Services","04F","Communications and computing","5858","Phones","3572018","202009",03/12/2019 00:00:00,12.5,"51500","Mobile Phones - Personal Numbers","REDACTED DATA","EE LTD (AIRTIME PAYMENTS)","2382161","http://opencorporates.com/companies/gb/2382161","771592016"
"London Borough of Redbridge","http://opendatacommunities.org/doc/london-borough-council/redbridge","4BTRANSPORT","Transport Planning, Policy & Strategy","4CMANGT&SUPP","Management & Support Services","REV","Revenue","R7000","Business Support Civic Pride","04-SUPPLIES","Supplies And Services","04F","Communications and computing","5858","Phones","3572018","202009",03/12/2019 00:00:00,12.5,"51500","Mobile Phones - Personal Numbers","REDACTED DATA","EE LTD (AIRTIME PAYMENTS)","2382161","http://opencorporates.com/companies/gb/2382161","771592016"
"London Borough of Redbridge","http://opendatacommunities.org/doc/london-borough-council/redbridge","4BTRANSPORT","Transport Planning, Policy & Strategy","4CMANGT&SUPP","Management & Support Services","REV","Revenue","R7000","Business Support Civic Pride","04-SUPPLIES","Supplies And Services","04F","Communications and computing","5858","Phones","3572018","202009",03/12/2019 00:00:00,12.5,"51500","Mobile Phones - Personal Numbers","REDACTED DATA","EE LTD (AIRTIME PAYMENTS)","2382161","http://opencorporates.com/companies/gb/2382161","771592016"
"London Borough of Redbridge","http://opendatacommunities.org/doc/london-borough-council/redbridge","4BTRANSPORT","Transport Planning, Policy & Strategy","4CMANGT&SUPP","Management & Support Services","REV","Revenue","R7000","Business Support Civic Pride","04-SUPPLIES","Supplies And Services","04F","Communications and computing","5858","Phones","3572018","202009",03/12/2019 00:00:00,12.5,"51500","Mobile Phones - Personal Numbers","REDACTED DATA","EE LTD (AIRTIME PAYMENTS)","2382161","http://opencorporates.com/companies/gb/2382161","771592016"
"London Borough of Redbridge","http://opendatacommunities.org/doc/london-borough-council/redbridge","4BTRANSPORT","Transport Planning, Policy & Strategy","4CMANGT&SUPP","Management & Support Services","REV","Revenue","R7000","Business Support Civic Pride","04-SUPPLIES","Supplies And Services","04F","Communications and computing","5858","Phones","3572018","202009",03/12/2019 00:00:00,12.5,"51500","Mobile Phones - Personal Numbers","REDACTED DATA","EE LTD (AIRTIME PAYMENTS)","2382161","http://opencorporates.com/companies/gb/2382161","771592016"
"London Borough of Redbridge","http://opendatacommunities.org/doc/london-borough-council/redbridge","4BTRANSPORT","Transport Planning, Policy & Strategy","4CMANGT&SUPP","Management & Support Services","REV","Revenue","R7000","Business Support Civic Pride","04-SUPPLIES","Supplies And Services","04F","Communications and computing","5858","Phones","3572018","202009",03/12/2019 00:00:00,12.5,"51500","Mobile Phones - Personal Numbers","REDACTED DATA","EE LTD (AIRTIME PAYMENTS)","2382161","http://opencorporates.com/companies/gb/2382161","771592016"
"London Borough of Redbridge","http://opendatacommunities.org/doc/london-borough-council/redbridge","4BTRANSPORT","Transport Planning, Policy & Strategy","4CMANGT&SUPP","Management & Support Services","REV","Revenue","R7000","Business Support Civic Pride","04-SUPPLIES","Supplies And Services","04F","Communications and computing","5858","Phones","3572018","202009",03/12/2019 00:00:00,12.5,"51500","Mobile Phones - Personal Numbers","REDACTED DATA","EE LTD (AIRTIME PAYMENTS)","2382161","http://opencorporates.com/companies/gb/2382161","771592016"
"London Borough of Redbridge","http://opendatacommunities.org/doc/london-borough-council/redbridge","4BTRANSPORT","Transport Planning, Policy & Strategy","4CMANGT&SUPP","Management & Support Services","REV","Revenue","R7000","Business Support Civic Pride","04-SUPPLIES","Supplies And Services","04F","Communications and computing","5858","Phones","3572018","202009",03/12/2019 00:00:00,12.5,"51500","Mobile Phones - Personal Numbers","REDACTED DATA","EE LTD (AIRTIME PAYMENTS)","2382161","http://opencorporates.com/companies/gb/2382161","771592016"
"London Borough of Redbridge","http://opendatacommunities.org/doc/london-borough-council/redbridge","4BTRANSPORT","Transport Planning, Policy & Strategy","4CMANGT&SUPP","Management & Support Services","REV","Revenue","R7000","Business Support Civic Pride","04-SUPPLIES","Supplies And Services","04F","Communications and computing","5858","Phones","3572018","202009",03/12/2019 00:00:00,12.5,"51500","Mobile Phones - Personal Numbers","REDACTED DATA","EE LTD (AIRTIME PAYMENTS)","2382161","http://opencorporates.com/companies/gb/2382161","771592016"
"London Borough of Redbridge","http://opendatacommunities.org/doc/london-borough-council/redbridge","4BTRANSPORT","Transport Planning, Policy & Strategy","4CMANGT&SUPP","Management & Support Services","REV","Revenue","R7000","Business Support Civic Pride","04-SUPPLIES","Supplies And Services","04F","Communications and computing","5858","Phones","3572018","202009",03/12/2019 00:00:00,12.5,"51500","Mobile Phones - Personal Numbers","REDACTED DATA","EE LTD (AIRTIME PAYMENTS)","2382161","http://opencorporates.com/companies/gb/2382161","771592016"
"London Borough of Redbridge","http://opendatacommunities.org/doc/london-borough-council/redbridge","4BTRANSPORT","Transport Planning, Policy & Strategy","4CMANGT&SUPP","Management & Support Services","REV","Revenue","R7000","Business Support Civic Pride","04-SUPPLIES","Supplies And Services","04F","Communications and computing","5858","Phones","3572018","202009",03/12/2019 00:00:00,12.5,"51500","Mobile Phones - Personal Numbers","REDACTED DATA","EE LTD (AIRTIME PAYMENTS)","2382161","http://opencorporates.com/companies/gb/2382161","771592016"
"London Borough of Redbridge","http://opendatacommunities.org/doc/london-borough-council/redbridge","4BTRANSPORT","Transport Planning, Policy & Strategy","4CMANGT&SUPP","Management & Support Services","REV","Revenue","R7000","Business Support Civic Pride","04-SUPPLIES","Supplies And Services","04F","Communications and computing","5858","Phones","3572018","202009",03/12/2019 00:00:00,12.5,"51500","Mobile Phones - Personal Numbers","REDACTED DATA","EE LTD (AIRTIME PAYMENTS)","2382161","http://opencorporates.com/companies/gb/2382161","771592016"
"London Borough of Redbridge","http://opendatacommunities.org/doc/london-borough-council/redbridge","4BTRANSPORT","Transport Planning, Policy & Strategy","4CMANGT&SUPP","Management & Support Services","REV","Revenue","R7000","Business Support Civic Pride","04-SUPPLIES","Supplies And Services","04F","Communications and computing","5858","Phones","3572018","202009",03/12/2019 00:00:00,12.5,"51500","Mobile Phones - Personal Numbers","REDACTED DATA","EE LTD (AIRTIME PAYMENTS)","2382161","http://opencorporates.com/companies/gb/2382161","771592016"
"London Borough of Redbridge","http://opendatacommunities.org/doc/london-borough-council/redbridge","4BTRANSPORT","Transport Planning, Policy & Strategy","4CMANGT&SUPP","Management & Support Services","REV","Revenue","R7000","Business Support Civic Pride","04-SUPPLIES","Supplies And Services","04F","Communications and computing","5858","Phones","3572018","202009",03/12/2019 00:00:00,12.5,"51500","Mobile Phones - Personal Numbers","REDACTED DATA","EE LTD (AIRTIME PAYMENTS)","2382161","http://opencorporates.com/companies/gb/2382161","771592016"
"London Borough of Redbridge","http://opendatacommunities.org/doc/london-borough-council/redbridge","4BTRANSPORT","Transport Planning, Policy & Strategy","4CMANGT&SUPP","Management & Support Services","REV","Revenue","R7000","Business Support Civic Pride","04-SUPPLIES","Supplies And Services","04F","Communications and computing","5858","Phones","3572018","202009",03/12/2019 00:00:00,12.5,"51500","Mobile Phones - Personal Numbers","REDACTED DATA","EE LTD (AIRTIME PAYMENTS)","2382161","http://opencorporates.com/companies/gb/2382161","771592016"
"London Borough of Redbridge","http://opendatacommunities.org/doc/london-borough-council/redbridge","4BTRANSPORT","Transport Planning, Policy & Strategy","4CMANGT&SUPP","Management & Support Services","REV","Revenue","R7000","Business Support Civic Pride","04-SUPPLIES","Supplies And Services","04F","Communications and computing","5858","Phones","3572018","202009",03/12/2019 00:00:00,12.5,"51500","Mobile Phones - Personal Numbers","REDACTED DATA","EE LTD (AIRTIME PAYMENTS)","2382161","http://opencorporates.com/companies/gb/2382161","771592016"
"London Borough of Redbridge","http://opendatacommunities.org/doc/london-borough-council/redbridge","4BTRANSPORT","Transport Planning, Policy & Strategy","4CMANGT&SUPP","Management & Support Services","REV","Revenue","R7000","Business Support Civic Pride","04-SUPPLIES","Supplies And Services","04F","Communications and computing","5858","Phones","3572018","202009",03/12/2019 00:00:00,12.5,"51500","Mobile Phones - Personal Numbers","REDACTED DATA","EE LTD (AIRTIME PAYMENTS)","2382161","http://opencorporates.com/companies/gb/2382161","771592016"
"London Borough of Redbridge","http://opendatacommunities.org/doc/london-borough-council/redbridge","4BTRANSPORT","Transport Planning, Policy & Strategy","4CMANGT&SUPP","Management & Support Services","REV","Revenue","R7000","Business Support Civic Pride","04-SUPPLIES","Supplies And Services","04F","Communications and computing","5858","Phones","3572018","202009",03/12/2019 00:00:00,12.5,"51500","Mobile Phones - Personal Numbers","REDACTED DATA","EE LTD (AIRTIME PAYMENTS)","2382161","http://opencorporates.com/companies/gb/2382161","771592016"
"London Borough of Redbridge","http://opendatacommunities.org/doc/london-borough-council/redbridge","4BTRANSPORT","Transport Planning, Policy & Strategy","4CMANGT&SUPP","Management & Support Services","REV","Revenue","R7000","Business Support Civic Pride","04-SUPPLIES","Supplies And Services","04F","Communications and computing","5858","Phones","3572018","202009",03/12/2019 00:00:00,12.5,"51500","Mobile Phones - Personal Numbers","REDACTED DATA","EE LTD (AIRTIME PAYMENTS)","2382161","http://opencorporates.com/companies/gb/2382161","771592016"
"London Borough of Redbridge","http://opendatacommunities.org/doc/london-borough-council/redbridge","4BTRANSPORT","Transport Planning, Policy & Strategy","4CMANGT&SUPP","Management & Support Services","REV","Revenue","R7000","Business Support Civic Pride","04-SUPPLIES","Supplies And Services","04F","Communications and computing","5858","Phones","3572018","202009",03/12/2019 00:00:00,12.5,"51500","Mobile Phones - Personal Numbers","REDACTED DATA","EE LTD (AIRTIME PAYMENTS)","2382161","http://opencorporates.com/companies/gb/2382161","771592016"
"London Borough of Redbridge","http://opendatacommunities.org/doc/london-borough-council/redbridge","4BTRANSPORT","Transport Planning, Policy & Strategy","4CMANGT&SUPP","Management & Support Services","REV","Revenue","R7000","Business Support Civic Pride","04-SUPPLIES","Supplies And Services","04F","Communications and computing","5858","Phones","3572018","202009",03/12/2019 00:00:00,12.5,"51500","Mobile Phones - Personal Numbers","REDACTED DATA","EE LTD (AIRTIME PAYMENTS)","2382161","http://opencorporates.com/companies/gb/2382161","771592016"
"London Borough of Redbridge","http://opendatacommunities.org/doc/london-borough-council/redbridge","5BGFHOUSING","General Fund Housing","5CHOUMGTSUPP","Housing Management & Support Services","REV","Revenue","R5601","Housing Service Administration","04-SUPPLIES","Supplies And Services","04F","Communications and computing","5858","Phones","3572018","202009",03/12/2019 00:00:00,12.5,"51500","Mobile Phones - Personal Numbers","REDACTED DATA","EE LTD (AIRTIME PAYMENTS)","2382161","http://opencorporates.com/companies/gb/2382161","771592016"
"London Borough of Redbridge","http://opendatacommunities.org/doc/london-borough-council/redbridge","5BGFHOUSING","General Fund Housing","5CHOUMGTSUPP","Housing Management & Support Services","REV","Revenue","R5601","Housing Service Administration","04-SUPPLIES","Supplies And Services","04F","Communications and computing","5858","Phones","3572018","202009",03/12/2019 00:00:00,12.5,"51500","Mobile Phones - Personal Numbers","REDACTED DATA","EE LTD (AIRTIME PAYMENTS)","2382161","http://opencorporates.com/companies/gb/2382161","771592016"
"London Borough of Redbridge","http://opendatacommunities.org/doc/london-borough-council/redbridge","5BGFHOUSING","General Fund Housing","5CHOUMGTSUPP","Housing Management & Support Services","REV","Revenue","R5601","Housing Service Administration","04-SUPPLIES","Supplies And Services","04F","Communications and computing","5858","Phones","3572018","202009",03/12/2019 00:00:00,12.5,"51500","Mobile Phones - Personal Numbers","REDACTED DATA","EE LTD (AIRTIME PAYMENTS)","2382161","http://opencorporates.com/companies/gb/2382161","771592016"
"London Borough of Redbridge","http://opendatacommunities.org/doc/london-borough-council/redbridge","5BGFHOUSING","General Fund Housing","5CHOUMGTSUPP","Housing Management & Support Services","REV","Revenue","R5601","Housing Service Administration","04-SUPPLIES","Supplies And Services","04F","Communications and computing","5858","Phones","3572018","202009",03/12/2019 00:00:00,12.5,"51500","Mobile Phones - Personal Numbers","REDACTED DATA","EE LTD (AIRTIME PAYMENTS)","2382161","http://opencorporates.com/companies/gb/2382161","771592016"
"London Borough of Redbridge","http://opendatacommunities.org/doc/london-borough-council/redbridge","5BHRAEXPEND","HRA Expenditure","5CHOUMGTSUPP","Housing Management & Support Services","REV","Revenue","R5044","Housing IT System","04-SUPPLIES","Supplies And Services","04F","Communications and computing","5858","Phones","3572018","202009",03/12/2019 00:00:00,15.5,"51500","Mobile Phones - Personal Numbers","REDACTED DATA","EE LTD (AIRTIME PAYMENTS)","2382161","http://opencorporates.com/companies/gb/2382161","771592016"
"London Borough of Redbridge","http://opendatacommunities.org/doc/london-borough-council/redbridge","5BHRAEXPEND","HRA Expenditure","5CHOUMGTSUPP","Housing Management & Support Services","REV","Revenue","R5044","Housing IT System","04-SUPPLIES","Supplies And Services","04F","Communications and computing","5858","Phones","3572018","202009",03/12/2019 00:00:00,12.5,"51500","Mobile Phones - Personal Numbers","REDACTED DATA","EE LTD (AIRTIME PAYMENTS)","2382161","http://opencorporates.com/companies/gb/2382161","771592016"
"London Borough of Redbridge","http://opendatacommunities.org/doc/london-borough-council/redbridge","5BHRAEXPEND","HRA Expenditure","5CHOUMGTSUPP","Housing Management & Support Services","REV","Revenue","R5044","Housing IT System","04-SUPPLIES","Supplies And Services","04F","Communications and computing","5858","Phones","3572018","202009",03/12/2019 00:00:00,15.5,"51500","Mobile Phones - Personal Numbers","REDACTED DATA","EE LTD (AIRTIME PAYMENTS)","2382161","http://opencorporates.com/companies/gb/2382161","771592016"
"London Borough of Redbridge","http://opendatacommunities.org/doc/london-borough-council/redbridge","5BHRAEXPEND","HRA Expenditure","5CHOUMGTSUPP","Housing Management & Support Services","REV","Revenue","R5044","Housing IT System","04-SUPPLIES","Supplies And Services","04F","Communications and computing","5858","Phones","3572018","202009",03/12/2019 00:00:00,12.5,"51500","Mobile Phones - Personal Numbers","REDACTED DATA","EE LTD (AIRTIME PAYMENTS)","2382161","http://opencorporates.com/companies/gb/2382161","771592016"
"London Borough of Redbridge","http://opendatacommunities.org/doc/london-borough-council/redbridge","6BADULTSOCIA","Adult Social Care","6CADMENHLTH","Adults Under 65 with Mental Health Needs","REV","Revenue","R4473","Lifelines","04-SUPPLIES","Supplies And Services","04F","Communications and computing","5858","Phones","3572018","202009",03/12/2019 00:00:00,12,"51500","Mobile Phones - Personal Numbers","REDACTED DATA","EE LTD (AIRTIME PAYMENTS)","2382161","http://opencorporates.com/companies/gb/2382161","771592016"
"London Borough of Redbridge","http://opendatacommunities.org/doc/london-borough-council/redbridge","6BADULTSOCIA","Adult Social Care","6CADMENHLTH","Adults Under 65 with Mental Health Needs","REV","Revenue","R4473","Lifelines","04-SUPPLIES","Supplies And Services","04F","Communications and computing","5858","Phones","3572018","202009",03/12/2019 00:00:00,12,"51500","Mobile Phones - Personal Numbers","REDACTED DATA","EE LTD (AIRTIME PAYMENTS)","2382161","http://opencorporates.com/companies/gb/2382161","771592016"
"London Borough of Redbridge","http://opendatacommunities.org/doc/london-borough-council/redbridge","6BADULTSOCIA","Adult Social Care","6CADMENHLTH","Adults Under 65 with Mental Health Needs","REV","Revenue","R4484","Multi- Disciplinary Team (Fairlop)","04-SUPPLIES","Supplies And Services","04F","Communications and computing","5858","Phones","3572018","202009",03/12/2019 00:00:00,15,"51500","Mobile Phones - Personal Numbers","REDACTED DATA","EE LTD (AIRTIME PAYMENTS)","2382161","http://opencorporates.com/companies/gb/2382161","771592016"
"London Borough of Redbridge","http://opendatacommunities.org/doc/london-borough-council/redbridge","6BADULTSOCIA","Adult Social Care","6CADMENHLTH","Adults Under 65 with Mental Health Needs","REV","Revenue","R4484","Multi- Disciplinary Team (Fairlop)","04-SUPPLIES","Supplies And Services","04F","Communications and computing","5858","Phones","3572018","202009",03/12/2019 00:00:00,15,"51500","Mobile Phones - Personal Numbers","REDACTED DATA","EE LTD (AIRTIME PAYMENTS)","2382161","http://opencorporates.com/companies/gb/2382161","771592016"
"London Borough of Redbridge","http://opendatacommunities.org/doc/london-borough-council/redbridge","6BADULTSOCIA","Adult Social Care","6CADMENHLTH","Adults Under 65 with Mental Health Needs","REV","Revenue","R4484","Multi- Disciplinary Team (Fairlop)","04-SUPPLIES","Supplies And Services","04F","Communications and computing","5858","Phones","3572018","202009",03/12/2019 00:00:00,15,"51500","Mobile Phones - Personal Numbers","REDACTED DATA","EE LTD (AIRTIME PAYMENTS)","2382161","http://opencorporates.com/companies/gb/2382161","771592016"
"London Borough of Redbridge","http://opendatacommunities.org/doc/london-borough-council/redbridge","6BADULTSOCIA","Adult Social Care","6CADMENHLTH","Adults Under 65 with Mental Health Needs","REV","Revenue","R4484","Multi- Disciplinary Team (Fairlop)","04-SUPPLIES","Supplies And Services","04F","Communications and computing","5858","Phones","3572018","202009",03/12/2019 00:00:00,15,"51500","Mobile Phones - Personal Numbers","REDACTED DATA","EE LTD (AIRTIME PAYMENTS)","2382161","http://opencorporates.com/companies/gb/2382161","771592016"
"London Borough of Redbridge","http://opendatacommunities.org/doc/london-borough-council/redbridge","6BADULTSOCIA","Adult Social Care","6CADMENHLTH","Adults Under 65 with Mental Health Needs","REV","Revenue","R4484","Multi- Disciplinary Team (Fairlop)","04-SUPPLIES","Supplies And Services","04F","Communications and computing","5858","Phones","3572018","202009",03/12/2019 00:00:00,15,"51500","Mobile Phones - Personal Numbers","REDACTED DATA","EE LTD (AIRTIME PAYMENTS)","2382161","http://opencorporates.com/companies/gb/2382161","771592016"
"London Borough of Redbridge","http://opendatacommunities.org/doc/london-borough-council/redbridge","6BADULTSOCIA","Adult Social Care","6CADMENHLTH","Adults Under 65 with Mental Health Needs","REV","Revenue","R4484","Multi- Disciplinary Team (Fairlop)","04-SUPPLIES","Supplies And Services","04F","Communications and computing","5858","Phones","3572018","202009",03/12/2019 00:00:00,15,"51500","Mobile Phones - Personal Numbers","REDACTED DATA","EE LTD (AIRTIME PAYMENTS)","2382161","http://opencorporates.com/companies/gb/2382161","771592016"
"London Borough of Redbridge","http://opendatacommunities.org/doc/london-borough-council/redbridge","6BADULTSOCIA","Adult Social Care","6CADMENHLTH","Adults Under 65 with Mental Health Needs","REV","Revenue","R4484","Multi- Disciplinary Team (Fairlop)","04-SUPPLIES","Supplies And Services","04F","Communications and computing","5858","Phones","3572018","202009",03/12/2019 00:00:00,15,"51500","Mobile Phones - Personal Numbers","REDACTED DATA","EE LTD (AIRTIME PAYMENTS)","2382161","http://opencorporates.com/companies/gb/2382161","771592016"
"London Borough of Redbridge","http://opendatacommunities.org/doc/london-borough-council/redbridge","6BADULTSOCIA","Adult Social Care","6CADMENHLTH","Adults Under 65 with Mental Health Needs","REV","Revenue","R4484","Multi- Disciplinary Team (Fairlop)","04-SUPPLIES","Supplies And Services","04F","Communications and computing","5858","Phones","3572018","202009",03/12/2019 00:00:00,15,"51500","Mobile Phones - Personal Numbers","REDACTED DATA","EE LTD (AIRTIME PAYMENTS)","2382161","http://opencorporates.com/companies/gb/2382161","771592016"
"London Borough of Redbridge","http://opendatacommunities.org/doc/london-borough-council/redbridge","6BADULTSOCIA","Adult Social Care","6CADMENHLTH","Adults Under 65 with Mental Health Needs","REV","Revenue","R4484","Multi- Disciplinary Team (Fairlop)","04-SUPPLIES","Supplies And Services","04F","Communications and computing","5858","Phones","3572018","202009",03/12/2019 00:00:00,15,"51500","Mobile Phones - Personal Numbers","REDACTED DATA","EE LTD (AIRTIME PAYMENTS)","2382161","http://opencorporates.com/companies/gb/2382161","771592016"
"London Borough of Redbridge","http://opendatacommunities.org/doc/london-borough-council/redbridge","6BADULTSOCIA","Adult Social Care","6CADMENHLTH","Adults Under 65 with Mental Health Needs","REV","Revenue","R4484","Multi- Disciplinary Team (Fairlop)","04-SUPPLIES","Supplies And Services","04F","Communications and computing","5858","Phones","3572018","202009",03/12/2019 00:00:00,15,"51500","Mobile Phones - Personal Numbers","REDACTED DATA","EE LTD (AIRTIME PAYMENTS)","2382161","http://opencorporates.com/companies/gb/2382161","771592016"
"London Borough of Redbridge","http://opendatacommunities.org/doc/london-borough-council/redbridge","6BADULTSOCIA","Adult Social Care","6CADMENHLTH","Adults Under 65 with Mental Health Needs","REV","Revenue","R4484","Multi- Disciplinary Team (Fairlop)","04-SUPPLIES","Supplies And Services","04F","Communications and computing","5858","Phones","3572018","202009",03/12/2019 00:00:00,15,"51500","Mobile Phones - Personal Numbers","REDACTED DATA","EE LTD (AIRTIME PAYMENTS)","2382161","http://opencorporates.com/companies/gb/2382161","771592016"
"London Borough of Redbridge","http://opendatacommunities.org/doc/london-borough-council/redbridge","6BADULTSOCIA","Adult Social Care","6CADMENHLTH","Adults Under 65 with Mental Health Needs","REV","Revenue","R4484","Multi- Disciplinary Team (Fairlop)","04-SUPPLIES","Supplies And Services","04F","Communications and computing","5858","Phones","3572018","202009",03/12/2019 00:00:00,75.8,"51500","Mobile Phones - Personal Numbers","REDACTED DATA","EE LTD (AIRTIME PAYMENTS)","2382161","http://opencorporates.com/companies/gb/2382161","771592016"
"London Borough of Redbridge","http://opendatacommunities.org/doc/london-borough-council/redbridge","6BADULTSOCIA","Adult Social Care","6CADMENHLTH","Adults Under 65 with Mental Health Needs","REV","Revenue","R4484","Multi- Disciplinary Team (Fairlop)","04-SUPPLIES","Supplies And Services","04F","Communications and computing","5858","Phones","3572018","202009",03/12/2019 00:00:00,15,"51500","Mobile Phones - Personal Numbers","REDACTED DATA","EE LTD (AIRTIME PAYMENTS)","2382161","http://opencorporates.com/companies/gb/2382161","771592016"
"London Borough of Redbridge","http://opendatacommunities.org/doc/london-borough-council/redbridge","6BADULTSOCIA","Adult Social Care","6CADMENHLTH","Adults Under 65 with Mental Health Needs","REV","Revenue","R4484","Multi- Disciplinary Team (Fairlop)","04-SUPPLIES","Supplies And Services","04F","Communications and computing","5858","Phones","3572018","202009",03/12/2019 00:00:00,15,"51500","Mobile Phones - Personal Numbers","REDACTED DATA","EE LTD (AIRTIME PAYMENTS)","2382161","http://opencorporates.com/companies/gb/2382161","771592016"
"London Borough of Redbridge","http://opendatacommunities.org/doc/london-borough-council/redbridge","6BADULTSOCIA","Adult Social Care","6CADMENHLTH","Adults Under 65 with Mental Health Needs","REV","Revenue","R4484","Multi- Disciplinary Team (Fairlop)","04-SUPPLIES","Supplies And Services","04F","Communications and computing","5858","Phones","3572018","202009",03/12/2019 00:00:00,15,"51500","Mobile Phones - Personal Numbers","REDACTED DATA","EE LTD (AIRTIME PAYMENTS)","2382161","http://opencorporates.com/companies/gb/2382161","771592016"
"London Borough of Redbridge","http://opendatacommunities.org/doc/london-borough-council/redbridge","6BADULTSOCIA","Adult Social Care","6CADMENHLTH","Adults Under 65 with Mental Health Needs","REV","Revenue","R4484","Multi- Disciplinary Team (Fairlop)","04-SUPPLIES","Supplies And Services","04F","Communications and computing","5858","Phones","3572018","202009",03/12/2019 00:00:00,15,"51500","Mobile Phones - Personal Numbers","REDACTED DATA","EE LTD (AIRTIME PAYMENTS)","2382161","http://opencorporates.com/companies/gb/2382161","771592016"
"London Borough of Redbridge","http://opendatacommunities.org/doc/london-borough-council/redbridge","6BADULTSOCIA","Adult Social Care","6COLDINCMENT","Older People (65 or over) incl. Older Mentally Ill","REV","Revenue","R4360","Hospital and Health Team","04-SUPPLIES","Supplies And Services","04F","Communications and computing","5858","Phones","3572018","202009",03/12/2019 00:00:00,12.5,"51500","Mobile Phones - Personal Numbers","REDACTED DATA","EE LTD (AIRTIME PAYMENTS)","2382161","http://opencorporates.com/companies/gb/2382161","771592016"
"London Borough of Redbridge","http://opendatacommunities.org/doc/london-borough-council/redbridge","6BADULTSOCIA","Adult Social Care","6COLDINCMENT","Older People (65 or over) incl. Older Mentally Ill","REV","Revenue","R4360","Hospital and Health Team","04-SUPPLIES","Supplies And Services","04F","Communications and computing","5858","Phones","3572018","202009",03/12/2019 00:00:00,12.5,"51500","Mobile Phones - Personal Numbers","REDACTED DATA","EE LTD (AIRTIME PAYMENTS)","2382161","http://opencorporates.com/companies/gb/2382161","771592016"
"London Borough of Redbridge","http://opendatacommunities.org/doc/london-borough-council/redbridge","6BADULTSOCIA","Adult Social Care","6COLDINCMENT","Older People (65 or over) incl. Older Mentally Ill","REV","Revenue","R4467","HUB Business Costs","04-SUPPLIES","Supplies And Services","04F","Communications and computing","5858","Phones","3572018","202009",03/12/2019 00:00:00,12.5,"51500","Mobile Phones - Personal Numbers","REDACTED DATA","EE LTD (AIRTIME PAYMENTS)","2382161","http://opencorporates.com/companies/gb/2382161","771592016"
"London Borough of Redbridge","http://opendatacommunities.org/doc/london-borough-council/redbridge","6BADULTSOCIA","Adult Social Care","6COLDINCMENT","Older People (65 or over) incl. Older Mentally Ill","REV","Revenue","R4467","HUB Business Costs","04-SUPPLIES","Supplies And Services","04F","Communications and computing","5858","Phones","3572018","202009",03/12/2019 00:00:00,12.5,"51500","Mobile Phones - Personal Numbers","REDACTED DATA","EE LTD (AIRTIME PAYMENTS)","2382161","http://opencorporates.com/companies/gb/2382161","771592016"
"London Borough of Redbridge","http://opendatacommunities.org/doc/london-borough-council/redbridge","6BADULTSOCIA","Adult Social Care","6COLDINCMENT","Older People (65 or over) incl. Older Mentally Ill","REV","Revenue","R4467","HUB Business Costs","04-SUPPLIES","Supplies And Services","04F","Communications and computing","5858","Phones","3572018","202009",03/12/2019 00:00:00,12.5,"51500","Mobile Phones - Personal Numbers","REDACTED DATA","EE LTD (AIRTIME PAYMENTS)","2382161","http://opencorporates.com/companies/gb/2382161","771592016"
"London Borough of Redbridge","http://opendatacommunities.org/doc/london-borough-council/redbridge","6BADULTSOCIA","Adult Social Care","6COLDINCMENT","Older People (65 or over) incl. Older Mentally Ill","REV","Revenue","R4483","Multi-Disciplinary Team (Wanstead and Woodford)","04-SUPPLIES","Supplies And Services","04F","Communications and computing","5858","Phones","3572018","202009",03/12/2019 00:00:00,15,"51500","Mobile Phones - Personal Numbers","REDACTED DATA","EE LTD (AIRTIME PAYMENTS)","2382161","http://opencorporates.com/companies/gb/2382161","771592016"
"London Borough of Redbridge","http://opendatacommunities.org/doc/london-borough-council/redbridge","6BADULTSOCIA","Adult Social Care","6COLDINCMENT","Older People (65 or over) incl. Older Mentally Ill","REV","Revenue","R4483","Multi-Disciplinary Team (Wanstead and Woodford)","04-SUPPLIES","Supplies And Services","04F","Communications and computing","5858","Phones","3572018","202009",03/12/2019 00:00:00,15,"51500","Mobile Phones - Personal Numbers","REDACTED DATA","EE LTD (AIRTIME PAYMENTS)","2382161","http://opencorporates.com/companies/gb/2382161","771592016"
"London Borough of Redbridge","http://opendatacommunities.org/doc/london-borough-council/redbridge","6BADULTSOCIA","Adult Social Care","6COLDINCMENT","Older People (65 or over) incl. Older Mentally Ill","REV","Revenue","R4483","Multi-Disciplinary Team (Wanstead and Woodford)","04-SUPPLIES","Supplies And Services","04F","Communications and computing","5858","Phones","3572018","202009",03/12/2019 00:00:00,15,"51500","Mobile Phones - Personal Numbers","REDACTED DATA","EE LTD (AIRTIME PAYMENTS)","2382161","http://opencorporates.com/companies/gb/2382161","771592016"
"London Borough of Redbridge","http://opendatacommunities.org/doc/london-borough-council/redbridge","6BADULTSOCIA","Adult Social Care","6COLDINCMENT","Older People (65 or over) incl. Older Mentally Ill","REV","Revenue","R4483","Multi-Disciplinary Team (Wanstead and Woodford)","04-SUPPLIES","Supplies And Services","04F","Communications and computing","5858","Phones","3572018","202009",03/12/2019 00:00:00,15,"51500","Mobile Phones - Personal Numbers","REDACTED DATA","EE LTD (AIRTIME PAYMENTS)","2382161","http://opencorporates.com/companies/gb/2382161","771592016"
"London Borough of Redbridge","http://opendatacommunities.org/doc/london-borough-council/redbridge","6BADULTSOCIA","Adult Social Care","6COLDINCMENT","Older People (65 or over) incl. Older Mentally Ill","REV","Revenue","R4483","Multi-Disciplinary Team (Wanstead and Woodford)","04-SUPPLIES","Supplies And Services","04F","Communications and computing","5858","Phones","3572018","202009",03/12/2019 00:00:00,12.5,"51500","Mobile Phones - Personal Numbers","REDACTED DATA","EE LTD (AIRTIME PAYMENTS)","2382161","http://opencorporates.com/companies/gb/2382161","771592016"
"London Borough of Redbridge","http://opendatacommunities.org/doc/london-borough-council/redbridge","6BADULTSOCIA","Adult Social Care","6COLDINCMENT","Older People (65 or over) incl. Older Mentally Ill","REV","Revenue","R4483","Multi-Disciplinary Team (Wanstead and Woodford)","04-SUPPLIES","Supplies And Services","04F","Communications and computing","5858","Phones","3572018","202009",03/12/2019 00:00:00,15,"51500","Mobile Phones - Personal Numbers","REDACTED DATA","EE LTD (AIRTIME PAYMENTS)","2382161","http://opencorporates.com/companies/gb/2382161","771592016"
"London Borough of Redbridge","http://opendatacommunities.org/doc/london-borough-council/redbridge","6BADULTSOCIA","Adult Social Care","6COLDINCMENT","Older People (65 or over) incl. Older Mentally Ill","REV","Revenue","R4483","Multi-Disciplinary Team (Wanstead and Woodford)","04-SUPPLIES","Supplies And Services","04F","Communications and computing","5858","Phones","3572018","202009",03/12/2019 00:00:00,15,"51500","Mobile Phones - Personal Numbers","REDACTED DATA","EE LTD (AIRTIME PAYMENTS)","2382161","http://opencorporates.com/companies/gb/2382161","771592016"
"London Borough of Redbridge","http://opendatacommunities.org/doc/london-borough-council/redbridge","6BADULTSOCIA","Adult Social Care","6COLDINCMENT","Older People (65 or over) incl. Older Mentally Ill","REV","Revenue","R4483","Multi-Disciplinary Team (Wanstead and Woodford)","04-SUPPLIES","Supplies And Services","04F","Communications and computing","5858","Phones","3572018","202009",03/12/2019 00:00:00,15,"51500","Mobile Phones - Personal Numbers","REDACTED DATA","EE LTD (AIRTIME PAYMENTS)","2382161","http://opencorporates.com/companies/gb/2382161","771592016"
"London Borough of Redbridge","http://opendatacommunities.org/doc/london-borough-council/redbridge","6BADULTSOCIA","Adult Social Care","6COLDINCMENT","Older People (65 or over) incl. Older Mentally Ill","REV","Revenue","R4483","Multi-Disciplinary Team (Wanstead and Woodford)","04-SUPPLIES","Supplies And Services","04F","Communications and computing","5858","Phones","3572018","202009",03/12/2019 00:00:00,15,"51500","Mobile Phones - Personal Numbers","REDACTED DATA","EE LTD (AIRTIME PAYMENTS)","2382161","http://opencorporates.com/companies/gb/2382161","771592016"
"London Borough of Redbridge","http://opendatacommunities.org/doc/london-borough-council/redbridge","6BADULTSOCIA","Adult Social Care","6COLDINCMENT","Older People (65 or over) incl. Older Mentally Ill","REV","Revenue","R4483","Multi-Disciplinary Team (Wanstead and Woodford)","04-SUPPLIES","Supplies And Services","04F","Communications and computing","5858","Phones","3572018","202009",03/12/2019 00:00:00,15,"51500","Mobile Phones - Personal Numbers","REDACTED DATA","EE LTD (AIRTIME PAYMENTS)","2382161","http://opencorporates.com/companies/gb/2382161","771592016"
"London Borough of Redbridge","http://opendatacommunities.org/doc/london-borough-council/redbridge","6BADULTSOCIA","Adult Social Care","6COLDINCMENT","Older People (65 or over) incl. Older Mentally Ill","REV","Revenue","R4483","Multi-Disciplinary Team (Wanstead and Woodford)","04-SUPPLIES","Supplies And Services","04F","Communications and computing","5858","Phones","3572018","202009",03/12/2019 00:00:00,15,"51500","Mobile Phones - Personal Numbers","REDACTED DATA","EE LTD (AIRTIME PAYMENTS)","2382161","http://opencorporates.com/companies/gb/2382161","771592016"
"London Borough of Redbridge","http://opendatacommunities.org/doc/london-borough-council/redbridge","6BADULTSOCIA","Adult Social Care","6COLDINCMENT","Older People (65 or over) incl. Older Mentally Ill","REV","Revenue","R4483","Multi-Disciplinary Team (Wanstead and Woodford)","04-SUPPLIES","Supplies And Services","04F","Communications and computing","5858","Phones","3572018","202009",03/12/2019 00:00:00,15,"51500","Mobile Phones - Personal Numbers","REDACTED DATA","EE LTD (AIRTIME PAYMENTS)","2382161","http://opencorporates.com/companies/gb/2382161","771592016"
"London Borough of Redbridge","http://opendatacommunities.org/doc/london-borough-council/redbridge","6BADULTSOCIA","Adult Social Care","6COLDINCMENT","Older People (65 or over) incl. Older Mentally Ill","REV","Revenue","R4483","Multi-Disciplinary Team (Wanstead and Woodford)","04-SUPPLIES","Supplies And Services","04F","Communications and computing","5858","Phones","3572018","202009",03/12/2019 00:00:00,15,"51500","Mobile Phones - Personal Numbers","REDACTED DATA","EE LTD (AIRTIME PAYMENTS)","2382161","http://opencorporates.com/companies/gb/2382161","771592016"
"London Borough of Redbridge","http://opendatacommunities.org/doc/london-borough-council/redbridge","6BADULTSOCIA","Adult Social Care","6COLDINCMENT","Older People (65 or over) incl. Older Mentally Ill","REV","Revenue","R4483","Multi-Disciplinary Team (Wanstead and Woodford)","04-SUPPLIES","Supplies And Services","04F","Communications and computing","5858","Phones","3572018","202009",03/12/2019 00:00:00,15,"51500","Mobile Phones - Personal Numbers","REDACTED DATA","EE LTD (AIRTIME PAYMENTS)","2382161","http://opencorporates.com/companies/gb/2382161","771592016"
"London Borough of Redbridge","http://opendatacommunities.org/doc/london-borough-council/redbridge","6BADULTSOCIA","Adult Social Care","6COLDINCMENT","Older People (65 or over) incl. Older Mentally Ill","REV","Revenue","R4483","Multi-Disciplinary Team (Wanstead and Woodford)","04-SUPPLIES","Supplies And Services","04F","Communications and computing","5858","Phones","3572018","202009",03/12/2019 00:00:00,15,"51500","Mobile Phones - Personal Numbers","REDACTED DATA","EE LTD (AIRTIME PAYMENTS)","2382161","http://opencorporates.com/companies/gb/2382161","771592016"
"London Borough of Redbridge","http://opendatacommunities.org/doc/london-borough-council/redbridge","6BADULTSOCIA","Adult Social Care","6COLDINCMENT","Older People (65 or over) incl. Older Mentally Ill","REV","Revenue","R4483","Multi-Disciplinary Team (Wanstead and Woodford)","04-SUPPLIES","Supplies And Services","04F","Communications and computing","5858","Phones","3572018","202009",03/12/2019 00:00:00,15,"51500","Mobile Phones - Personal Numbers","REDACTED DATA","EE LTD (AIRTIME PAYMENTS)","2382161","http://opencorporates.com/companies/gb/2382161","771592016"
"London Borough of Redbridge","http://opendatacommunities.org/doc/london-borough-council/redbridge","6BADULTSOCIA","Adult Social Care","6COLDINCMENT","Older People (65 or over) incl. Older Mentally Ill","REV","Revenue","R4483","Multi-Disciplinary Team (Wanstead and Woodford)","04-SUPPLIES","Supplies And Services","04F","Communications and computing","5858","Phones","3572018","202009",03/12/2019 00:00:00,15,"51500","Mobile Phones - Personal Numbers","REDACTED DATA","EE LTD (AIRTIME PAYMENTS)","2382161","http://opencorporates.com/companies/gb/2382161","771592016"
"London Borough of Redbridge","http://opendatacommunities.org/doc/london-borough-council/redbridge","6BADULTSOCIA","Adult Social Care","6COLDINCMENT","Older People (65 or over) incl. Older Mentally Ill","REV","Revenue","R4483","Multi-Disciplinary Team (Wanstead and Woodford)","04-SUPPLIES","Supplies And Services","04F","Communications and computing","5858","Phones","3572018","202009",03/12/2019 00:00:00,15,"51500","Mobile Phones - Personal Numbers","REDACTED DATA","EE LTD (AIRTIME PAYMENTS)","2382161","http://opencorporates.com/companies/gb/2382161","771592016"
"London Borough of Redbridge","http://opendatacommunities.org/doc/london-borough-council/redbridge","6BADULTSOCIA","Adult Social Care","6COLDINCMENT","Older People (65 or over) incl. Older Mentally Ill","REV","Revenue","R4483","Multi-Disciplinary Team (Wanstead and Woodford)","04-SUPPLIES","Supplies And Services","04F","Communications and computing","5858","Phones","3572018","202009",03/12/2019 00:00:00,15,"51500","Mobile Phones - Personal Numbers","REDACTED DATA","EE LTD (AIRTIME PAYMENTS)","2382161","http://opencorporates.com/companies/gb/2382161","771592016"
"London Borough of Redbridge","http://opendatacommunities.org/doc/london-borough-council/redbridge","6BADULTSOCIA","Adult Social Care","6COLDINCMENT","Older People (65 or over) incl. Older Mentally Ill","REV","Revenue","R4485","Multi-Disciplinary Team (Seven Kings)","04-SUPPLIES","Supplies And Services","04F","Communications and computing","5858","Phones","3572018","202009",03/12/2019 00:00:00,15,"51500","Mobile Phones - Personal Numbers","REDACTED DATA","EE LTD (AIRTIME PAYMENTS)","2382161","http://opencorporates.com/companies/gb/2382161","771592016"
"London Borough of Redbridge","http://opendatacommunities.org/doc/london-borough-council/redbridge","6BADULTSOCIA","Adult Social Care","6COLDINCMENT","Older People (65 or over) incl. Older Mentally Ill","REV","Revenue","R4485","Multi-Disciplinary Team (Seven Kings)","04-SUPPLIES","Supplies And Services","04F","Communications and computing","5858","Phones","3572018","202009",03/12/2019 00:00:00,15,"51500","Mobile Phones - Personal Numbers","REDACTED DATA","EE LTD (AIRTIME PAYMENTS)","2382161","http://opencorporates.com/companies/gb/2382161","771592016"
"London Borough of Redbridge","http://opendatacommunities.org/doc/london-borough-council/redbridge","6BADULTSOCIA","Adult Social Care","6COLDINCMENT","Older People (65 or over) incl. Older Mentally Ill","REV","Revenue","R4485","Multi-Disciplinary Team (Seven Kings)","04-SUPPLIES","Supplies And Services","04F","Communications and computing","5858","Phones","3572018","202009",03/12/2019 00:00:00,15,"51500","Mobile Phones - Personal Numbers","REDACTED DATA","EE LTD (AIRTIME PAYMENTS)","2382161","http://opencorporates.com/companies/gb/2382161","771592016"
"London Borough of Redbridge","http://opendatacommunities.org/doc/london-borough-council/redbridge","6BADULTSOCIA","Adult Social Care","6COLDINCMENT","Older People (65 or over) incl. Older Mentally Ill","REV","Revenue","R4485","Multi-Disciplinary Team (Seven Kings)","04-SUPPLIES","Supplies And Services","04F","Communications and computing","5858","Phones","3572018","202009",03/12/2019 00:00:00,15,"51500","Mobile Phones - Personal Numbers","REDACTED DATA","EE LTD (AIRTIME PAYMENTS)","2382161","http://opencorporates.com/companies/gb/2382161","771592016"
"London Borough of Redbridge","http://opendatacommunities.org/doc/london-borough-council/redbridge","6BADULTSOCIA","Adult Social Care","6COLDINCMENT","Older People (65 or over) incl. Older Mentally Ill","REV","Revenue","R4485","Multi-Disciplinary Team (Seven Kings)","04-SUPPLIES","Supplies And Services","04F","Communications and computing","5858","Phones","3572018","202009",03/12/2019 00:00:00,15,"51500","Mobile Phones - Personal Numbers","REDACTED DATA","EE LTD (AIRTIME PAYMENTS)","2382161","http://opencorporates.com/companies/gb/2382161","771592016"
"London Borough of Redbridge","http://opendatacommunities.org/doc/london-borough-council/redbridge","6BADULTSOCIA","Adult Social Care","6COLDINCMENT","Older People (65 or over) incl. Older Mentally Ill","REV","Revenue","R4485","Multi-Disciplinary Team (Seven Kings)","04-SUPPLIES","Supplies And Services","04F","Communications and computing","5858","Phones","3572018","202009",03/12/2019 00:00:00,15,"51500","Mobile Phones - Personal Numbers","REDACTED DATA","EE LTD (AIRTIME PAYMENTS)","2382161","http://opencorporates.com/companies/gb/2382161","771592016"
"London Borough of Redbridge","http://opendatacommunities.org/doc/london-borough-council/redbridge","6BADULTSOCIA","Adult Social Care","6COLDINCMENT","Older People (65 or over) incl. Older Mentally Ill","REV","Revenue","R4485","Multi-Disciplinary Team (Seven Kings)","04-SUPPLIES","Supplies And Services","04F","Communications and computing","5858","Phones","3572018","202009",03/12/2019 00:00:00,15,"51500","Mobile Phones - Personal Numbers","REDACTED DATA","EE LTD (AIRTIME PAYMENTS)","2382161","http://opencorporates.com/companies/gb/2382161","771592016"
"London Borough of Redbridge","http://opendatacommunities.org/doc/london-borough-council/redbridge","6BADULTSOCIA","Adult Social Care","6COLDINCMENT","Older People (65 or over) incl. Older Mentally Ill","REV","Revenue","R4485","Multi-Disciplinary Team (Seven Kings)","04-SUPPLIES","Supplies And Services","04F","Communications and computing","5858","Phones","3572018","202009",03/12/2019 00:00:00,15,"51500","Mobile Phones - Personal Numbers","REDACTED DATA","EE LTD (AIRTIME PAYMENTS)","2382161","http://opencorporates.com/companies/gb/2382161","771592016"
"London Borough of Redbridge","http://opendatacommunities.org/doc/london-borough-council/redbridge","6BADULTSOCIA","Adult Social Care","6COLDINCMENT","Older People (65 or over) incl. Older Mentally Ill","REV","Revenue","R4485","Multi-Disciplinary Team (Seven Kings)","04-SUPPLIES","Supplies And Services","04F","Communications and computing","5858","Phones","3572018","202009",03/12/2019 00:00:00,15,"51500","Mobile Phones - Personal Numbers","REDACTED DATA","EE LTD (AIRTIME PAYMENTS)","2382161","http://opencorporates.com/companies/gb/2382161","771592016"
"London Borough of Redbridge","http://opendatacommunities.org/doc/london-borough-council/redbridge","6BADULTSOCIA","Adult Social Care","6COLDINCMENT","Older People (65 or over) incl. Older Mentally Ill","REV","Revenue","R4485","Multi-Disciplinary Team (Seven Kings)","04-SUPPLIES","Supplies And Services","04F","Communications and computing","5858","Phones","3572018","202009",03/12/2019 00:00:00,15,"51500","Mobile Phones - Personal Numbers","REDACTED DATA","EE LTD (AIRTIME PAYMENTS)","2382161","http://opencorporates.com/companies/gb/2382161","771592016"
"London Borough of Redbridge","http://opendatacommunities.org/doc/london-borough-council/redbridge","6BADULTSOCIA","Adult Social Care","6COLDINCMENT","Older People (65 or over) incl. Older Mentally Ill","REV","Revenue","R4485","Multi-Disciplinary Team (Seven Kings)","04-SUPPLIES","Supplies And Services","04F","Communications and computing","5858","Phones","3572018","202009",03/12/2019 00:00:00,15,"51500","Mobile Phones - Personal Numbers","REDACTED DATA","EE LTD (AIRTIME PAYMENTS)","2382161","http://opencorporates.com/companies/gb/2382161","771592016"
"London Borough of Redbridge","http://opendatacommunities.org/doc/london-borough-council/redbridge","6BADULTSOCIA","Adult Social Care","6COLDINCMENT","Older People (65 or over) incl. Older Mentally Ill","REV","Revenue","R4485","Multi-Disciplinary Team (Seven Kings)","04-SUPPLIES","Supplies And Services","04F","Communications and computing","5858","Phones","3572018","202009",03/12/2019 00:00:00,15,"51500","Mobile Phones - Personal Numbers","REDACTED DATA","EE LTD (AIRTIME PAYMENTS)","2382161","http://opencorporates.com/companies/gb/2382161","771592016"
"London Borough of Redbridge","http://opendatacommunities.org/doc/london-borough-council/redbridge","6BADULTSOCIA","Adult Social Care","6COLDINCMENT","Older People (65 or over) incl. Older Mentally Ill","REV","Revenue","R4485","Multi-Disciplinary Team (Seven Kings)","04-SUPPLIES","Supplies And Services","04F","Communications and computing","5858","Phones","3572018","202009",03/12/2019 00:00:00,15,"51500","Mobile Phones - Personal Numbers","REDACTED DATA","EE LTD (AIRTIME PAYMENTS)","2382161","http://opencorporates.com/companies/gb/2382161","771592016"
"London Borough of Redbridge","http://opendatacommunities.org/doc/london-borough-council/redbridge","6BADULTSOCIA","Adult Social Care","6COLDINCMENT","Older People (65 or over) incl. Older Mentally Ill","REV","Revenue","R4485","Multi-Disciplinary Team (Seven Kings)","04-SUPPLIES","Supplies And Services","04F","Communications and computing","5858","Phones","3572018","202009",03/12/2019 00:00:00,12.5,"51500","Mobile Phones - Personal Numbers","REDACTED DATA","EE LTD (AIRTIME PAYMENTS)","2382161","http://opencorporates.com/companies/gb/2382161","771592016"
"London Borough of Redbridge","http://opendatacommunities.org/doc/london-borough-council/redbridge","6BADULTSOCIA","Adult Social Care","6COLDINCMENT","Older People (65 or over) incl. Older Mentally Ill","REV","Revenue","R4485","Multi-Disciplinary Team (Seven Kings)","04-SUPPLIES","Supplies And Services","04F","Communications and computing","5858","Phones","3572018","202009",03/12/2019 00:00:00,15,"51500","Mobile Phones - Personal Numbers","REDACTED DATA","EE LTD (AIRTIME PAYMENTS)","2382161","http://opencorporates.com/companies/gb/2382161","771592016"
"London Borough of Redbridge","http://opendatacommunities.org/doc/london-borough-council/redbridge","6BADULTSOCIA","Adult Social Care","6CSUPPSERMGT","Support Service & Management Costs","REV","Revenue","R4433","ICT Budgets","04-SUPPLIES","Supplies And Services","04F","Communications and computing","5858","Phones","3572018","202009",03/12/2019 00:00:00,12.5,"51500","Mobile Phones - Personal Numbers","REDACTED DATA","EE LTD (AIRTIME PAYMENTS)","2382161","http://opencorporates.com/companies/gb/2382161","771592016"
"London Borough of Redbridge","http://opendatacommunities.org/doc/london-borough-council/redbridge","6BADULTSOCIA","Adult Social Care","6CSUPPSERMGT","Support Service & Management Costs","REV","Revenue","R4433","ICT Budgets","04-SUPPLIES","Supplies And Services","04F","Communications and computing","5858","Phones","3572018","202009",03/12/2019 00:00:00,12.5,"51500","Mobile Phones - Personal Numbers","REDACTED DATA","EE LTD (AIRTIME PAYMENTS)","2382161","http://opencorporates.com/companies/gb/2382161","771592016"
"London Borough of Redbridge","http://opendatacommunities.org/doc/london-borough-council/redbridge","6BPUBHEALTH","Public Health","6CMISCPHSERV","Miscellaneous Public Health Services","REV","Revenue","R4800","Public Health Support","04-SUPPLIES","Supplies And Services","04F","Communications and computing","5858","Phones","3572018","202009",03/12/2019 00:00:00,12.5,"51500","Mobile Phones - Personal Numbers","REDACTED DATA","EE LTD (AIRTIME PAYMENTS)","2382161","http://opencorporates.com/companies/gb/2382161","771592016"
"London Borough of Redbridge","http://opendatacommunities.org/doc/london-borough-council/redbridge","6BSOCIALSERV","Social Services","4CMANGT&SUPP","Management & Support Services","REV","Revenue","R2151","CQ and F Workforce Development","04-SUPPLIES","Supplies And Services","04F","Communications and computing","5858","Phones","3572018","202009",03/12/2019 00:00:00,12.5,"51500","Mobile Phones - Personal Numbers","REDACTED DATA","EE LTD (AIRTIME PAYMENTS)","2382161","http://opencorporates.com/companies/gb/2382161","771592016"
"London Borough of Redbridge","http://opendatacommunities.org/doc/london-borough-council/redbridge","6BSOCIALSERV","Social Services","6CCHILCOMSNG","Children's Services - Commissioning & Social Work","REV","Revenue","R2121","Core - CSWLAC","04-SUPPLIES","Supplies And Services","04F","Communications and computing","5858","Phones","3572018","202009",03/12/2019 00:00:00,12.5,"51500","Mobile Phones - Personal Numbers","REDACTED DATA","EE LTD (AIRTIME PAYMENTS)","2382161","http://opencorporates.com/companies/gb/2382161","771592016"
"London Borough of Redbridge","http://opendatacommunities.org/doc/london-borough-council/redbridge","6BSOCIALSERV","Social Services","6CCHILLOOKED","Children Looked After","REV","Revenue","R2110","SEN and CD - Business and Finance Social Care","04-SUPPLIES","Supplies And Services","04F","Communications and computing","5858","Phones","3572018","202009",03/12/2019 00:00:00,12.5,"51500","Mobile Phones - Personal Numbers","REDACTED DATA","EE LTD (AIRTIME PAYMENTS)","2382161","http://opencorporates.com/companies/gb/2382161","771592016"
"London Borough of Redbridge","http://opendatacommunities.org/doc/london-borough-council/redbridge","6BSOCIALSERV","Social Services","6CCHILLOOKED","Children Looked After","REV","Revenue","R2110","SEN and CD - Business and Finance Social Care","04-SUPPLIES","Supplies And Services","04F","Communications and computing","5858","Phones","3572018","202009",03/12/2019 00:00:00,12.5,"51500","Mobile Phones - Personal Numbers","REDACTED DATA","EE LTD (AIRTIME PAYMENTS)","2382161","http://opencorporates.com/companies/gb/2382161","771592016"
"London Borough of Redbridge","http://opendatacommunities.org/doc/london-borough-council/redbridge","6BSOCIALSERV","Social Services","6CCHILLOOKED","Children Looked After","REV","Revenue","R2127","Fostering and Adoption","04-SUPPLIES","Supplies And Services","04F","Communications and computing","5858","Phones","3572018","202009",03/12/2019 00:00:00,12.5,"51500","Mobile Phones - Personal Numbers","REDACTED DATA","EE LTD (AIRTIME PAYMENTS)","2382161","http://opencorporates.com/companies/gb/2382161","771592016"
"London Borough of Redbridge","http://opendatacommunities.org/doc/london-borough-council/redbridge","6BSOCIALSERV","Social Services","6CCHILLOOKED","Children Looked After","REV","Revenue","R2127","Fostering and Adoption","04-SUPPLIES","Supplies And Services","04F","Communications and computing","5858","Phones","3572018","202009",03/12/2019 00:00:00,12.5,"51500","Mobile Phones - Personal Numbers","REDACTED DATA","EE LTD (AIRTIME PAYMENTS)","2382161","http://opencorporates.com/companies/gb/2382161","771592016"
"London Borough of Redbridge","http://opendatacommunities.org/doc/london-borough-council/redbridge","6BSOCIALSERV","Social Services","6CCHILLOOKED","Children Looked After","REV","Revenue","R2127","Fostering and Adoption","04-SUPPLIES","Supplies And Services","04F","Communications and computing","5858","Phones","3572018","202009",03/12/2019 00:00:00,12.5,"51500","Mobile Phones - Personal Numbers","REDACTED DATA","EE LTD (AIRTIME PAYMENTS)","2382161","http://opencorporates.com/companies/gb/2382161","771592016"
"London Borough of Redbridge","http://opendatacommunities.org/doc/london-borough-council/redbridge","6BSOCIALSERV","Social Services","6CCHILLOOKED","Children Looked After","REV","Revenue","R2127","Fostering and Adoption","04-SUPPLIES","Supplies And Services","04F","Communications and computing","5858","Phones","3572018","202009",03/12/2019 00:00:00,12.5,"51500","Mobile Phones - Personal Numbers","REDACTED DATA","EE LTD (AIRTIME PAYMENTS)","2382161","http://opencorporates.com/companies/gb/2382161","771592016"
"London Borough of Redbridge","http://opendatacommunities.org/doc/london-borough-council/redbridge","6BSOCIALSERV","Social Services","6CCHILLOOKED","Children Looked After","REV","Revenue","R2127","Fostering and Adoption","04-SUPPLIES","Supplies And Services","04F","Communications and computing","5858","Phones","3572018","202009",03/12/2019 00:00:00,12.5,"51500","Mobile Phones - Personal Numbers","REDACTED DATA","EE LTD (AIRTIME PAYMENTS)","2382161","http://opencorporates.com/companies/gb/2382161","771592016"
"London Borough of Redbridge","http://opendatacommunities.org/doc/london-borough-council/redbridge","6BSOCIALSERV","Social Services","6CCHILLOOKED","Children Looked After","REV","Revenue","R2127","Fostering and Adoption","04-SUPPLIES","Supplies And Services","04F","Communications and computing","5858","Phones","3572018","202009",03/12/2019 00:00:00,12.5,"51500","Mobile Phones - Personal Numbers","REDACTED DATA","EE LTD (AIRTIME PAYMENTS)","2382161","http://opencorporates.com/companies/gb/2382161","771592016"
"London Borough of Redbridge","http://opendatacommunities.org/doc/london-borough-council/redbridge","6BSOCIALSERV","Social Services","6CCHILLOOKED","Children Looked After","REV","Revenue","R2127","Fostering and Adoption","04-SUPPLIES","Supplies And Services","04F","Communications and computing","5858","Phones","3572018","202009",03/12/2019 00:00:00,12.5,"51500","Mobile Phones - Personal Numbers","REDACTED DATA","EE LTD (AIRTIME PAYMENTS)","2382161","http://opencorporates.com/companies/gb/2382161","771592016"
"London Borough of Redbridge","http://opendatacommunities.org/doc/london-borough-council/redbridge","6BSOCIALSERV","Social Services","6CCHILLOOKED","Children Looked After","REV","Revenue","R2127","Fostering and Adoption","04-SUPPLIES","Supplies And Services","04F","Communications and computing","5858","Phones","3572018","202009",03/12/2019 00:00:00,12.5,"51500","Mobile Phones - Personal Numbers","REDACTED DATA","EE LTD (AIRTIME PAYMENTS)","2382161","http://opencorporates.com/companies/gb/2382161","771592016"
"London Borough of Redbridge","http://opendatacommunities.org/doc/london-borough-council/redbridge","6BSOCIALSERV","Social Services","6CCHILLOOKED","Children Looked After","REV","Revenue","R2127","Fostering and Adoption","04-SUPPLIES","Supplies And Services","04F","Communications and computing","5858","Phones","3572018","202009",03/12/2019 00:00:00,12.5,"51500","Mobile Phones - Personal Numbers","REDACTED DATA","EE LTD (AIRTIME PAYMENTS)","2382161","http://opencorporates.com/companies/gb/2382161","771592016"
"London Borough of Redbridge","http://opendatacommunities.org/doc/london-borough-council/redbridge","6BSOCIALSERV","Social Services","6CCHILLOOKED","Children Looked After","REV","Revenue","R2127","Fostering and Adoption","04-SUPPLIES","Supplies And Services","04F","Communications and computing","5858","Phones","3572018","202009",03/12/2019 00:00:00,12.5,"51500","Mobile Phones - Personal Numbers","REDACTED DATA","EE LTD (AIRTIME PAYMENTS)","2382161","http://opencorporates.com/companies/gb/2382161","771592016"
"London Borough of Redbridge","http://opendatacommunities.org/doc/london-borough-council/redbridge","6BSOCIALSERV","Social Services","6CCHILLOOKED","Children Looked After","REV","Revenue","R2127","Fostering and Adoption","04-SUPPLIES","Supplies And Services","04F","Communications and computing","5858","Phones","3572018","202009",03/12/2019 00:00:00,12.5,"51500","Mobile Phones - Personal Numbers","REDACTED DATA","EE LTD (AIRTIME PAYMENTS)","2382161","http://opencorporates.com/companies/gb/2382161","771592016"
"London Borough of Redbridge","http://opendatacommunities.org/doc/london-borough-council/redbridge","6BSOCIALSERV","Social Services","6CCHILLOOKED","Children Looked After","REV","Revenue","R2127","Fostering and Adoption","04-SUPPLIES","Supplies And Services","04F","Communications and computing","5858","Phones","3572018","202009",03/12/2019 00:00:00,12.5,"51500","Mobile Phones - Personal Numbers","REDACTED DATA","EE LTD (AIRTIME PAYMENTS)","2382161","http://opencorporates.com/companies/gb/2382161","771592016"
"London Borough of Redbridge","http://opendatacommunities.org/doc/london-borough-council/redbridge","6BSOCIALSERV","Social Services","6CCHILLOOKED","Children Looked After","REV","Revenue","R2127","Fostering and Adoption","04-SUPPLIES","Supplies And Services","04F","Communications and computing","5858","Phones","3572018","202009",03/12/2019 00:00:00,12.5,"51500","Mobile Phones - Personal Numbers","REDACTED DATA","EE LTD (AIRTIME PAYMENTS)","2382161","http://opencorporates.com/companies/gb/2382161","771592016"
"London Borough of Redbridge","http://opendatacommunities.org/doc/london-borough-council/redbridge","6BSOCIALSERV","Social Services","6CCHILLOOKED","Children Looked After","REV","Revenue","R2127","Fostering and Adoption","04-SUPPLIES","Supplies And Services","04F","Communications and computing","5858","Phones","3572018","202009",03/12/2019 00:00:00,12.5,"51500","Mobile Phones - Personal Numbers","REDACTED DATA","EE LTD (AIRTIME PAYMENTS)","2382161","http://opencorporates.com/companies/gb/2382161","771592016"
"London Borough of Redbridge","http://opendatacommunities.org/doc/london-borough-council/redbridge","6BSOCIALSERV","Social Services","6CCHILLOOKED","Children Looked After","REV","Revenue","R2140","CQ and F - Safeguarding and Care Planning Soc Care","04-SUPPLIES","Supplies And Services","04F","Communications and computing","5858","Phones","3572018","202009",03/12/2019 00:00:00,12.5,"51500","Mobile Phones - Personal Numbers","REDACTED DATA","EE LTD (AIRTIME PAYMENTS)","2382161","http://opencorporates.com/companies/gb/2382161","771592016"
"London Borough of Redbridge","http://opendatacommunities.org/doc/london-borough-council/redbridge","6BSOCIALSERV","Social Services","6CCHILLOOKED","Children Looked After","REV","Revenue","R2140","CQ and F - Safeguarding and Care Planning Soc Care","04-SUPPLIES","Supplies And Services","04F","Communications and computing","5858","Phones","3572018","202009",03/12/2019 00:00:00,12.5,"51500","Mobile Phones - Personal Numbers","REDACTED DATA","EE LTD (AIRTIME PAYMENTS)","2382161","http://opencorporates.com/companies/gb/2382161","771592016"
"London Borough of Redbridge","http://opendatacommunities.org/doc/london-borough-council/redbridge","6BSOCIALSERV","Social Services","6CCHILLOOKED","Children Looked After","REV","Revenue","R2140","CQ and F - Safeguarding and Care Planning Soc Care","04-SUPPLIES","Supplies And Services","04F","Communications and computing","5858","Phones","3572018","202009",03/12/2019 00:00:00,12.5,"51500","Mobile Phones - Personal Numbers","REDACTED DATA","EE LTD (AIRTIME PAYMENTS)","2382161","http://opencorporates.com/companies/gb/2382161","771592016"
"London Borough of Redbridge","http://opendatacommunities.org/doc/london-borough-council/redbridge","6BSOCIALSERV","Social Services","6CCHILLOOKED","Children Looked After","REV","Revenue","R2140","CQ and F - Safeguarding and Care Planning Soc Care","04-SUPPLIES","Supplies And Services","04F","Communications and computing","5858","Phones","3572018","202009",03/12/2019 00:00:00,12.5,"51500","Mobile Phones - Personal Numbers","REDACTED DATA","EE LTD (AIRTIME PAYMENTS)","2382161","http://opencorporates.com/companies/gb/2382161","771592016"
"London Borough of Redbridge","http://opendatacommunities.org/doc/london-borough-council/redbridge","6BSOCIALSERV","Social Services","6CCHILLOOKED","Children Looked After","REV","Revenue","R2140","CQ and F - Safeguarding and Care Planning Soc Care","04-SUPPLIES","Supplies And Services","04F","Communications and computing","5858","Phones","3572018","202009",03/12/2019 00:00:00,12.5,"51500","Mobile Phones - Personal Numbers","REDACTED DATA","EE LTD (AIRTIME PAYMENTS)","2382161","http://opencorporates.com/companies/gb/2382161","771592016"
"London Borough of Redbridge","http://opendatacommunities.org/doc/london-borough-council/redbridge","6BSOCIALSERV","Social Services","6CCHILLOOKED","Children Looked After","REV","Revenue","R2140","CQ and F - Safeguarding and Care Planning Soc Care","04-SUPPLIES","Supplies And Services","04F","Communications and computing","5858","Phones","3572018","202009",03/12/2019 00:00:00,12.5,"51500","Mobile Phones - Personal Numbers","REDACTED DATA","EE LTD (AIRTIME PAYMENTS)","2382161","http://opencorporates.com/companies/gb/2382161","771592016"
"London Borough of Redbridge","http://opendatacommunities.org/doc/london-borough-council/redbridge","6BSOCIALSERV","Social Services","6CCHILLOOKED","Children Looked After","REV","Revenue","R2140","CQ and F - Safeguarding and Care Planning Soc Care","04-SUPPLIES","Supplies And Services","04F","Communications and computing","5858","Phones","3572018","202009",03/12/2019 00:00:00,12.5,"51500","Mobile Phones - Personal Numbers","REDACTED DATA","EE LTD (AIRTIME PAYMENTS)","2382161","http://opencorporates.com/companies/gb/2382161","771592016"
"London Borough of Redbridge","http://opendatacommunities.org/doc/london-borough-council/redbridge","6BSOCIALSERV","Social Services","6CCHILLOOKED","Children Looked After","REV","Revenue","R2140","CQ and F - Safeguarding and Care Planning Soc Care","04-SUPPLIES","Supplies And Services","04F","Communications and computing","5858","Phones","3572018","202009",03/12/2019 00:00:00,12.5,"51500","Mobile Phones - Personal Numbers","REDACTED DATA","EE LTD (AIRTIME PAYMENTS)","2382161","http://opencorporates.com/companies/gb/2382161","771592016"
"London Borough of Redbridge","http://opendatacommunities.org/doc/london-borough-council/redbridge","6BSOCIALSERV","Social Services","6CCHILLOOKED","Children Looked After","REV","Revenue","R2140","CQ and F - Safeguarding and Care Planning Soc Care","04-SUPPLIES","Supplies And Services","04F","Communications and computing","5858","Phones","3572018","202009",03/12/2019 00:00:00,12.5,"51500","Mobile Phones - Personal Numbers","REDACTED DATA","EE LTD (AIRTIME PAYMENTS)","2382161","http://opencorporates.com/companies/gb/2382161","771592016"
"London Borough of Redbridge","http://opendatacommunities.org/doc/london-borough-council/redbridge","6BSOCIALSERV","Social Services","6CCHILLOOKED","Children Looked After","REV","Revenue","R2140","CQ and F - Safeguarding and Care Planning Soc Care","04-SUPPLIES","Supplies And Services","04F","Communications and computing","5858","Phones","3572018","202009",03/12/2019 00:00:00,12.5,"51500","Mobile Phones - Personal Numbers","REDACTED DATA","EE LTD (AIRTIME PAYMENTS)","2382161","http://opencorporates.com/companies/gb/2382161","771592016"
"London Borough of Redbridge","http://opendatacommunities.org/doc/london-borough-council/redbridge","6BSOCIALSERV","Social Services","6CCHILLOOKED","Children Looked After","REV","Revenue","R2140","CQ and F - Safeguarding and Care Planning Soc Care","04-SUPPLIES","Supplies And Services","04F","Communications and computing","5858","Phones","3572018","202009",03/12/2019 00:00:00,12.5,"51500","Mobile Phones - Personal Numbers","REDACTED DATA","EE LTD (AIRTIME PAYMENTS)","2382161","http://opencorporates.com/companies/gb/2382161","771592016"
"London Borough of Redbridge","http://opendatacommunities.org/doc/london-borough-council/redbridge","6BSOCIALSERV","Social Services","6CCHILLOOKED","Children Looked After","REV","Revenue","R2140","CQ and F - Safeguarding and Care Planning Soc Care","04-SUPPLIES","Supplies And Services","04F","Communications and computing","5858","Phones","3572018","202009",03/12/2019 00:00:00,12.5,"51500","Mobile Phones - Personal Numbers","REDACTED DATA","EE LTD (AIRTIME PAYMENTS)","2382161","http://opencorporates.com/companies/gb/2382161","771592016"
"London Borough of Redbridge","http://opendatacommunities.org/doc/london-borough-council/redbridge","6BSOCIALSERV","Social Services","6CCHILLOOKED","Children Looked After","REV","Revenue","R2140","CQ and F - Safeguarding and Care Planning Soc Care","04-SUPPLIES","Supplies And Services","04F","Communications and computing","5858","Phones","3572018","202009",03/12/2019 00:00:00,12.5,"51500","Mobile Phones - Personal Numbers","REDACTED DATA","EE LTD (AIRTIME PAYMENTS)","2382161","http://opencorporates.com/companies/gb/2382161","771592016"
"London Borough of Redbridge","http://opendatacommunities.org/doc/london-borough-council/redbridge","6BSOCIALSERV","Social Services","6CCHILLOOKED","Children Looked After","REV","Revenue","R2140","CQ and F - Safeguarding and Care Planning Soc Care","04-SUPPLIES","Supplies And Services","04F","Communications and computing","5858","Phones","3572018","202009",03/12/2019 00:00:00,12.5,"51500","Mobile Phones - Personal Numbers","REDACTED DATA","EE LTD (AIRTIME PAYMENTS)","2382161","http://opencorporates.com/companies/gb/2382161","771592016"
"London Borough of Redbridge","http://opendatacommunities.org/doc/london-borough-council/redbridge","6BSOCIALSERV","Social Services","6CCHILLOOKED","Children Looked After","REV","Revenue","R2140","CQ and F - Safeguarding and Care Planning Soc Care","04-SUPPLIES","Supplies And Services","04F","Communications and computing","5858","Phones","3572018","202009",03/12/2019 00:00:00,12.5,"51500","Mobile Phones - Personal Numbers","REDACTED DATA","EE LTD (AIRTIME PAYMENTS)","2382161","http://opencorporates.com/companies/gb/2382161","771592016"
"London Borough of Redbridge","http://opendatacommunities.org/doc/london-borough-council/redbridge","6BSOCIALSERV","Social Services","6CCHILLOOKED","Children Looked After","REV","Revenue","R2140","CQ and F - Safeguarding and Care Planning Soc Care","04-SUPPLIES","Supplies And Services","04F","Communications and computing","5858","Phones","3572018","202009",03/12/2019 00:00:00,12.5,"51500","Mobile Phones - Personal Numbers","REDACTED DATA","EE LTD (AIRTIME PAYMENTS)","2382161","http://opencorporates.com/companies/gb/2382161","771592016"
"London Borough of Redbridge","http://opendatacommunities.org/doc/london-borough-council/redbridge","6BSOCIALSERV","Social Services","6CCHILLOOKED","Children Looked After","REV","Revenue","R2140","CQ and F - Safeguarding and Care Planning Soc Care","04-SUPPLIES","Supplies And Services","04F","Communications and computing","5858","Phones","3572018","202009",03/12/2019 00:00:00,12.5,"51500","Mobile Phones - Personal Numbers","REDACTED DATA","EE LTD (AIRTIME PAYMENTS)","2382161","http://opencorporates.com/companies/gb/2382161","771592016"
"London Borough of Redbridge","http://opendatacommunities.org/doc/london-borough-council/redbridge","6BSOCIALSERV","Social Services","6CCHILLOOKED","Children Looked After","REV","Revenue","R2140","CQ and F - Safeguarding and Care Planning Soc Care","04-SUPPLIES","Supplies And Services","04F","Communications and computing","5858","Phones","3572018","202009",03/12/2019 00:00:00,12.5,"51500","Mobile Phones - Personal Numbers","REDACTED DATA","EE LTD (AIRTIME PAYMENTS)","2382161","http://opencorporates.com/companies/gb/2382161","771592016"
"London Borough of Redbridge","http://opendatacommunities.org/doc/london-borough-council/redbridge","6BSOCIALSERV","Social Services","6CCHILLOOKED","Children Looked After","REV","Revenue","R2157","Core CP and EI","04-SUPPLIES","Supplies And Services","04F","Communications and computing","5858","Phones","3572018","202009",03/12/2019 00:00:00,12.5,"51500","Mobile Phones - Personal Numbers","REDACTED DATA","EE LTD (AIRTIME PAYMENTS)","2382161","http://opencorporates.com/companies/gb/2382161","771592016"
"London Borough of Redbridge","http://opendatacommunities.org/doc/london-borough-council/redbridge","6BSOCIALSERV","Social Services","6CCHILLOOKED","Children Looked After","REV","Revenue","R2166","Child Protection Assmt Service Soc Care","04-SUPPLIES","Supplies And Services","04F","Communications and computing","5858","Phones","3572018","202009",03/12/2019 00:00:00,12.5,"51500","Mobile Phones - Personal Numbers","REDACTED DATA","EE LTD (AIRTIME PAYMENTS)","2382161","http://opencorporates.com/companies/gb/2382161","771592016"
"London Borough of Redbridge","http://opendatacommunities.org/doc/london-borough-council/redbridge","6BSOCIALSERV","Social Services","6CCHILLOOKED","Children Looked After","REV","Revenue","R2166","Child Protection Assmt Service Soc Care","04-SUPPLIES","Supplies And Services","04F","Communications and computing","5858","Phones","3572018","202009",03/12/2019 00:00:00,12.5,"51500","Mobile Phones - Personal Numbers","REDACTED DATA","EE LTD (AIRTIME PAYMENTS)","2382161","http://opencorporates.com/companies/gb/2382161","771592016"
"London Borough of Redbridge","http://opendatacommunities.org/doc/london-borough-council/redbridge","6BSOCIALSERV","Social Services","6CCHILLOOKED","Children Looked After","REV","Revenue","R2166","Child Protection Assmt Service Soc Care","04-SUPPLIES","Supplies And Services","04F","Communications and computing","5858","Phones","3572018","202009",03/12/2019 00:00:00,12.5,"51500","Mobile Phones - Personal Numbers","REDACTED DATA","EE LTD (AIRTIME PAYMENTS)","2382161","http://opencorporates.com/companies/gb/2382161","771592016"
"London Borough of Redbridge","http://opendatacommunities.org/doc/london-borough-council/redbridge","6BSOCIALSERV","Social Services","6CCHILLOOKED","Children Looked After","REV","Revenue","R2166","Child Protection Assmt Service Soc Care","04-SUPPLIES","Supplies And Services","04F","Communications and computing","5858","Phones","3572018","202009",03/12/2019 00:00:00,12.5,"51500","Mobile Phones - Personal Numbers","REDACTED DATA","EE LTD (AIRTIME PAYMENTS)","2382161","http://opencorporates.com/companies/gb/2382161","771592016"
"London Borough of Redbridge","http://opendatacommunities.org/doc/london-borough-council/redbridge","6BSOCIALSERV","Social Services","6CCHILLOOKED","Children Looked After","REV","Revenue","R2166","Child Protection Assmt Service Soc Care","04-SUPPLIES","Supplies And Services","04F","Communications and computing","5858","Phones","3572018","202009",03/12/2019 00:00:00,12.5,"51500","Mobile Phones - Personal Numbers","REDACTED DATA","EE LTD (AIRTIME PAYMENTS)","2382161","http://opencorporates.com/companies/gb/2382161","771592016"
"London Borough of Redbridge","http://opendatacommunities.org/doc/london-borough-council/redbridge","6BSOCIALSERV","Social Services","6CCHILLOOKED","Children Looked After","REV","Revenue","R2166","Child Protection Assmt Service Soc Care","04-SUPPLIES","Supplies And Services","04F","Communications and computing","5858","Phones","3572018","202009",03/12/2019 00:00:00,12.5,"51500","Mobile Phones - Personal Numbers","REDACTED DATA","EE LTD (AIRTIME PAYMENTS)","2382161","http://opencorporates.com/companies/gb/2382161","771592016"
"London Borough of Redbridge","http://opendatacommunities.org/doc/london-borough-council/redbridge","6BSOCIALSERV","Social Services","6CCHILLOOKED","Children Looked After","REV","Revenue","R2166","Child Protection Assmt Service Soc Care","04-SUPPLIES","Supplies And Services","04F","Communications and computing","5858","Phones","3572018","202009",03/12/2019 00:00:00,12.5,"51500","Mobile Phones - Personal Numbers","REDACTED DATA","EE LTD (AIRTIME PAYMENTS)","2382161","http://opencorporates.com/companies/gb/2382161","771592016"
"London Borough of Redbridge","http://opendatacommunities.org/doc/london-borough-council/redbridge","6BSOCIALSERV","Social Services","6CCHILLOOKED","Children Looked After","REV","Revenue","R2166","Child Protection Assmt Service Soc Care","04-SUPPLIES","Supplies And Services","04F","Communications and computing","5858","Phones","3572018","202009",03/12/2019 00:00:00,12.5,"51500","Mobile Phones - Personal Numbers","REDACTED DATA","EE LTD (AIRTIME PAYMENTS)","2382161","http://opencorporates.com/companies/gb/2382161","771592016"
"London Borough of Redbridge","http://opendatacommunities.org/doc/london-borough-council/redbridge","6BSOCIALSERV","Social Services","6CCHILLOOKED","Children Looked After","REV","Revenue","R2166","Child Protection Assmt Service Soc Care","04-SUPPLIES","Supplies And Services","04F","Communications and computing","5858","Phones","3572018","202009",03/12/2019 00:00:00,12.5,"51500","Mobile Phones - Personal Numbers","REDACTED DATA","EE LTD (AIRTIME PAYMENTS)","2382161","http://opencorporates.com/companies/gb/2382161","771592016"
"London Borough of Redbridge","http://opendatacommunities.org/doc/london-borough-council/redbridge","6BSOCIALSERV","Social Services","6CCHILLOOKED","Children Looked After","REV","Revenue","R2178","Early Intervention & Family Support Service","04-SUPPLIES","Supplies And Services","04F","Communications and computing","5858","Phones","3572018","202009",03/12/2019 00:00:00,12.5,"51500","Mobile Phones - Personal Numbers","REDACTED DATA","EE LTD (AIRTIME PAYMENTS)","2382161","http://opencorporates.com/companies/gb/2382161","771592016"
"London Borough of Redbridge","http://opendatacommunities.org/doc/london-borough-council/redbridge","6BSOCIALSERV","Social Services","6COTHC&FSERV","Other Children's & Families' Services","REV","Revenue","R2169","Emergency Duty Team (EDT)","04-SUPPLIES","Supplies And Services","04F","Communications and computing","5858","Phones","3572018","202009",03/12/2019 00:00:00,12.5,"51500","Mobile Phones - Personal Numbers","REDACTED DATA","EE LTD (AIRTIME PAYMENTS)","2382161","http://opencorporates.com/companies/gb/2382161","771592016"
"London Borough of Redbridge","http://opendatacommunities.org/doc/london-borough-council/redbridge","6BSOCIALSERV","Social Services","6CSUPPSERMGT","Support Service & Management Costs","REV","Revenue","R2133","Chief Children and Families Officer","04-SUPPLIES","Supplies And Services","04F","Communications and computing","5858","Phones","3572018","202009",03/12/2019 00:00:00,12.5,"51500","Mobile Phones - Personal Numbers","REDACTED DATA","EE LTD (AIRTIME PAYMENTS)","2382161","http://opencorporates.com/companies/gb/2382161","771592016"
"London Borough of Redbridge","http://opendatacommunities.org/doc/london-borough-council/redbridge","7BCDC","Corporate & Democratic Core","7CCORPMGT","Corporate Management","REV","Revenue","R9804","Members Exp/Allowances","04-SUPPLIES","Supplies And Services","04F","Communications and computing","5858","Phones","3572018","202009",03/12/2019 00:00:00,12.5,"51500","Mobile Phones - Personal Numbers","REDACTED DATA","EE LTD (AIRTIME PAYMENTS)","2382161","http://opencorporates.com/companies/gb/2382161","771592016"
"London Borough of Redbridge","http://opendatacommunities.org/doc/london-borough-council/redbridge","7BCDC","Corporate & Democratic Core","7CCORPMGT","Corporate Management","REV","Revenue","R9804","Members Exp/Allowances","04-SUPPLIES","Supplies And Services","04F","Communications and computing","5858","Phones","3572018","202009",03/12/2019 00:00:00,15.5,"51500","Mobile Phones - Personal Numbers","REDACTED DATA","EE LTD (AIRTIME PAYMENTS)","2382161","http://opencorporates.com/companies/gb/2382161","771592016"
"London Borough of Redbridge","http://opendatacommunities.org/doc/london-borough-council/redbridge","7BCDC","Corporate & Democratic Core","7CCORPMGT","Corporate Management","REV","Revenue","R9804","Members Exp/Allowances","04-SUPPLIES","Supplies And Services","04F","Communications and computing","5858","Phones","3572018","202009",03/12/2019 00:00:00,15.5,"51500","Mobile Phones - Personal Numbers","REDACTED DATA","EE LTD (AIRTIME PAYMENTS)","2382161","http://opencorporates.com/companies/gb/2382161","771592016"
"London Borough of Redbridge","http://opendatacommunities.org/doc/london-borough-council/redbridge","7BCDC","Corporate & Democratic Core","7CCORPMGT","Corporate Management","REV","Revenue","R9804","Members Exp/Allowances","04-SUPPLIES","Supplies And Services","04F","Communications and computing","5858","Phones","3572018","202009",03/12/2019 00:00:00,12.5,"51500","Mobile Phones - Personal Numbers","REDACTED DATA","EE LTD (AIRTIME PAYMENTS)","2382161","http://opencorporates.com/companies/gb/2382161","771592016"
"London Borough of Redbridge","http://opendatacommunities.org/doc/london-borough-council/redbridge","7BCDC","Corporate & Democratic Core","7CCORPMGT","Corporate Management","REV","Revenue","R9827","Pub Rels and Infn","04-SUPPLIES","Supplies And Services","04F","Communications and computing","5858","Phones","3572018","202009",03/12/2019 00:00:00,12.5,"51500","Mobile Phones - Personal Numbers","REDACTED DATA","EE LTD (AIRTIME PAYMENTS)","2382161","http://opencorporates.com/companies/gb/2382161","771592016"
"London Borough of Redbridge","http://opendatacommunities.org/doc/london-borough-council/redbridge","9BNONBVO","Outside the BVACOP Objective Structure","9CNONBVO","Outside the BVACOP Objective Structure","REV","Revenue","R5214","Environmental Services Team","04-SUPPLIES","Supplies And Services","04F","Communications and computing","5858","Phones","3572018","202009",03/12/2019 00:00:00,12.5,"51500","Mobile Phones - Personal Numbers","REDACTED DATA","EE LTD (AIRTIME PAYMENTS)","2382161","http://opencorporates.com/companies/gb/2382161","771592016"
"London Borough of Redbridge","http://opendatacommunities.org/doc/london-borough-council/redbridge","9BNONBVO","Outside the BVACOP Objective Structure","9CNONBVO","Outside the BVACOP Objective Structure","REV","Revenue","R5214","Environmental Services Team","04-SUPPLIES","Supplies And Services","04F","Communications and computing","5858","Phones","3572018","202009",03/12/2019 00:00:00,12.5,"51500","Mobile Phones - Personal Numbers","REDACTED DATA","EE LTD (AIRTIME PAYMENTS)","2382161","http://opencorporates.com/companies/gb/2382161","771592016"
"London Borough of Redbridge","http://opendatacommunities.org/doc/london-borough-council/redbridge","9BNONBVO","Outside the BVACOP Objective Structure","9CNONBVO","Outside the BVACOP Objective Structure","REV","Revenue","R5214","Environmental Services Team","04-SUPPLIES","Supplies And Services","04F","Communications and computing","5858","Phones","3572018","202009",03/12/2019 00:00:00,12.5,"51500","Mobile Phones - Personal Numbers","REDACTED DATA","EE LTD (AIRTIME PAYMENTS)","2382161","http://opencorporates.com/companies/gb/2382161","771592016"
"London Borough of Redbridge","http://opendatacommunities.org/doc/london-borough-council/redbridge","9BNONBVO","Outside the BVACOP Objective Structure","9CNONBVO","Outside the BVACOP Objective Structure","REV","Revenue","R5214","Environmental Services Team","04-SUPPLIES","Supplies And Services","04F","Communications and computing","5858","Phones","3572018","202009",03/12/2019 00:00:00,12.5,"51500","Mobile Phones - Personal Numbers","REDACTED DATA","EE LTD (AIRTIME PAYMENTS)","2382161","http://opencorporates.com/companies/gb/2382161","771592016"
"London Borough of Redbridge","http://opendatacommunities.org/doc/london-borough-council/redbridge","9BNONBVO","Outside the BVACOP Objective Structure","9CNONBVO","Outside the BVACOP Objective Structure","REV","Revenue","R7602","Street Cleansing","04-SUPPLIES","Supplies And Services","04F","Communications and computing","5858","Phones","3572018","202009",03/12/2019 00:00:00,12.5,"51500","Mobile Phones - Personal Numbers","REDACTED DATA","EE LTD (AIRTIME PAYMENTS)","2382161","http://opencorporates.com/companies/gb/2382161","771592016"
"London Borough of Redbridge","http://opendatacommunities.org/doc/london-borough-council/redbridge","9BNONBVO","Outside the BVACOP Objective Structure","9CNONBVO","Outside the BVACOP Objective Structure","REV","Revenue","R7602","Street Cleansing","04-SUPPLIES","Supplies And Services","04F","Communications and computing","5858","Phones","3572018","202009",03/12/2019 00:00:00,12.5,"51500","Mobile Phones - Personal Numbers","REDACTED DATA","EE LTD (AIRTIME PAYMENTS)","2382161","http://opencorporates.com/companies/gb/2382161","771592016"
"London Borough of Redbridge","http://opendatacommunities.org/doc/london-borough-council/redbridge","9BNONBVO","Outside the BVACOP Objective Structure","9CNONBVO","Outside the BVACOP Objective Structure","REV","Revenue","R7602","Street Cleansing","04-SUPPLIES","Supplies And Services","04F","Communications and computing","5858","Phones","3572018","202009",03/12/2019 00:00:00,12.5,"51500","Mobile Phones - Personal Numbers","REDACTED DATA","EE LTD (AIRTIME PAYMENTS)","2382161","http://opencorporates.com/companies/gb/2382161","771592016"
"London Borough of Redbridge","http://opendatacommunities.org/doc/london-borough-council/redbridge","9BNONBVO","Outside the BVACOP Objective Structure","9CNONBVO","Outside the BVACOP Objective Structure","REV","Revenue","R7602","Street Cleansing","04-SUPPLIES","Supplies And Services","04F","Communications and computing","5858","Phones","3572018","202009",03/12/2019 00:00:00,12.5,"51500","Mobile Phones - Personal Numbers","REDACTED DATA","EE LTD (AIRTIME PAYMENTS)","2382161","http://opencorporates.com/companies/gb/2382161","771592016"
"London Borough of Redbridge","http://opendatacommunities.org/doc/london-borough-council/redbridge","9BNONBVO","Outside the BVACOP Objective Structure","9CNONBVO","Outside the BVACOP Objective Structure","REV","Revenue","R7602","Street Cleansing","04-SUPPLIES","Supplies And Services","04F","Communications and computing","5858","Phones","3572018","202009",03/12/2019 00:00:00,12.5,"51500","Mobile Phones - Personal Numbers","REDACTED DATA","EE LTD (AIRTIME PAYMENTS)","2382161","http://opencorporates.com/companies/gb/2382161","771592016"
"London Borough of Redbridge","http://opendatacommunities.org/doc/london-borough-council/redbridge","9BNONBVO","Outside the BVACOP Objective Structure","9CNONBVO","Outside the BVACOP Objective Structure","REV","Revenue","R7602","Street Cleansing","04-SUPPLIES","Supplies And Services","04F","Communications and computing","5858","Phones","3572018","202009",03/12/2019 00:00:00,12.5,"51500","Mobile Phones - Personal Numbers","REDACTED DATA","EE LTD (AIRTIME PAYMENTS)","2382161","http://opencorporates.com/companies/gb/2382161","771592016"
"London Borough of Redbridge","http://opendatacommunities.org/doc/london-borough-council/redbridge","9BNONBVO","Outside the BVACOP Objective Structure","9CNONBVO","Outside the BVACOP Objective Structure","REV","Revenue","R7602","Street Cleansing","04-SUPPLIES","Supplies And Services","04F","Communications and computing","5858","Phones","3572018","202009",03/12/2019 00:00:00,12.5,"51500","Mobile Phones - Personal Numbers","REDACTED DATA","EE LTD (AIRTIME PAYMENTS)","2382161","http://opencorporates.com/companies/gb/2382161","771592016"
"London Borough of Redbridge","http://opendatacommunities.org/doc/london-borough-council/redbridge","9BNONBVO","Outside the BVACOP Objective Structure","9CNONBVO","Outside the BVACOP Objective Structure","REV","Revenue","R7602","Street Cleansing","04-SUPPLIES","Supplies And Services","04F","Communications and computing","5858","Phones","3572018","202009",03/12/2019 00:00:00,12.5,"51500","Mobile Phones - Personal Numbers","REDACTED DATA","EE LTD (AIRTIME PAYMENTS)","2382161","http://opencorporates.com/companies/gb/2382161","771592016"
"London Borough of Redbridge","http://opendatacommunities.org/doc/london-borough-council/redbridge","9BNONBVO","Outside the BVACOP Objective Structure","9CNONBVO","Outside the BVACOP Objective Structure","REV","Revenue","R7602","Street Cleansing","04-SUPPLIES","Supplies And Services","04F","Communications and computing","5858","Phones","3572018","202009",03/12/2019 00:00:00,12.5,"51500","Mobile Phones - Personal Numbers","REDACTED DATA","EE LTD (AIRTIME PAYMENTS)","2382161","http://opencorporates.com/companies/gb/2382161","771592016"
"London Borough of Redbridge","http://opendatacommunities.org/doc/london-borough-council/redbridge","9BNONBVO","Outside the BVACOP Objective Structure","9CNONBVO","Outside the BVACOP Objective Structure","REV","Revenue","R7602","Street Cleansing","04-SUPPLIES","Supplies And Services","04F","Communications and computing","5858","Phones","3572018","202009",03/12/2019 00:00:00,12.5,"51500","Mobile Phones - Personal Numbers","REDACTED DATA","EE LTD (AIRTIME PAYMENTS)","2382161","http://opencorporates.com/companies/gb/2382161","771592016"
"London Borough of Redbridge","http://opendatacommunities.org/doc/london-borough-council/redbridge","3BNONSCHFUND","Non-School Funding","3CNONSCH","Non Schools","REV","Revenue","R3963","Early Years - 2 Year Olds - Statutory Place Funding","05-THIRD","Third Party Payments","05A","Independent units within the council","6517","Non-Maintained Schools","3574214","202009",16/12/2019 00:00:00,5944.28,"17580","Childcare Services","REDACTED DATA","BUSY BEES CHRISTIAN PRE-SCHOOL NURSERY LTD","2545251","http://opencorporates.com/companies/gb/2545251",""
"London Borough of Redbridge","http://opendatacommunities.org/doc/london-borough-council/redbridge","3BNONSCHFUND","Non-School Funding","3CNONSCH","Non Schools","REV","Revenue","R3962","Early Years - 3 and 4 Year Olds","05-THIRD","Third Party Payments","05A","Independent units within the council","6517","Non-Maintained Schools","3574026","202009",16/12/2019 00:00:00,5934.01,"59760","Playgroups, Nurseries and Creches","REDACTED DATA","LITTLE ACORNS CHILDREN CLUB CIC","7930059","http://opencorporates.com/companies/gb/7930059",""
"London Borough of Redbridge","http://opendatacommunities.org/doc/london-borough-council/redbridge","3BLEACENTFND","LEA Centrally Held School Funds","3CSCHSTRATMG","Schools Strategic Management","REV","Revenue","R3507","Sch Admissions Sectio","04-SUPPLIES","Supplies And Services","04K","Miscellaneous expenses","6280","Miscellaneous Expenditure","3572457","202009",06/12/2019 00:00:00,5915.29,"67981","Schools - Local Authority","REDACTED DATA","ILFORD COUNTY HIGH SCHOOL A/C","",,""
"London Borough of Redbridge","http://opendatacommunities.org/doc/london-borough-council/redbridge","3BNONSCHFUND","Non-School Funding","6CCHILLOOKED","Children Looked After","REV","Revenue","R2238","Looked After Children Placements LA","05-THIRD","Third Party Payments","05H","Private contractors","6917","Fostering Costs - Agency","60419568","202009",01/12/2019 00:00:00,5913.25,"1880","Adoption and Fostering","REDACTED DATA","HEATH FARM FOSTERING","5470925","http://opencorporates.com/companies/gb/5470925",""
"London Borough of Redbridge","http://opendatacommunities.org/doc/london-borough-council/redbridge","3BLEACENTFND","LEA Centrally Held School Funds","3CNONSCH","Non Schools","REV","Revenue","R2231","Special School Top Up Fees","05-THIRD","Third Party Payments","05G","Other establishments","7432","OOB Pre 16 Top Up","60421119","202009",16/12/2019 00:00:00,5887,"90038","Expenses","REDACTED DATA","BLANCHE NEVILE SCHOOL","",,""
